Workbook

Sheet Read Me
C2: Taal / Language
C3: Nederlands
G4: =IF($C$3="Nederlands",J4, IF($C$3="English",K4,K4)) -> Voorwoord | J4: Voorwoord | K4: Preface
G5: =IF($C$3="Nederlands",J5, IF($C$3="English",K5,K5)) -> Het kostprijsmodel “TCO-ZET-Vracht” is in opdracht van Topsector Logistiek en het Ministerie van I&W door Panteia gebouwd en wordt door haar vervolgens onderhouden. Bij de ontwikkeling van dit TCO-model is gekozen voor een open en transparante opzet. Dit betekent dat helder is welke rekenregels zijn toegepast en welke waarde van de default data als uitgangswaarde is gehanteerd. Het TCO-model wordt mede onderschreven door RAI, evofenedex en TLN. | J5: Het kostprijsmodel “TCO-ZET-Vracht” is in opdracht van Topsector Logistiek en het Ministerie van I&W door Panteia gebouwd en wordt door haar vervolgens onderhouden. Bij de ontwikkeling van dit TCO-model is gekozen voor een open en transparante opzet. Dit betekent dat helder is welke rekenregels zijn toegepast en welke waarde van de default data als uitgangswaarde is gehanteerd. Het TCO-model wordt mede onderschreven door RAI, evofenedex en TLN. | K5: The cost price model "TCO-ZET-Vracht" was built by Panteia on behalf of Top Sector Logistics and the Ministry of I&W and is subsequently maintained by it. In the development of this TCO-model an open and transparent approach has been chosen. This means that it is clear which calculation rules have been applied and which value of the default data has been used as a starting value. The TCO model is also endorsed by RAI, evofenedex and TLN.
G7: =IF($C$3="Nederlands",J7, IF($C$3="English",K7,K7)) -> Nieuw in TCO-ZET-Vracht versie 6.2 (d.d. 01-03-2024): | J7: Nieuw in TCO-ZET-Vracht versie 6.2 (d.d. 01-03-2024): | K7: New in TCO-ZET-Vracht version 6.2 (d.d. 01-03-2024):
G8: =IF($C$3="Nederlands",J8, IF($C$3="English",K8,K8)) -> In versie 6.2 zijn enkele functionele veranderingen doorgevoerd. Dit heeft invloed op de (keuze)mogelijkheden in het model en de invoer. De volgende functies zijn toegevoegd: - Extra voertuigen om uit te kiezen - Het model onderscheidt een extra optie voor zware trekkers: H2ICE - De optie om een laadplein in te voeren. Dit is optioneel. Zonder gebruik van het laadplein berekent het model kosten voor de laadinfra voor een EV-voertuig en koppelt deze geheel aan dat voertuig. Door gebruik te maken van het laadplein is het mogelijk deze laadinfra-kosten te verdelen over een vloot aan voertuigen. - De waarde vermeldt in de "blauwe velden" kan handmatig overschreven worden. De "grijze velden" zijn niet aanpasbaar. Met de resetknop: “Herstel invoervelden”, wordt teruggegaan naar de oorspronkelijke (default-) waarde. - Binnen de laadpleinmodule (sheet: M3-TCO-Laadplein) is informatie over de stationaire batterij toegevoegd. Als zo'n batterij vanuit kostenperspectief een interessante optie kan zijn, wordt hiervan een melding gegeven. | J8: In versie 6.2 zijn enkele functionele veranderingen doorgevoerd. Dit heeft invloed op de (keuze)mogelijkheden in het model en de invoer. De volgende functies zijn toegevoegd: - Extra voertuigen om uit te kiezen - Het model onderscheidt een extra optie voor zware trekkers: H2ICE - De optie om een laadplein in te voeren. Dit is optioneel. Zonder gebruik van het laadplein berekent het model kosten voor de laadinfra voor een EV-voertuig en koppelt deze geheel aan dat voertuig. Door gebruik te maken van het laadplein is het mogelijk deze laadinfra-kosten te verdelen over een vloot aan voertuigen. - De waarde vermeldt in de "blauwe velden" kan handmatig overschreven worden. De "grijze velden" zijn niet aanpasbaar. Met de resetknop: “Herstel invoervelden”, wordt teruggegaan naar de oorspronkelijke (default-) waarde. - Binnen de laadpleinmodule (sheet: M3-TCO-Laadplein) is informatie over de stationaire batterij toegevoegd. Als zo'n batterij vanuit kostenperspectief een interessante optie kan zijn, wordt hiervan een melding gegeven. | K8: In version 6.2 some functional changes have been made. This influences the (input)abiliites of the model and the variables. The following functions have been added: - Extra vehicle types to choose from - The model will add an extra combustion type for the heavy tractor to the equation: H2ICE - The option to add the total charging-infra [optional]. Without this option the model calculates charging infra costs for the selected EV-vehicle and charges those costs completely to that vehicle. By using this option it is possible to divide the charging infra costs over all vehicles of the company. - The value listed in the "blue fields" can be manually overwritten. The "grey fields" are not editable. With the reset button: "Reset input", the original (default) value is returned to. - - Within the charging square module (sheet: M3-TCO-laadplein), information about the stationary battery has been added. If such a battery can be an interesting option from a cost perspective, a notification of this is given.
G10: =IF($C$3="Nederlands",J10, IF($C$3="English",K10,K10)) -> Nieuw in TCO-ZET-Vracht versie 5.0 (d.d. 19-5-2023): | J10: Nieuw in TCO-ZET-Vracht versie 5.0 (d.d. 19-5-2023): | K10: New in TCO-ZET-Vracht version 5.0 (d.d. 19-5-2023):
G11: =IF($C$3="Nederlands",J11, IF($C$3="English",K11,K11)) -> De belangrijkste wijziging ten opzichte van versie 4 betreft een verlegging van het basisjaar van 2022 naar 2023. Gemeld moet worden dat het uitdagend is gebleken om voldoende onderbouwde veranderingen vast te stellen daar de (prijs-) ontwikkelingen in de energie- en transportmarkt aan sterke fluctuaties onderhevig zijn. De doorgevoerde verhoging van belangrijke posten is als volgt: - Catalogusprijs van dieselvoertuigen: + 14%. - Catalogusprijs van BEV en FCEV: + 8%. - Rentepercentage 4,23% (2022: 3,93%). - Verzekeringspercentage 3,40% (2022: 3,22%). - Dieselprijs (default): 1,55 euro/liter (incl. accijns, excl. btw). - Elektriciteitsprijs (default): 0,12 euro/kWh (Zone 3, excl. btw). - Waarde van een HBE: 12 euro | J11: De belangrijkste wijziging ten opzichte van versie 4 betreft een verlegging van het basisjaar van 2022 naar 2023. Gemeld moet worden dat het uitdagend is gebleken om voldoende onderbouwde veranderingen vast te stellen daar de (prijs-) ontwikkelingen in de energie- en transportmarkt aan sterke fluctuaties onderhevig zijn. De doorgevoerde verhoging van belangrijke posten is als volgt: - Catalogusprijs van dieselvoertuigen: + 14%. - Catalogusprijs van BEV en FCEV: + 8%. - Rentepercentage 4,23% (2022: 3,93%). - Verzekeringspercentage 3,40% (2022: 3,22%). - Dieselprijs (default): 1,55 euro/liter (incl. accijns, excl. btw). - Elektriciteitsprijs (default): 0,12 euro/kWh (Zone 3, excl. btw). - Waarde van een HBE: 12 euro | K11: The most important change with respect to version 2 concerns a shift of the base year from 2021 to 2022. It should be mentioned that it has proved challenging to establish sufficiently substantiated changes as the (price) developments in the energy and transport market are subject to strong fluctuations. The implemented increase in key items is as follows: - Catalog price of diesel vehicles: + 14%. - List price of BEV and FCEV: + 8%. - Interest rate 4,23% (2022: 3,93%). - Insurance rate 3,40% (2022: 3,22%). - Diesel price (default): 1,55 euros/liter (incl. excise duty, excl. VAT). - Electricity price (default): 0.12 euro/kWh (Zone 3, excl. VAT). - Value of a HBE: 12 euro
G12: =IF($C$3="Nederlands",J12, IF($C$3="English",K12,K12)) -> Overige aanpassingen: - Bij FCEV wordt uitsluitend de waarde van HBE's berekend in geval van groene elektrolyse. - Ten behoeve van de berekening van de subsidiebedragen is een vraag over de bedrijfsgrootte toegevoegd. - De nieuwe voorwaarden voor de AanZET-subsidie zijn toegevoegd. - TCO-vracht is nu beschikbaar in het Nederlands en het Engels. Om van taal te switchen kan linksboven in de readme een keuze gemaakt worden. | J12: Overige aanpassingen: - Bij FCEV wordt uitsluitend de waarde van HBE's berekend in geval van groene elektrolyse. - Ten behoeve van de berekening van de subsidiebedragen is een vraag over de bedrijfsgrootte toegevoegd. - De nieuwe voorwaarden voor de AanZET-subsidie zijn toegevoegd. - TCO-vracht is nu beschikbaar in het Nederlands en het Engels. Om van taal te switchen kan linksboven in de readme een keuze gemaakt worden. | K12: Other adjustments: - For FCEV, the value of HBEs is calculated only in case of green electrolysis. - For the purpose of calculating subsidy amounts, a question about company size has been added. - The new values of the AanZet subsidy have been added. - The TCO tool is now available in both Dutch and English. To switch language use the language option at the top of the readme page.
G14: - 0 - 0 - 0 - 0 -
G17: =IF($C$3="Nederlands",J17, IF($C$3="English",K17,K17)) -> Het gebruik | J17: Het gebruik | K17: Usage
G18: =IF($C$3="Nederlands",J18, IF($C$3="English",K18,K18)) -> De opzet van het TCO-Vracht is zo eenvoudig als mogelijk gehouden. Dit houdt in dat het TCO-Vracht op basis van een beperkte input reeds onderbouwde rekenresultaten produceert. Wel moet het veld “Enable Content” (soms) worden aangeklikt om gebruik te kunnen maken van voor de berekeningen noodzakelijke “Macros”. Let op: Sommige beveiligingssoftware verhindert het gebruik van deze Macros. Dit kan verholpen worden door de Excelfile eerst lokaal op te slaan en vanaf deze locatie te werken. | J18: De opzet van het TCO-Vracht is zo eenvoudig als mogelijk gehouden. Dit houdt in dat het TCO-Vracht op basis van een beperkte input reeds onderbouwde rekenresultaten produceert. Wel moet het veld “Enable Content” (soms) worden aangeklikt om gebruik te kunnen maken van voor de berekeningen noodzakelijke “Macros”. Let op: Sommige beveiligingssoftware verhindert het gebruik van deze Macros. Dit kan verholpen worden door de Excelfile eerst lokaal op te slaan en vanaf deze locatie te werken. | K18: The design of the TCO-Freight has been kept as simple as possible. This means that the TCO-Force already produces substantiated calculation results based on a limited input. However, the field Enable Content" must (sometimes) be clicked in order to be able to use "Macros" necessary for the calculations. Note: Some security software prevents the use of these Macros. This can be remedied by saving the Excel file locally first and working from this location.
G20: =IF($C$3="Nederlands",J20, IF($C$3="English",K20,K20)) -> Defaultwaarden | J20: Defaultwaarden | K20: Default values
G21: =IF($C$3="Nederlands",J21, IF($C$3="English",K21,K21)) -> Bij een groot aantal (input-) gegevens is in het TCO-Vracht reeds een defaultwaarde ingevuld. Deze defaultwaarde (=standaardwaarde) is gebaseerd op gegevens uit de transportwereld. Veel van deze gegevens kunnen naar eigen inzicht veranderd worden met een eigen getal door gebruik te maken van een aantal “knoppen”. Bij deze knoppen is telkens de gebruikte defaultwaarde weergegeven. Overigens, met de resetknop: “Herstel invoervelden”, wordt teruggegaan naar de oorspronkelijke (default-) waarden. | J21: Bij een groot aantal (input-) gegevens is in het TCO-Vracht reeds een defaultwaarde ingevuld. Deze defaultwaarde (=standaardwaarde) is gebaseerd op gegevens uit de transportwereld. Veel van deze gegevens kunnen naar eigen inzicht veranderd worden met een eigen getal door gebruik te maken van een aantal “knoppen”. Bij deze knoppen is telkens de gebruikte defaultwaarde weergegeven. Overigens, met de resetknop: “Herstel invoervelden”, wordt teruggegaan naar de oorspronkelijke (default-) waarden. | K21: For a large number of (input) data, a default value has already been entered in TCO-Freight. This default value (=standard value) is based on data from the transport world. Many of these data can be changed at one's own discretion with one's own number by using a number of buttons". The default value used is always shown with these buttons. By the way, with the reset button: "Reset input", the original (default) values are returned to.
G23: =IF($C$3="Nederlands",J23, IF($C$3="English",K23,K23)) -> Resultaten | J23: Resultaten | K23: Results
G24: =IF($C$3="Nederlands",J24, IF($C$3="English",K24,K24)) -> De rekenresultaten worden kolomsgewijs getoond voor telkens een elektrische, een brandstofcel en een dieselvariant van een voertuig met vergelijkbare transportkarakteristieken. De verwachte jaarkilometrage van het geselecteerde voertuig is een bepalend getal. Op basis hiervan worden niet alleen de kosten en emissies berekend maar wordt bijvoorbeeld ook een advies gegeven over optimale capaciteit van de batterij en het vermogen van het oplaadsysteem. | J24: De rekenresultaten worden kolomsgewijs getoond voor telkens een elektrische, een brandstofcel en een dieselvariant van een voertuig met vergelijkbare transportkarakteristieken. De verwachte jaarkilometrage van het geselecteerde voertuig is een bepalend getal. Op basis hiervan worden niet alleen de kosten en emissies berekend maar wordt bijvoorbeeld ook een advies gegeven over optimale capaciteit van de batterij en het vermogen van het oplaadsysteem. | K24: The calculation results are shown columnwise for each of an electric, a fuel cell and a diesel variant of a vehicle with similar transport characteristics. The expected annual mileage of the selected vehicle is a decisive figure. On this basis, not only the costs and emissions are calculated but also, for example, advice is given on the optimum capacity of the battery and the power of the charging system.
G26: =IF($C$3="Nederlands",J26, IF($C$3="English",K26,K26)) -> Emissies | J26: Emissies | K26: Emissions
G27: =IF($C$3="Nederlands",J27, IF($C$3="English",K27,K27)) -> Hoewel het een kostprijsmodel betreft, worden tevens de emissies (WtW) van een aantal vervuilende stoffen van het geselecteerde voertuig berekend. Het betreft daarbij CO2, NOx en PMx. Het ligt voor de hand dat er met (batterij of brandstofcel) elektrische voertuigen op groene stroom c.q. groene waterstof gereden wordt. Wanneer dit om een of andere reden niet mogelijk is, kan bijvoorbeeld “grijze elektriciteit” worden geselecteerd. Er wordt in dat geval gerekend met (de uitstoot van) de Nederlandse elektriciteitsmix. | J27: Hoewel het een kostprijsmodel betreft, worden tevens de emissies (WtW) van een aantal vervuilende stoffen van het geselecteerde voertuig berekend. Het betreft daarbij CO2, NOx en PMx. Het ligt voor de hand dat er met (batterij of brandstofcel) elektrische voertuigen op groene stroom c.q. groene waterstof gereden wordt. Wanneer dit om een of andere reden niet mogelijk is, kan bijvoorbeeld “grijze elektriciteit” worden geselecteerd. Er wordt in dat geval gerekend met (de uitstoot van) de Nederlandse elektriciteitsmix. | K27: Although it is a cost model, it also calculates the emissions (WtW) of a number of pollutants of the selected vehicle. This concerns CO2, NOx and PMx. It is obvious that (battery or fuel cell) electric vehicles are driven on green electricity or green hydrogen. If, for some reason, this is not possible, then grey electricity" can be selected, for example. In that case (the emissions of) the Dutch electricity mix is used.
G29: =IF($C$3="Nederlands",J29, IF($C$3="English",K29,K29)) -> Nieuwe versies | J29: Nieuwe versies | K29: New versions
G30: =IF($C$3="Nederlands",J30, IF($C$3="English",K30,K30)) -> De ontwikkelingen met betrekking tot de energietransitie volgen elkaar in een hoog tempo op. Niet alleen verandert de defaultwaarde van de inputgegevens bijvoorbeeld in de vorm van prijsdalingen, ook komen er regelmatig nieuwe voertuigklassen beschikbaar. Om te zorgen dat het TCO-Vracht zo actueel mogelijk blijft, worden er daarom periodiek updates gemaakt. Deze nieuwe versies van het model worden vervolgens gratis ter beschikking gesteld. | J30: De ontwikkelingen met betrekking tot de energietransitie volgen elkaar in een hoog tempo op. Niet alleen verandert de defaultwaarde van de inputgegevens bijvoorbeeld in de vorm van prijsdalingen, ook komen er regelmatig nieuwe voertuigklassen beschikbaar. Om te zorgen dat het TCO-Vracht zo actueel mogelijk blijft, worden er daarom periodiek updates gemaakt. Deze nieuwe versies van het model worden vervolgens gratis ter beschikking gesteld. | K30: The developments related to the energy transition follow each other in rapid succession. Not only does the default value of the input data change, for example in the form of price drops, but also new vehicle classes regularly become available. To ensure that TCO-Freight remains as current as possible, updates are therefore made periodically. These new versions of the model are then made available free of charge.
G32: =IF($C$3="Nederlands",J32, IF($C$3="English",K32,K32)) -> Disclaimer | J32: Disclaimer | K32: Disclaimer
G33: =IF($C$3="Nederlands",J33, IF($C$3="English",K33,K33)) -> Veel zorg is besteed aan de correctheid van de rekenregels en de gebruikte inputdata c.q. defaultwaarden. Panteia of de Topsector Logistiek zijn echter niet aansprakelijk te houden voor de juistheid van de rekenresultaten. Deze kunnen ofwel lager dan wel hoger zijn. | J33: Veel zorg is besteed aan de correctheid van de rekenregels en de gebruikte inputdata c.q. defaultwaarden. Panteia of de Topsector Logistiek zijn echter niet aansprakelijk te houden voor de juistheid van de rekenresultaten. Deze kunnen ofwel lager dan wel hoger zijn. | K33: Great care has been taken to ensure the correctness of the calculation rules and the input data used or default values. However, Panteia or Top Sector Logistics cannot be held liable for the accuracy of the calculation results. These can be either lower or higher.
G35: =IF($C$3="Nederlands",J35, IF($C$3="English",K35,K35)) -> Contact | J35: Contact | K35: Contact
G36: =IF($C$3="Nederlands",J36, IF($C$3="English",K36,K36)) -> Indien u vragen hebt dan kunt u deze bij voorkeur verzenden naar: TCO-Vracht@panteia.nl | J36: Indien u vragen hebt dan kunt u deze bij voorkeur verzenden naar: TCO-Vracht@panteia.nl | K36: If you have any questions, please send them to: TCO-Vracht@panteia.nl

Sheet Input-Output Module
E3: Disclaimer:
E4: =Config!$A$36 -> De in het TCO-Vracht gebruikte default- c.q. standaardwaarden zijn met de grootste zorg verzameld. Het betreft echter gemiddelde cijfers, de werkelijke cijfers kunnen ofwel hoger dan wel lager zijn. Hoewel veel zorg is besteed aan de correctheid van de rekenregels en de gebruikte inputdata, is Panteia of de Topsector Logistiek niet aansprakelijk te houden voor de juistheid van de rekenresultaten.
B9: Input-output module | E9: TCO-ZET-Vracht
E10: =IF('Read Me'!$C$3="Nederlands",_xlfn.CONCAT("versie ",Config!$B$1),_xlfn.CONCAT("version ",Config!$B$1)) -> versie 6.2 | F10: 2024-03-01
B11: =IF('Read Me'!$C$3="Nederlands","BASIS INVOERGEGEVENS","BASIC INPUT DATA") -> BASIS INVOERGEGEVENS
D12: =IF(ISNA(MATCH(Voertuigtype,Voertuigen[[#All],[Voertuig]],0)), IF('Read Me'!$C$3="Nederlands","Herstel invoervelden na taalwissel!","Reset input after language change!"), "") -> 
C13: =IF('Read Me'!$C$3="Nederlands","Voertuigtype ","Vehicle type ") -> Voertuigtype | D13: Grote bakwagen (lvm > 16 ton) | F13: =IF('Read Me'!$C$3="Nederlands","Dieselvoertuig belastingen","Diesel levies") -> Dieselvoertuig belastingen
C14: =IF('Read Me'!$C$3="Nederlands","Koelmachine ","Cooling unit ") -> Koelmachine | D14: Nee | F14: =IF('Read Me'!$C$3="Nederlands","heffing","levy") -> heffing | G14: =IF('Read Me'!$C$3="Nederlands","meenemen?","incorporate?") -> meenemen?
C15: =IF('Read Me'!$C$3="Nederlands","Verwacht jaarkilometrage [km] ","Expected annual mileage [km] ") -> Verwacht jaarkilometrage [km] | D15: =INDEX(Voertuigen[[#All],[Kilometrage]],MATCH(Calculatie!$C$2,Voertuigen[[#All],[Voertuig ID]],0)) -> 70000 | E15: =IF('Read Me'!$C$3="Nederlands","Meerprijs tolheffing ","affitional toll ") -> Meerprijs tolheffing | F15: 0 | G15: Nee | H15: [€/km]
C16: =IF('Read Me'!$C$3="Nederlands","Grijze/groene elektriciciteit ","Grey/green electricity ") -> Grijze/groene elektriciciteit | D16: Groen | E16: =IF('Read Me'!$C$3="Nederlands","Aandeel snelweg kilometers ","Share of highway kilometers ") -> Aandeel snelweg kilometers | F16: =INDEX(InzetVoertuigPar[[#All],[Waarde]],MATCH(Parameters!$B$20,InzetVoertuigPar[[#All],[Variabele]],0)) -> 0.75
C17: =IF('Read Me'!$C$3="Nederlands","Grijze/groene waterstof ","Grey/green hydrogen ") -> Grijze/groene waterstof | D17: Electrolyse (hernieuwbare energie) | E17: =IF('Read Me'!$C$3="Nederlands","Vaste ZE-Voertuigheffing ","Fixed ZE-levy ") -> Vaste ZE-Voertuigheffing | F17: 0 | G17: Nee | H17: =IF('Read Me'!$C$3="Nederlands","[€/jaar]","[€/year]") -> [€/jaar]
C18: =IF('Read Me'!$C$3="Nederlands","Rechtsvorm en belastingpercentage ","Legal form and tax rate ") -> Rechtsvorm en belastingpercentage | D18: BV of NV met 19% belasting | E18: =IF('Read Me'!$C$3="Nederlands","CO2 prijs ","CO2 price ") -> CO2 prijs | F18: 0 | G18: Nee | H18: =IF('Read Me'!$C$3="Nederlands","[€/ton]","[€/tonne]") -> [€/ton]
C19: =IF('Read Me'!$C$3="Nederlands","Grootte van bedrijf ","Company size ") -> Grootte van bedrijf | D19: Groot
C20: =IF('Read Me'!$C$3="Nederlands","Basisjaar prognose ","Base year forecast ") -> Basisjaar prognose | D20: 2023 | F20: =IF('Read Me'!$C$3="Nederlands","Hernieuwbare Energie eenheden (HBE)","Renewable Fuel units (HBE)") -> Hernieuwbare Energie eenheden (HBE)
F21: =$E$35 -> Batterij-elektrisch (BEV) | G21: =$F$35 -> Brandstofcel (FCEV)
E22: =IF('Read Me'!$C$3="Nederlands","Toepassen? ","Apply? ") -> Toepassen? | F22: Nee | G22: Nee
E23: =IF('Read Me'!$C$3="Nederlands","Aantal ","Amount ") -> Aantal | F23: =Calculatie!$C$56 -> 1353 | G23: =Calculatie!$D$56 -> 1867
E24: =IF('Read Me'!$C$3="Nederlands","Forfait ","Flat rate ") -> Forfait | F24: =Calculatie!$C$52 -> 1 | G24: =Calculatie!$D$52 -> 1
E25: =IF('Read Me'!$C$3="Nederlands","Waarde per HBE ","Value per HBE ") -> Waarde per HBE | F25: =Parameters!$I$7 -> 12 | G25: =Parameters!$I$7 -> 12
E26: =IF('Read Me'!$C$3="Nederlands","Totale waarde HBE's ","Total HBE value ") -> Totale waarde HBE's | F26: =IF((F23*F25)-Parameters!$I$9<0,0,(F23*F25)-Parameters!$I$9) -> 14236 | G26: =IF((G23*G25)-Parameters!$I$9<0,0,(G23*G25)-Parameters!$I$9) -> 20404
D28: =IF('Read Me'!$C$3="Nederlands","Inkoopprijzen energie","Energy purchase prices") -> Inkoopprijzen energie
D29: =_xlfn.CONCAT($D$35," [L]") -> Diesel [L] | E29: =IF('Read Me'!$C$3="Nederlands","Elektriciteit [kWh]","Electricity [kWh]") -> Elektriciteit [kWh] | F29: =IF('Read Me'!$C$3="Nederlands","Waterstof [kg]","Hydrogen [kg]") -> Waterstof [kg]
C30: =IF('Read Me'!$C$3="Nederlands","Bruto prijs energie ","Basic energy price ") -> Bruto prijs energie | D30: =Parameters!$D$4 -> 1.03 | E30: =Parameters!$D$6 -> 0.1220728926 | F30: =INDEX(Energieprijzen[#All],MATCH(H2_type,Energieprijzen[[#All],[Variabele]],0),3) -> 19
C31: =IF('Read Me'!$C$3="Nederlands","Subsidie / belasting (accijns) ","Subsidy / tax (duty) ") -> Subsidie / belasting (accijns) | D31: =Parameters!$D$5 -> 0.5162 | E31: 0 | F31: 0
C32: =IF('Read Me'!$C$3="Nederlands","Netto inkoopprijs energie ","Net purchase price ") -> Netto inkoopprijs energie | D32: =D30+D31 -> 1.5462 | E32: =E30+E31 -> 0.1220728926 | F32: =F30+F31 -> 19
B34: =IF('Read Me'!$C$3="Nederlands","INZETGEGEVENS VOERTUIG SYSTEM","VEHICLE SYSTEM DEPLOYMENT DATA") -> INZETGEGEVENS VOERTUIG SYSTEM
D35: =IF('Read Me'!$C$3="Nederlands","Diesel","Diesel") -> Diesel | E35: =IF('Read Me'!$C$3="Nederlands","Batterij-elektrisch (BEV)","Battery-electric (BEV)") -> Batterij-elektrisch (BEV) | F35: =IF('Read Me'!$C$3="Nederlands","Brandstofcel (FCEV)","Fuel Cell Electric (FCEV)") -> Brandstofcel (FCEV) | G35: H2ICE-CI
C36: =IF('Read Me'!$C$3="Nederlands","Economische levensduur [jaren] ","Economic lifespan [years] ") -> Economische levensduur [jaren] | D36: =INDEX(Voertuigen[[#All],[Afschrijftermijn]],MATCH(Calculatie!$C$2,Voertuigen[[#All],[Voertuig ID]],0)) -> 7 | E36: =INDEX(Voertuigen[[#All],[Afschrijftermijn]],MATCH(Calculatie!$C$2,Voertuigen[[#All],[Voertuig ID]],0)) -> 7 | F36: =INDEX(Voertuigen[[#All],[Afschrijftermijn]],MATCH(Calculatie!$C$2,Voertuigen[[#All],[Voertuig ID]],0)) -> 7 | G36: =INDEX(Voertuigen[[#All],[Afschrijftermijn]],MATCH(Calculatie!$C$2,Voertuigen[[#All],[Voertuig ID]],0)) -> 7
C37: =IF('Read Me'!$C$3="Nederlands","Kosten van reparaties ","Cost of repairs ") -> Kosten van reparaties | D37: =INDEX(EnergieverbruikEnOnderhoudPerType[#All],MATCH(Calculatie!$C$3,EnergieverbruikEnOnderhoudPerType[[#All],[Type ID]],0),9) -> 1000 | E37: =INDEX(EnergieverbruikEnOnderhoudPerType[#All],MATCH(Calculatie!$C$3,EnergieverbruikEnOnderhoudPerType[[#All],[Type ID]],0),10) -> 1000 | F37: =INDEX(EnergieverbruikEnOnderhoudPerType[#All],MATCH(Calculatie!$C$3,EnergieverbruikEnOnderhoudPerType[[#All],[Type ID]],0),11) -> 3000 | G37: =INDEX(EnergieverbruikEnOnderhoudPerType[#All],MATCH(Calculatie!$C$3,EnergieverbruikEnOnderhoudPerType[[#All],[Type ID]],0),9) -> 1000
C38: =IF('Read Me'!$C$3="Nederlands","Productieve uren per jaar ","Productive hours per year ") -> Productieve uren per jaar | D38: =INDEX(Voertuigen[[#All],[Productive uren per jaar]],MATCH(Calculatie!$C$2,Voertuigen[[#All],[Voertuig ID]],0)) -> 2600 | E38: =Calculatie!$C$14 -> 2600 | F38: =Calculatie!$D$14 -> 2600 | G38: =Calculatie!$E$14 -> 2600
C39: =IF('Read Me'!$C$3="Nederlands","Stilstand [dagen per jaar] ","Downtime [days per year] ") -> Stilstand [dagen per jaar] | E39: 0 | F39: 0 | G39: 0
B41: =IF('Read Me'!$C$3="Nederlands","AANSCHAFGEGEVENS VOERTUIG SYSTEM","PURCHASE PRICE VEHICLE SYSTEM") -> AANSCHAFGEGEVENS VOERTUIG SYSTEM
D42: =D35 -> Diesel | E42: =E35 -> Batterij-elektrisch (BEV) | F42: =F35 -> Brandstofcel (FCEV) | G42: =$G$35 -> H2ICE-CI
C43: =IF('Read Me'!$C$3="Nederlands","Capaciteit vrachtwagenbatterij [kWh] ","Capacity batterypackage [kWh] ") -> Capaciteit vrachtwagenbatterij [kWh] | E43: ='M1-PowerSupply'!$C$22 -> 260 | F43: =INDEX(FCEV_Variants[#All],MATCH('M1-PowerSupply'!$C$3,FCEV_Variants[[#All],[Type ID]],0),7) -> 140
C44: =IF('Read Me'!$C$3="Nederlands","Waterstof opslag tank [kg] ","Hydrogen storage tank [kg] ") -> Waterstof opslag tank [kg] | F44: =INDEX(FCEV_Variants[#All],MATCH('M1-PowerSupply'!$C$3,FCEV_Variants[[#All],[Type ID]],0),9) -> 20 | G44: =INDEX(FCEV_Variants[#All],MATCH('M1-PowerSupply'!$C$3,FCEV_Variants[[#All],[Type ID]],0),10) -> 0
C45: =IF('Read Me'!$C$3="Nederlands","Fuell cell systeem [kW] ","Fuell cell system [kW] ") -> Fuell cell systeem [kW] | F45: =INDEX(FCEV_Variants[[#All],[FC power]],MATCH(Calculatie!$C$3,FCEV_Variants[[#All],[Type ID]],0)) -> 45
C47: =IF('Read Me'!$C$3="Nederlands","Voertuig ","Vehicle ") -> Voertuig | D47: =Voertuigtype -> Grote bakwagen (lvm > 16 ton)
C48: =IF('Read Me'!$C$3="Nederlands","Bruto aankoopprijs ","Gross purchase price ") -> Bruto aankoopprijs | D48: =INDEX(Voertuigen[[#All],[Casco kosten voertuig (DV)]],MATCH(Calculatie!$C$2,Voertuigen[[#All],[Voertuig ID]]))+IF(Koeling=Config!$A$11,INDEX(Voertuigen[[#All],[Aanschaf koelsysteem]],MATCH(Calculatie!$C$2,Voertuigen[[#All],[Voertuig ID]])),0) -> 150765 | E48: =INDEX(Voertuigen[[#All],[Casco kosten voertuig (DV)]],MATCH(Calculatie!$C$2,Voertuigen[[#All],[Voertuig ID]]))+INDEX(ComponentPrijzen[[#All],[prijs/unit]],MATCH('Invoer en categorieën'!$S$31,ComponentPrijzen[[#All],[Component]],0))*Calculatie!$C$19+IF(Koeling=Config!$A$11,INDEX(Voertuigen[[#All],[Aanschaf koelsysteem]],MATCH(Calculatie!$C$2,Voertuigen[[#All],[Voertuig ID]])),0) -> 287265 | F48: =(INDEX(Voertuigen[[#All],[Casco kosten voertuig (DV)]],MATCH(Calculatie!$C$2,Voertuigen[[#All],[Voertuig ID]]))+INDEX(ComponentPrijzen[[#All],[prijs/unit]],MATCH('Invoer en categorieën'!$S$31,ComponentPrijzen[[#All],[Component]],0))*Calculatie!$D$19+INDEX(ComponentPrijzen[[#All],[prijs/unit]],MATCH('Invoer en categorieën'!$S$33,ComponentPrijzen[[#All],[Component]],0))*Calculatie!$D$20+INDEX(ComponentPrijzen[[#All],[prijs/unit]],MATCH('Invoer en categorieën'!$S$32,ComponentPrijzen[[#All],[Component]],0))*Calculatie!$D$21)*INDEX(ComponentPrijzen[[#All],[prijs/unit]],MATCH('Invoer en categorieën'!$S$34,ComponentPrijzen[[#All],[Component]],0))+IF(Koeling=Config!$A$11,INDEX(Voertuigen[[#All],[Aanschaf koelsysteem]],MATCH(Calculatie!$C$2,Voertuigen[[#All],[Voertuig ID]])),0) -> 449564.4 | G48: =INDEX(Voertuigen[[#All],[H2ICE Casco]],MATCH(Calculatie!$C$2,Voertuigen[[#All],[Voertuig ID]]))+IF(Koeling=Config!$A$11,INDEX(Voertuigen[[#All],[Aanschaf koelsysteem]],MATCH(Calculatie!$C$2,Voertuigen[[#All],[Voertuig ID]])),0) -> 0
C49: =IF('Read Me'!$C$3="Nederlands","AanZET-subsidie ","APPROVAL subsidy ") -> AanZET-subsidie | E49: Nee | F49: Nee | G49: Nee
C50: =IF('Read Me'!$C$3="Nederlands","MIA-subsidie ","MIA-subsidy ") -> MIA-subsidie | E50: Ja | F50: Ja | G50: Ja
C51: =IF('Read Me'!$C$3="Nederlands","Netto aankoopprijs ","Net purchase price ") -> Netto aankoopprijs | D51: =$D$48 -> 150765 | E51: =$E$48-'M2-Subsidie'!$B$35-'M2-Subsidie'!$B$36 -> 267616.074 | F51: =$F$48-'M2-Subsidie'!$C$35-'M2-Subsidie'!$C$36 -> 418814.195 | G51: =$G$48-'M2-Subsidie'!$D$35-'M2-Subsidie'!$D$36 -> 0
C52: =IF('Read Me'!$C$3="Nederlands","Restwaarde ","Residual value ") -> Restwaarde | D52: =INDEX(Afschrijving[[#All],[Percentage of value of new vehicle price (%)]],MATCH(IF($D$36>10,Parameters!$H$25,$D$36),Afschrijving[[#All],[Age]],0))*$D$48 -> 34675.95 | E52: =INDEX(Afschrijving[[#All],[Percentage of value of new vehicle price (%)]],MATCH(IF($E$36>10,Parameters!$H$25,$E$36),Afschrijving[[#All],[Age]],0))*$E$48 -> 66070.95 | F52: =INDEX(Afschrijving[[#All],[Percentage of value of new vehicle price (%)]],MATCH(IF($F$36>10,Parameters!$H$25,$F$36),Afschrijving[[#All],[Age]],0))*$F$48 -> 103399.812 | G52: =INDEX(Afschrijving[[#All],[Percentage of value of new vehicle price (%)]],MATCH(IF($G$36>10,Parameters!$H$25,$G$36),Afschrijving[[#All],[Age]],0))*$G$48 -> 0
B54: =IF('Read Me'!$C$3="Nederlands","GEGEVENS EN AANSCHAF OPLAADSYSTEEM","PURCHASE DATA CHARGING SYSTEM") -> GEGEVENS EN AANSCHAF OPLAADSYSTEEM
C56: =IF('Read Me'!$C$3="Nederlands","Kies invoermethode ","Choose input method ") -> Kies invoermethode | D56: Enkele laadpaal | E56: =IF($D$56=Config!$A$32, IF('Read Me'!$C$3="Nederlands", "Vergeet niet tabblad 'M3-TCO-laadplein' voor uw situatie in te vullen!!", "Don't forget to fill in sheet 'M3-TCO-laadplein' for your own situation!!"),"") -> 
D57: =IF($D$56=Config!$A$32, IF('Read Me'!$C$3="Nederlands", "Niet invullen", "Don't fill in"),"") ->  | F57: =IF($D$56=Config!$A$32, IF('Read Me'!$C$3="Nederlands", "Samenvatting huidige invoer:", "Summary current input:"),"") -> 
C58: =IF('Read Me'!$C$3="Nederlands","Vermogen systeem ","Capacity charging systeem ") -> Vermogen systeem | D58: ='M1-PowerSupply'!$C$31 -> 50 kW | E58: =IF('Read Me'!$C$3="Nederlands","Totaal voertuigen ","Vehicle amount ") -> Totaal voertuigen | F58: ='M3-TCO-laadplein'!$I$16 -> 0
C59: =IF('Read Me'!$C$3="Nederlands","Bruto kosten oplaadsysteem ","Gross cost chargingsystem ") -> Bruto kosten oplaadsysteem | D59: =INDEX(LaadinfraPrivaat[[#All],[Purchase (€)]],MATCH($D$58,LaadinfraPrivaat[[#All],[Power]],0)) -> 19293.75 | E59: =IF('Read Me'!$C$3="Nederlands","Totaal laadpalen ","Number of charging stations ") -> Totaal laadpalen | F59: =Calculatie!$R$16 -> 0
C60: =IF('Read Me'!$C$3="Nederlands","Bruto kosten aanleg oplaadsysteem ","Gross cost installation system ") -> Bruto kosten aanleg oplaadsysteem | D60: =INDEX(LaadinfraPrivaat[[#All],[Installation costs (€)]],MATCH($D$58,LaadinfraPrivaat[[#All],[Power]],0)) -> 12810.285 | E60: =IF('Read Me'!$C$3="Nederlands","Totale kosten [per kWh] ","Total costs [per kWh] ") -> Totale kosten [per kWh] | F60: ='M3-TCO-laadplein'!$J$31 -> 0 | G60: =IF('M3-TCO-laadplein'!$J$29=Config!$A$11, IF('Read Me'!$C$3="Nederlands"," Kosten netverzwaring meegenomen"," Costs upgrading mains included"), IF('Read Me'!$C$3="Nederlands"," Kosten netverzwaring niet meegenomen"," Costs upgrading mains excluded")) -> Kosten netverzwaring niet meegenomen
C61: =IF('Read Me'!$C$3="Nederlands","MIA-subsidie ","MIA-subsidy ") -> MIA-subsidie | D61: Ja | E61: =IF('Read Me'!$C$3="Nederlands","waarvan CAPEX ","of which CAPEX ") -> waarvan CAPEX | F61: =MAX(F60-F62-E32,0) -> 0
C62: =IF('Read Me'!$C$3="Nederlands","Netto kosten inkoop & aanleg ","Net cost purchase and installation ") -> Netto kosten inkoop & aanleg | D62: =$D$59+$D$60-'M2-Subsidie'!$B$37 -> 29908.11901 | E62: =IF('Read Me'!$C$3="Nederlands","waarvan OPEX ","of which OPEX ") -> waarvan OPEX | F62: =Calculatie!U32 -> 0 | G62: =IF('Read Me'!$C$3="Nederlands"," * exclusief energiekosten "," * excluding ernergy costs") -> * exclusief energiekosten
B64: =IF('Read Me'!$C$3="Nederlands","RESULTATEN","RESULTS") -> RESULTATEN
D65: =D35 -> Diesel | E65: =E35 -> Batterij-elektrisch (BEV) | F65: =F35 -> Brandstofcel (FCEV) | G65: =G35 -> H2ICE-CI
C66: =IF('Read Me'!$C$3="Nederlands","Scenario technisch mogelijk EV? ","Scenario technical valid EV? ") -> Scenario technisch mogelijk EV? | D66: =IF('Read Me'!$C$3="Nederlands","n.v.t.","n.a.") -> n.v.t. | E66: =IF('M1-PowerSupply'!$B$51, IF('Read Me'!$C$3="Nederlands","Scenario valide","Valid scenario"), IF('Read Me'!$C$3="Nederlands","Scenario invalide","Invalid scenario") ) -> Scenario valide | F66: =IF('Read Me'!$C$3="Nederlands","n.v.t.","n.a.") -> n.v.t. | G66: =IF('Read Me'!$C$3="Nederlands","n.v.t.","n.a.") -> n.v.t.
C67: =IF('Read Me'!$C$3="Nederlands","Uitvoering ","Variant ") -> Uitvoering | D67: =INDEX(Voertuigen[[#All],[Type]],MATCH(Calculatie!$C$3,Voertuigen[[#All],[Type ID]],0)) -> Grote bakwagen | E67: =_xlfn.CONCAT(D67," ",E43," kWh") -> Grote bakwagen 260 kWh | F67: =_xlfn.CONCAT(D67," ",F45," kW") -> Grote bakwagen 45 kW | G67: =_xlfn.CONCAT(D67," ",G44," kg") -> Grote bakwagen 0 kg
C68: =IF('Read Me'!$C$3="Nederlands","Eigen oplaadsysteem ","Own charging station ") -> Eigen oplaadsysteem | D68: =IF('Read Me'!$C$3="Nederlands","n.v.t.","n.a.") -> n.v.t. | E68: =IF($D$56=Config!$A$31,'M1-PowerSupply'!$C$32, IF('Read Me'!$C$3="Nederlands","Eigen laadplein","Own Charging Hub")) -> 50 kW | F68: =IF('Read Me'!$C$3="Nederlands","n.v.t.","n.a.") -> n.v.t. | G68: =IF('Read Me'!$C$3="Nederlands","n.v.t.","n.a.") -> n.v.t.
C69: =IF('Read Me'!$C$3="Nederlands","Openbaar oplaadsysteem ","Public charging station ") -> Openbaar oplaadsysteem | D69: =IF('Read Me'!$C$3="Nederlands","n.v.t.","n.a.") -> n.v.t. | E69: ='M1-PowerSupply'!$C$42 -> HPC350 | F69: =IF('Read Me'!$C$3="Nederlands","n.v.t.","n.a.") -> n.v.t. | G69: =IF('Read Me'!$C$3="Nederlands","n.v.t.","n.a.") -> n.v.t.
C71: =IF('Read Me'!$C$3="Nederlands","Aandeel eigen oplaadsysteem ","Share own charging station ") -> Aandeel eigen oplaadsysteem | D71: =IF('Read Me'!$C$3="Nederlands","n.v.t.","n.a.") -> n.v.t. | E71: =IF($D$56=Config!$A$31,Calculatie!$C$29,1) -> 0.5751966568 | F71: =IF('Read Me'!$C$3="Nederlands","n.v.t.","n.a.") -> n.v.t. | G71: =IF('Read Me'!$C$3="Nederlands","n.v.t.","n.a.") -> n.v.t.
C72: =IF('Read Me'!$C$3="Nederlands","Aandeel extern (openbaar) laden ","Share external/public charging ") -> Aandeel extern (openbaar) laden | D72: =IF('Read Me'!$C$3="Nederlands","n.v.t.","n.a.") -> n.v.t. | E72: =IF($D$56=Config!$A$31,Calculatie!$C$30,0) -> 0.4248033432 | F72: =IF('Read Me'!$C$3="Nederlands","n.v.t.","n.a.") -> n.v.t. | G72: =IF('Read Me'!$C$3="Nederlands","n.v.t.","n.a.") -> n.v.t.
C74: =IF('Read Me'!$C$3="Nederlands","Totale kosten per jaar ","Total cost per year ") -> Totale kosten per jaar | D74: =D121+D125 -> 176417.3789 | E74: =E121+E125 -> 203817.5611 | F74: =F121+F125 -> 333712.889 | G74: =G121+G125 -> 109396.3024
C75: =IF('Read Me'!$C$3="Nederlands","Totale kosten per km ","Total cost per km ") -> Totale kosten per km | D75: =D74/Kilometrage -> 2.520248271 | E75: =E74/Kilometrage -> 2.911679445 | F75: =F74/Kilometrage -> 4.767326985 | G75: =G74/Kilometrage -> 1.56280432
C76: =IF('Read Me'!$C$3="Nederlands","Totale kosten per uur ","Total cost per hour ") -> Totale kosten per uur | D76: =D74/D38 -> 67.85283805 | E76: =E74/E38 -> 78.39136966 | F76: =F74/F38 -> 128.3511111 | G76: =G74/G38 -> 42.07550091
C78: =IF('Read Me'!$C$3="Nederlands","Emissies (voor geselecteerde voertuig) ","Emissions (selected vehicle ") -> Emissies (voor geselecteerde voertuig)
C79: =IF('Read Me'!$C$3="Nederlands","CO2 emissies (ton per jaar, WtW) ","CO2 emissions (tonne per year, WtW) ") -> CO2 emissies (ton per jaar, WtW) | D79: =Calculatie!$B$40 -> 64.71607769 | E79: =Calculatie!$C$40 -> 0 | F79: =Calculatie!$D$40 -> 0 | G79: =F79 -> 0
C80: =IF('Read Me'!$C$3="Nederlands","PM totaal (kg per jaar, TtW) ","PM total (kg per year, TtW) ") -> PM totaal (kg per jaar, TtW) | D80: =Calculatie!$B$41+Calculatie!$B$42 -> 6.45622742 | E80: =Calculatie!$C$41+Calculatie!$C$42 -> 5.684481648 | F80: =Calculatie!$D$41+Calculatie!$D$42 -> 5.684481648 | G80: =E80 -> 5.684481648
C81: =IF('Read Me'!$C$3="Nederlands","NOx (kg per jaar, TtW) ","NOx (kg per year, TtW) ") -> NOx (kg per jaar, TtW) | D81: =MIN(Calculatie!$B$43,Calculatie!$B$45) -> 43.24920826 | E81: n.v.t. | F81: n.v.t. | G81: =D81 -> 43.24920826
B83: =IF('Read Me'!$C$3="Nederlands","ONDERBOUWING KOSTENBEREKENING","SUBSTANTIATION OF COST CALCULATIONS") -> ONDERBOUWING KOSTENBEREKENING
C84: =IF('Read Me'!$C$3="Nederlands","Vaste kosten per jaar (a) ","Fixed annual costs (a) ") -> Vaste kosten per jaar (a) | D84: =SUM(D85:D90) -> 10182.15024 | E84: =SUM(E85:E90) -> 17637.95473 | F84: =SUM(F85:F90) -> 27137.64535 | G84: =SUM(G85:G90) -> 823.79136
C85: =IF('Read Me'!$C$3="Nederlands","Wegenbelasting ","Road taks ") -> Wegenbelasting | D85: =INDEX(OperationeleKostenPerType[[#All],[Wegenbelasting]],MATCH(Calculatie!$C$3,OperationeleKostenPerType[[#All],[Type ID]],0)) -> 315.9 | E85: 0 | F85: 0 | G85: 0
C86: =IF('Read Me'!$C$3="Nederlands","Eurovignet ","Eurovignette ") -> Eurovignet | D86: =INDEX(OperationeleKostenPerType[[#All],[Eurovignet]],MATCH(Calculatie!$C$3,OperationeleKostenPerType[[#All],[Type ID]],0)) -> 750 | E86: =INDEX(OperationeleKostenPerType[[#All],[Eurovignet]],MATCH(Calculatie!$C$3,OperationeleKostenPerType[[#All],[Type ID]],0)) -> 750 | F86: =INDEX(OperationeleKostenPerType[[#All],[Eurovignet]],MATCH(Calculatie!$C$3,OperationeleKostenPerType[[#All],[Type ID]],0)) -> 750 | G86: =INDEX(OperationeleKostenPerType[[#All],[Eurovignet]],MATCH(Calculatie!$C$3,OperationeleKostenPerType[[#All],[Type ID]],0)) -> 750
C87: =IF('Read Me'!$C$3="Nederlands","Rente ","Interest ") -> Rente | D87: =AVERAGE($D$51,$D$52)*INDEX(FinPar[[#All],[Waarde]],MATCH("Rente",FinPar[[#All],[Variabele]],0)) -> 3918.35012 | E87: =AVERAGE($E$51,$E$52)*INDEX(FinPar[[#All],[Waarde]],MATCH("Rente",FinPar[[#All],[Variabele]],0)) -> 7050.775951 | F87: =AVERAGE($F$51,$F$52)*INDEX(FinPar[[#All],[Waarde]],MATCH("Rente",FinPar[[#All],[Variabele]],0)) -> 11034.33366 | G87: =AVERAGE($G$51,$G$52)*INDEX(FinPar[[#All],[Waarde]],MATCH("Rente",FinPar[[#All],[Variabele]],0)) -> 0
C88: =IF('Read Me'!$C$3="Nederlands","Verzekering ","Insurance ") -> Verzekering | D88: =$D$48*INDEX(FinPar[[#All],[Waarde]],MATCH("Verzekering",FinPar[[#All],[Variabele]],0)) -> 5124.108763 | E88: =$E$48*INDEX(FinPar[[#All],[Waarde]],MATCH("Verzekering",FinPar[[#All],[Variabele]],0)) -> 9763.387416 | F88: =$F$48*INDEX(FinPar[[#All],[Waarde]],MATCH("Verzekering",FinPar[[#All],[Variabele]],0)) -> 15279.52032 | G88: =$G$48*INDEX(FinPar[[#All],[Waarde]],MATCH("Verzekering",FinPar[[#All],[Variabele]],0)) -> 0
C89: =IF('Read Me'!$C$3="Nederlands","Voertuigheffing ","Vehicle tax ") -> Voertuigheffing | D89: =IF($G$17=Config!$A$11,'Input-Output Module'!$F$17,0) -> 0 | E89: 0 | F89: 0 | G89: 0
C90: =IF('Read Me'!$C$3="Nederlands","Diverse overige voertuigkosten ","Miscellaneous vehicle costs ") -> Diverse overige voertuigkosten | D90: =INDEX(OperationeleKostenPerType[[#All],[Versch. voertuigkosten]],MATCH(Calculatie!$C$3,OperationeleKostenPerType[[#All],[Type ID]],0)) -> 73.79136 | E90: =INDEX(OperationeleKostenPerType[[#All],[Versch. voertuigkosten]],MATCH(Calculatie!$C$3,OperationeleKostenPerType[[#All],[Type ID]],0)) -> 73.79136 | F90: =INDEX(OperationeleKostenPerType[[#All],[Versch. voertuigkosten]],MATCH(Calculatie!$C$3,OperationeleKostenPerType[[#All],[Type ID]],0)) -> 73.79136 | G90: =INDEX(OperationeleKostenPerType[[#All],[Versch. voertuigkosten]],MATCH(Calculatie!$C$3,OperationeleKostenPerType[[#All],[Type ID]],0)) -> 73.79136
C92: =IF('Read Me'!$C$3="Nederlands","Variabele kosten per jaar (b) ","Variable annual costs (b) ") -> Variabele kosten per jaar (b) | D92: =SUM(D93:D106) -> 56127.79712 | E92: =SUM(E93:E106) -> 61341.91051 | F92: =SUM(F93:F106) -> 174771.8796 | G92: =SUM(G93:G106) -> 7709.365855
C93: =IF('Read Me'!$C$3="Nederlands","Afschrijving voertuig ","Depriciation vehicle ") -> Afschrijving voertuig | D93: =(D$51-D$52)/D$36 -> 16584.15 | E93: =(E$51-E$52)/E$36 -> 28792.16057 | F93: =(F$51-F$52)/F$36 -> 45059.19758 | G93: =(G$51-G$52)/G$36 -> 0
C94: =IF('Read Me'!$C$3="Nederlands","Brandstofverbruik voertuig ","Fuel consumption vehicle ") -> Brandstofverbruik voertuig | D94: =Calculatie!$B$35 -> 31834.28127 | E94: 0 | F94: 0 | G94: 0
C95: =IF('Read Me'!$C$3="Nederlands","Brandstofverbruik koeling ","Fuel consumption cooling unit ") -> Brandstofverbruik koeling | D95: =Calculatie!$B$36 -> 0 | E95: 0 | F95: 0 | G95: 0
C96: =IF('Read Me'!$C$3="Nederlands","Elektriciteitsverbruik ","Electricity consumption ") -> Elektriciteitsverbruik | D96: 0 | E96: =Calculatie!$C$37 -> 27382.28185 | F96: 0 | G96: 0
C97: =IF('Read Me'!$C$3="Nederlands","H2 verbruik ","H2 Consumption ") -> H2 verbruik | D97: 0 | E97: 0 | F97: =Calculatie!$D$37 -> 118146.848 | G97: =Calculatie!$E$37 -> 0
C98: =IF('Read Me'!$C$3="Nederlands","Adblue verbruik ","Adblue consumption ") -> Adblue verbruik | D98: =Calculatie!$B$47 -> 342.7147648 | E98: 0 | F98: 0 | G98: =Calculatie!$E$47 -> 342.7147648
C99: =IF('Read Me'!$C$3="Nederlands","Banden ","Tires ") -> Banden | D99: =INDEX(OperationeleKostenPerType[[#All],[Bandenkosten (€/km)]],MATCH(Calculatie!$C$3,OperationeleKostenPerType[[#All],[Type ID]],0))*Kilometrage -> 1569.18384 | E99: =INDEX(OperationeleKostenPerType[[#All],[Bandenkosten (€/km)]],MATCH(Calculatie!$C$3,OperationeleKostenPerType[[#All],[Type ID]],0))*Kilometrage -> 1569.18384 | F99: =INDEX(OperationeleKostenPerType[[#All],[Bandenkosten (€/km)]],MATCH(Calculatie!$C$3,OperationeleKostenPerType[[#All],[Type ID]],0))*Kilometrage -> 1569.18384 | G99: =INDEX(OperationeleKostenPerType[[#All],[Bandenkosten (€/km)]],MATCH(Calculatie!$C$3,OperationeleKostenPerType[[#All],[Type ID]],0))*Kilometrage -> 1569.18384
C100: =IF('Read Me'!$C$3="Nederlands","Onderhoud ","Maintenance ") -> Onderhoud | D100: =INDEX(EnergieverbruikEnOnderhoudPerType[[#All],[Onderhoud DV '[€/km']]],MATCH(Calculatie!$C$3,EnergieverbruikEnOnderhoudPerType[[#All],[Type ID]],0))*Kilometrage -> 4398.366 | E100: =INDEX(EnergieverbruikEnOnderhoudPerType[[#All],[Onderhoud EV '[€/km']]],MATCH(Calculatie!$C$3,EnergieverbruikEnOnderhoudPerType[[#All],[Type ID]],0))*Kilometrage -> 2199.183 | F100: =INDEX(EnergieverbruikEnOnderhoudPerType[[#All],[Onderhoud FC '[€/km']]],MATCH(Calculatie!$C$3,EnergieverbruikEnOnderhoudPerType[[#All],[Type ID]],0))*Kilometrage -> 6597.549 | G100: =INDEX(EnergieverbruikEnOnderhoudPerType[[#All],[Onderhoud DV '[€/km']]],MATCH(Calculatie!$C$3,EnergieverbruikEnOnderhoudPerType[[#All],[Type ID]],0))*Kilometrage -> 4398.366
C101: =IF('Read Me'!$C$3="Nederlands","Reparatie ","Repairs ") -> Reparatie | D101: =D37 -> 1000 | E101: =E37 -> 1000 | F101: 3000 | G101: 1000
C102: =IF('Read Me'!$C$3="Nederlands","Reparatie/onderhoud koelunit ","Repairs/maintenance cooling unit ") -> Reparatie/onderhoud koelunit | D102: =INDEX(OperationeleKostenPerType[[#All],[Onderhoud koeling]],MATCH(Calculatie!$C$3,OperationeleKostenPerType[[#All],[Type ID]],0))*Calculatie!$B$14*IF(Koeling=Config!$A$11,INDEX(InzetVoertuigPar[[#All],[Waarde]],MATCH("Aandeel koelunit",InzetVoertuigPar[[#All],[Variabele]],0)),0) -> 0 | E102: =INDEX(OperationeleKostenPerType[[#All],[Onderhoud koeling]],MATCH(Calculatie!$C$3,OperationeleKostenPerType[[#All],[Type ID]],0))*Calculatie!$B$14*IF(Koeling=Config!$A$11,INDEX(InzetVoertuigPar[[#All],[Waarde]],MATCH("Aandeel koelunit",InzetVoertuigPar[[#All],[Variabele]],0)),0) -> 0 | F102: =INDEX(OperationeleKostenPerType[[#All],[Onderhoud koeling]],MATCH(Calculatie!$C$3,OperationeleKostenPerType[[#All],[Type ID]],0))*Calculatie!$B$14*IF(Koeling=Config!$A$11,INDEX(InzetVoertuigPar[[#All],[Waarde]],MATCH("Aandeel koelunit",InzetVoertuigPar[[#All],[Variabele]],0)),0) -> 0 | G102: =INDEX(OperationeleKostenPerType[[#All],[Onderhoud koeling]],MATCH(Calculatie!$C$3,OperationeleKostenPerType[[#All],[Type ID]],0))*Calculatie!$B$14*IF(Koeling=Config!$A$11,INDEX(InzetVoertuigPar[[#All],[Waarde]],MATCH("Aandeel koelunit",InzetVoertuigPar[[#All],[Variabele]],0)),0) -> 0
C103: =IF('Read Me'!$C$3="Nederlands","Verschil Tolheffing (km-tarief) ","Difference tolls (km-rate) ") -> Verschil Tolheffing (km-tarief) | D103: =IF($G$15=Config!$A$11,Kilometrage*'Input-Output Module'!$F$15*'Input-Output Module'!$F$16,0) -> 0 | E103: 0 | F103: 0 | G103: =IF($G$15=Config!$A$11,Kilometrage*'Input-Output Module'!$F$15*'Input-Output Module'!$F$16,0) -> 0
C104: =IF('Read Me'!$C$3="Nederlands","CO2-prijs ","CO2-price ") -> CO2-prijs | D104: =IF($G$18=Config!$A$11,'Input-Output Module'!$D$79*'Input-Output Module'!$F$18,0) -> 0 | E104: =IF($G$18=Config!$A$11,'Input-Output Module'!$D$79*'Input-Output Module'!$F$18,0) -> 0 | F104: =IF($G$18=Config!$A$11,'Input-Output Module'!$D$79*'Input-Output Module'!$F$18,0) -> 0 | G104: =IF($G$18=Config!$A$11,'Input-Output Module'!$D$79*'Input-Output Module'!$F$18,0) -> 0
C105: =IF('Read Me'!$C$3="Nederlands","Hernieuwbare Brandstof-Eenheden (HBE's) ","Renewable Fuel Costs (HBE's) ") -> Hernieuwbare Brandstof-Eenheden (HBE's) | D105: 0 | E105: =-IF($F$22=Config!$A$11,'Input-Output Module'!$F$26,0) -> 0 | F105: =IF($G$22=Config!$A$11,'Input-Output Module'!$G$26,0) -> 0 | G105: =IF($G$22=Config!$A$11,Calculatie!E56*'Input-Output Module'!G25,0) -> 0
C106: =IF('Read Me'!$C$3="Nederlands","Specifieke vervoerskosten ","Specific vehicle costs ") -> Specifieke vervoerskosten | D106: =INDEX(OperationeleKostenPerType[[#All],[Speciale transportkosten]],MATCH(Calculatie!$C$3,OperationeleKostenPerType[[#All],[Type ID]],0)) -> 399.10125 | E106: =INDEX(OperationeleKostenPerType[[#All],[Speciale transportkosten]],MATCH(Calculatie!$C$3,OperationeleKostenPerType[[#All],[Type ID]],0)) -> 399.10125 | F106: =INDEX(OperationeleKostenPerType[[#All],[Speciale transportkosten]],MATCH(Calculatie!$C$3,OperationeleKostenPerType[[#All],[Type ID]],0)) -> 399.10125 | G106: =INDEX(OperationeleKostenPerType[[#All],[Speciale transportkosten]],MATCH(Calculatie!$C$3,OperationeleKostenPerType[[#All],[Type ID]],0)) -> 399.10125
C108: =IF('Read Me'!$C$3="Nederlands","Kosten oplaadsysteem per jaar (c) ","Annual costs charging system (c) ") -> Kosten oplaadsysteem per jaar (c) | D108: =D110+D109 -> 0 | E108: =E110+E109 -> 7358.609502 | F108: =F110+F109 -> 0 | G108: =G110+G109 -> 0
C109: =IF('Read Me'!$C$3="Nederlands","Aankoop en installatie ","Purchase and installation ") -> Aankoop en installatie | D109: 0 | E109: =IF($D$56=Config!$A$31,'Input-Output Module'!$D$62/INDEX(LaadinfraPrivaat[[#All],[Afschrijftermijn]],MATCH('Input-Output Module'!$E$68,LaadinfraPrivaat[[#All],[Power]],0)),$F$61*Calculatie!$C$50) -> 2990.811901 | F109: 0 | G109: 0
C110: =IF('Read Me'!$C$3="Nederlands","Operationele kosten ","Operational costs ") -> Operationele kosten | D110: 0 | E110: =IF($D$56=Config!$A$31,INDEX(LaadinfraPrivaat[[#All],[Operational costs annual (€)]],MATCH('Input-Output Module'!$E$68,LaadinfraPrivaat[[#All],[Power]],0)),$F$62*Calculatie!$C$50) -> 4367.797601 | F110: 0 | G110: 0
C112: =IF('Read Me'!$C$3="Nederlands","Totaal voertuig en systeem (a+b+c) per jaar ","Total vehicle and charging (a+b+c) per annum ") -> Totaal voertuig en systeem (a+b+c) per jaar | D112: =D108+D92+D84 -> 66309.94736 | E112: =E108+E92+E84 -> 86338.47474 | F112: =F108+F92+F84 -> 201909.525 | G112: =G108+G92+G84 -> 8533.157215
C113: =IF('Read Me'!$C$3="Nederlands","per km ","per km ") -> per km | D113: =D112/Kilometrage -> 0.9472849624 | E113: =E112/Kilometrage -> 1.233406782 | F113: =F112/Kilometrage -> 2.884421785 | G113: =G112/Kilometrage -> 0.1219022459
C114: =IF('Read Me'!$C$3="Nederlands","per productief uur ","per productive hour ") -> per productief uur | D114: =D112/D38 -> 25.50382591 | E114: =E112/E38 -> 33.20710567 | F114: =F112/F38 -> 77.6575096 | G114: =G112/G38 -> 3.281983544
C116: =IF('Read Me'!$C$3="Nederlands","Chauffeurskosten per jaar (d) ","Driver costs per annum (d) ") -> Chauffeurskosten per jaar (d) | D116: =SUM(D117:D119) -> 85774 | E116: =SUM(E117:E119) -> 89366.31933 | F116: =SUM(F117:F119) -> 85774 | G116: =SUM(G117:G119) -> 85774
C117: =_xlfn.CONCAT( IF('Read Me'!$C$3="Nederlands","Uurloon incl. sociale lasten (","Hourly wage (incl. social charges) ("),TEXT(INDEX(Voertuigen[[#All],[Uurloon]],MATCH(Calculatie!$C$2,Voertuigen[[#All],[Voertuig ID]],0)),"€#.##0,00"),")") -> Uurloon incl. sociale lasten (€31,48) | D117: =INDEX(Voertuigen[[#All],[Uurloon]],MATCH(Calculatie!$C$2,Voertuigen[[#All],[Voertuig ID]],0))*D38 -> 81848 | E117: =INDEX(Voertuigen[[#All],[Uurloon]],MATCH(Calculatie!$C$2,Voertuigen[[#All],[Voertuig ID]],0))*E38 +INDEX(Voertuigen[[#All],[Uurloon]],MATCH(Calculatie!$C$2,Voertuigen[[#All],[Voertuig ID]],0)) * 'M1-PowerSupply'!$B$44 * Calculatie!$C$13 -> 85440.31933 | F117: =INDEX(Voertuigen[[#All],[Uurloon]],MATCH(Calculatie!$C$2,Voertuigen[[#All],[Voertuig ID]],0))*F38 -> 81848 | G117: =INDEX(Voertuigen[[#All],[Uurloon]],MATCH(Calculatie!$C$2,Voertuigen[[#All],[Voertuig ID]],0))*G38 -> 81848
C118: =_xlfn.CONCAT( IF('Read Me'!$C$3="Nederlands","Verblijfkostenvergoeding (","Accommodation allowance ("),TEXT(INDEX(FinPar[[#All],[Waarde]],MATCH("Verblijfkostenvergoeding",FinPar[[#All],[Variabele]],0)),"€#.##0,00"),")") -> Verblijfkostenvergoeding (€0,97) | D118: =INDEX(FinPar[[#All],[Waarde]],MATCH("Verblijfkostenvergoeding",FinPar[[#All],[Variabele]],0))*D38 -> 2522 | E118: =INDEX(FinPar[[#All],[Waarde]],MATCH("Verblijfkostenvergoeding",FinPar[[#All],[Variabele]],0))*E38 -> 2522 | F118: =INDEX(FinPar[[#All],[Waarde]],MATCH("Verblijfkostenvergoeding",FinPar[[#All],[Variabele]],0))*F38 -> 2522 | G118: =INDEX(FinPar[[#All],[Waarde]],MATCH("Verblijfkostenvergoeding",FinPar[[#All],[Variabele]],0))*G38 -> 2522
C119: =_xlfn.CONCAT( IF('Read Me'!$C$3="Nederlands","Overige kosten (","Other costs ("),TEXT(INDEX(FinPar[[#All],[Waarde]],MATCH("Overige chauffeurskosten",FinPar[[#All],[Variabele]],0)),"€#.##0,00"),")") -> Overige kosten (€0,54) | D119: =INDEX(FinPar[[#All],[Waarde]],MATCH("Overige chauffeurskosten",FinPar[[#All],[Variabele]],0))*D38 -> 1404 | E119: =INDEX(FinPar[[#All],[Waarde]],MATCH("Overige chauffeurskosten",FinPar[[#All],[Variabele]],0))*E38 -> 1404 | F119: =INDEX(FinPar[[#All],[Waarde]],MATCH("Overige chauffeurskosten",FinPar[[#All],[Variabele]],0))*F38 -> 1404 | G119: =INDEX(FinPar[[#All],[Waarde]],MATCH("Overige chauffeurskosten",FinPar[[#All],[Variabele]],0))*G38 -> 1404
C121: =IF('Read Me'!$C$3="Nederlands","Totale directe kosten (a+b+c+d) per jaar ","Total direct costs (a+b+c+d) per annum ") -> Totale directe kosten (a+b+c+d) per jaar | D121: =D112+D116 -> 152083.9474 | E121: =E112+E116 -> 175704.7941 | F121: =F112+F116 -> 287683.525 | G121: =G112+G116 -> 94307.15721
C122: =IF('Read Me'!$C$3="Nederlands","per km ","per km ") -> per km | D122: =D121/Kilometrage -> 2.172627819 | E122: =E121/Kilometrage -> 2.510068487 | F122: =F121/Kilometrage -> 4.109764642 | G122: =G121/Kilometrage -> 1.347245103
C123: =IF('Read Me'!$C$3="Nederlands","per productief uur ","per productive hour ") -> per productief uur | D123: =D121/D38 -> 58.49382591 | E123: =E121/E38 -> 67.57876695 | F123: =F121/F38 -> 110.6475096 | G123: =G121/G38 -> 36.27198354
C125: =IF('Read Me'!$C$3="Nederlands","Algemene kosten (overhead) per jaar (e) ","General costs (overhead) per annum (e) ") -> Algemene kosten (overhead) per jaar (e) | D125: =SUM(D126:D128) -> 24333.43158 | E125: =SUM(E126:E128) -> 28112.76705 | F125: =SUM(F126:F128) -> 46029.364 | G125: =SUM(G126:G128) -> 15089.14515
C126: =_xlfn.CONCAT( IF('Read Me'!$C$3="Nederlands","Loon incl. sociale lasten (","Wage (incl. social charges) ("),TEXT(INDEX(FinPar[[#All],[Waarde]],MATCH("Loon incl. sociale lasten",FinPar[[#All],[Variabele]],0)),"#,0%"),")") -> Loon incl. sociale lasten (8,4%) | D126: =INDEX(FinPar[[#All],[Waarde]],MATCH("Loon incl. sociale lasten",FinPar[[#All],[Variabele]],0))*D121 -> 12775.05158 | E126: =INDEX(FinPar[[#All],[Waarde]],MATCH("Loon incl. sociale lasten",FinPar[[#All],[Variabele]],0))*E121 -> 14759.2027 | F126: =INDEX(FinPar[[#All],[Waarde]],MATCH("Loon incl. sociale lasten",FinPar[[#All],[Variabele]],0))*F121 -> 24165.4161 | G126: =INDEX(FinPar[[#All],[Waarde]],MATCH("Loon incl. sociale lasten",FinPar[[#All],[Variabele]],0))*G121 -> 7921.801206
C127: =_xlfn.CONCAT( IF('Read Me'!$C$3="Nederlands","Huisvesting (","Housing ("),TEXT(INDEX(FinPar[[#All],[Waarde]],MATCH("Huisvesting",FinPar[[#All],[Variabele]],0)),"#,0%"),")") -> Huisvesting (2,6%) | D127: =INDEX(FinPar[[#All],[Waarde]],MATCH("Huisvesting",FinPar[[#All],[Variabele]],0))*D121 -> 3954.182631 | E127: =INDEX(FinPar[[#All],[Waarde]],MATCH("Huisvesting",FinPar[[#All],[Variabele]],0))*E121 -> 4568.324646 | F127: =INDEX(FinPar[[#All],[Waarde]],MATCH("Huisvesting",FinPar[[#All],[Variabele]],0))*F121 -> 7479.771649 | G127: =INDEX(FinPar[[#All],[Waarde]],MATCH("Huisvesting",FinPar[[#All],[Variabele]],0))*G121 -> 2451.986088
C128: =_xlfn.CONCAT( IF('Read Me'!$C$3="Nederlands","Overig (","Other ("),TEXT(INDEX(FinPar[[#All],[Waarde]],MATCH("Overig overhead",FinPar[[#All],[Variabele]],0)),"#,0%"),")") -> Overig (5,0%) | D128: =INDEX(FinPar[[#All],[Waarde]],MATCH("Overig overhead",FinPar[[#All],[Variabele]],0))*D121 -> 7604.197368 | E128: =INDEX(FinPar[[#All],[Waarde]],MATCH("Overig overhead",FinPar[[#All],[Variabele]],0))*E121 -> 8785.239703 | F128: =INDEX(FinPar[[#All],[Waarde]],MATCH("Overig overhead",FinPar[[#All],[Variabele]],0))*F121 -> 14384.17625 | G128: =INDEX(FinPar[[#All],[Waarde]],MATCH("Overig overhead",FinPar[[#All],[Variabele]],0))*G121 -> 4715.357861

Sheet M3-TCO-laadplein
B3: =Config!$A$54 -> Stap 1 Vul het verwachte aantal elektrische vrachtvoertuigen per type op uw vestiging in de huidige situatie en in de komende tien jaar (per 2 jaar). Houd hierbij rekening met het aantal voertuigen dat tegelijk zal opladen (waardoor tegelijkertijd een laadbehoefte ontstaat). Belangrijk: Het invullen van het totale wagenpark moet voor ieder jaar afzonderlijk gebeuren. Vul in de eerste kolom het huidige aantal e-voertuigen in dat u al heeft. | J3: =Config!$A$55 -> Stap 2 Geef het verwachte jaarkilometrage (per voertuigtype) van uw voertuigen op. Op basis hiervan is een gemiddelde per dag berekend. Als dit sterk afwijkt van uw maximale dagelijkse afstand, vul dan zelf deze waarde in (kolom [Maximum per dag]). Per voertuigtype is een inschatting gemaakt van het gemiddelde energieverbruik. Weet u het energieverbruik? Vul deze dan zelf in de kolom [Eigen input] in. | P3: =Config!$A$56 -> Stap 3 Vul per voertuigtype de hoeveel tijd (uren) in dat de vrachtwagens per dag kunnen opladen. Op basis van de benodigde energievraag wordt de kleinst mogelijke laadpaal berekend. U kunt deze vervangen met een eigen keuze. Let op: u kunt alleen een laadpaal met een hoger vermogen kiezen.
C6: =IF('Read Me'!$C$3="Nederlands", "Stel uw vloot samen", "set up your vehicle park" ) -> Stel uw vloot samen | J6: =IF('Read Me'!$C$3="Nederlands","Kilometrage [km]","Mileage [km]") -> Kilometrage [km] | M6: =IF('Read Me'!$C$3="Nederlands","Energie gebruik [kWh/km]","Energy use [kWh/km]") -> Energie gebruik [kWh/km] | O6: =IF('Read Me'!$C$3="Nederlands","Jaarlijks energie gebruik per voertuig [kWh]","Yearly energy use per vehicle [kWh]") -> Jaarlijks energie gebruik per voertuig [kWh] | P6: =IF('Read Me'!$C$3="Nederlands","Aantal uren per dag terug op depot","Amount of hours on own location") -> Aantal uren per dag terug op depot | Q6: =IF('Read Me'!$C$3="Nederlands","Kleinst bruikbare laadpaal","Least heavy charging station") -> Kleinst bruikbare laadpaal | R6: =IF('Read Me'!$C$3="Nederlands","Minimaal aantal benodigde laadpalen in:","Minimum charging stations needed in:") -> Minimaal aantal benodigde laadpalen in:
J7: =IF('Read Me'!$C$3="Nederlands","Jaarlijks per voertuig","annually per vehicle") -> Jaarlijks per voertuig | K7: =IF('Read Me'!$C$3="Nederlands","Gemiddeld per dag","Daily average") -> Gemiddeld per dag | L7: =IF('Read Me'!$C$3="Nederlands","Maximum per dag","Daily max") -> Maximum per dag | M7: =IF('Read Me'!$C$3="Nederlands","Advies","Advice") -> Advies | N7: =IF('Read Me'!$C$3="Nederlands","Eigen input","Own input") -> Eigen input
D8: ='Input-Output Module'!$D$20 -> 2023 | E8: =D8+2 -> 2025 | F8: =E8+2 -> 2027 | G8: 2029 | H8: 2031 | I8: 2033 | R8: =D8 -> 2023 | S8: =E8 -> 2025 | T8: 2027 | U8: 2029 | V8: 2031 | W8: 2033
C9: Bestelwagens (tot 3,5 ton) | D9: 0 | E9: =$D$9 -> 0 | F9: =$E$9 -> 0 | G9: =$F$9 -> 0 | H9: =$G$9 -> 0 | I9: =$H$9 -> 0 | J9: 30000 | K9: =J9/INDEX(InzetVoertuigPar[[#All],[Waarde]],MATCH("Productieve dagen per jaar",InzetVoertuigPar[[#All],[Variabele]],0)) -> 115.3846154 | M9: =IF(C9=$C$9,0.3,INDEX(EnergieverbruikEnOnderhoudPerType[[#All],[Rijden EV '[kWh/km']]],MATCH('M3-TCO-laadplein'!B9,EnergieverbruikEnOnderhoudPerType[[#All],[Type ID]],0))) -> 0.3 | O9: =IF(N9<>"",N9,M9)*J9 -> 9000 | P9: 8 | Q9: =IFERROR(INDEX(LaadinfraPrivaat[[#All],[Charging type]],MATCH((IF($L$9>0,$L$9,$K$9)*IF($N$9>0,$N$9,$M$9))/$P$9,LaadinfraPrivaat[[#All],[Power (kW)]],-1)),Config!$A$57) -> AC11 | R9: =ROUNDUP((D9*(IF($L9<>"",$L9,$K9)*IF($N9<>"",$N9,$M9))/$P9)/INDEX(LaadinfraPrivaat[[#All],[Power (kW)]],MATCH('M3-TCO-laadplein'!Q9,LaadinfraPrivaat[[#All],[Charging type]],0)),0) -> 0 | S9: =ROUNDUP((E9*(IF($L9<>"",$L9,$K9)*IF($N9<>"",$N9,$M9))/$P9)/INDEX(LaadinfraPrivaat[[#All],[Power (kW)]],MATCH('M3-TCO-laadplein'!Q9,LaadinfraPrivaat[[#All],[Charging type]],0)),0) -> 0 | T9: =ROUNDUP((F9*(IF($L9<>"",$L9,$K9)*IF($N9<>"",$N9,$M9))/$P9)/INDEX(LaadinfraPrivaat[[#All],[Power (kW)]],MATCH('M3-TCO-laadplein'!Q9,LaadinfraPrivaat[[#All],[Charging type]],0)),0) -> 0 | U9: =ROUNDUP((G9*(IF($L9<>"",$L9,$K9)*IF($N9<>"",$N9,$M9))/$P9)/INDEX(LaadinfraPrivaat[[#All],[Power (kW)]],MATCH('M3-TCO-laadplein'!Q9,LaadinfraPrivaat[[#All],[Charging type]],0)),0) -> 0 | V9: =ROUNDUP((H9*(IF($L9<>"",$L9,$K9)*IF($N9<>"",$N9,$M9))/$P9)/INDEX(LaadinfraPrivaat[[#All],[Power (kW)]],MATCH('M3-TCO-laadplein'!Q9,LaadinfraPrivaat[[#All],[Charging type]],0)),0) -> 0 | W9: =ROUNDUP((I9*(IF($L9<>"",$L9,$K9)*IF($N9<>"",$N9,$M9))/$P9)/INDEX(LaadinfraPrivaat[[#All],[Power (kW)]],MATCH('M3-TCO-laadplein'!Q9,LaadinfraPrivaat[[#All],[Charging type]],0)),0) -> 0
B10: 1 | C10: =IF('Read Me'!$C$3="Nederlands", "Kleine bakwagen (lvm <12 ton)", "Small truck (load <12 tonnes)" ) -> Kleine bakwagen (lvm <12 ton) | D10: 0 | E10: =$D$10 -> 0 | F10: =$E$10 -> 0 | G10: =$F$10 -> 0 | H10: =$G$10 -> 0 | I10: =$H$10 -> 0 | J10: =INDEX(Voertuigen[[#All],[Kilometrage]],MATCH($B$10,Voertuigen[[#All],[Type ID]],0)) -> 35000 | K10: =J10/INDEX(InzetVoertuigPar[[#All],[Waarde]],MATCH("Productieve dagen per jaar",InzetVoertuigPar[[#All],[Variabele]],0)) -> 134.6153846 | M10: =IF(C10=$C$9,0.3,INDEX(EnergieverbruikEnOnderhoudPerType[[#All],[Rijden EV '[kWh/km']]],MATCH('M3-TCO-laadplein'!B10,EnergieverbruikEnOnderhoudPerType[[#All],[Type ID]],0))) -> 0.4815411342 | O10: =IF(N10<>"",N10,M10)*J10 -> 16853.9397 | P10: 8 | Q10: =IFERROR(INDEX(LaadinfraPrivaat[[#All],[Charging type]],MATCH((IF($L$10>0,$L$10,$K$10)*IF($N$10>0,$N$10,$M$10))/P10,LaadinfraPrivaat[[#All],[Power (kW)]],-1)),Config!$A$57) -> AC11 | R10: =ROUNDUP((D10*(IF($L10<>"",$L10,$K10)*IF($N10<>"",$N10,$M10))/$P10)/INDEX(LaadinfraPrivaat[[#All],[Power (kW)]],MATCH('M3-TCO-laadplein'!Q10,LaadinfraPrivaat[[#All],[Charging type]],0)),0) -> 0 | S10: =ROUNDUP((E10*(IF($L10<>"",$L10,$K10)*IF($N10<>"",$N10,$M10))/$P10)/INDEX(LaadinfraPrivaat[[#All],[Power (kW)]],MATCH('M3-TCO-laadplein'!Q10,LaadinfraPrivaat[[#All],[Charging type]],0)),0) -> 0 | T10: =ROUNDUP((F10*(IF($L10<>"",$L10,$K10)*IF($N10<>"",$N10,$M10))/$P10)/INDEX(LaadinfraPrivaat[[#All],[Power (kW)]],MATCH('M3-TCO-laadplein'!Q10,LaadinfraPrivaat[[#All],[Charging type]],0)),0) -> 0 | U10: =ROUNDUP((G10*(IF($L10<>"",$L10,$K10)*IF($N10<>"",$N10,$M10))/$P10)/INDEX(LaadinfraPrivaat[[#All],[Power (kW)]],MATCH('M3-TCO-laadplein'!Q10,LaadinfraPrivaat[[#All],[Charging type]],0)),0) -> 0 | V10: =ROUNDUP((H10*(IF($L10<>"",$L10,$K10)*IF($N10<>"",$N10,$M10))/$P10)/INDEX(LaadinfraPrivaat[[#All],[Power (kW)]],MATCH('M3-TCO-laadplein'!Q10,LaadinfraPrivaat[[#All],[Charging type]],0)),0) -> 0 | W10: =ROUNDUP((I10*(IF($L10<>"",$L10,$K10)*IF($N10<>"",$N10,$M10))/$P10)/INDEX(LaadinfraPrivaat[[#All],[Power (kW)]],MATCH('M3-TCO-laadplein'!Q10,LaadinfraPrivaat[[#All],[Charging type]],0)),0) -> 0
B11: 2 | C11: =IF('Read Me'!$C$3="Nederlands", "Medium bakwagen (lvm 12-18 ton)", "Medium size truck (load 12-18 tonnes)" ) -> Medium bakwagen (lvm 12-18 ton) | D11: 0 | E11: =$D$11 -> 0 | F11: =$E$11 -> 0 | G11: =$F$11 -> 0 | H11: =$G$11 -> 0 | I11: =$H$11 -> 0 | J11: =INDEX(Voertuigen[[#All],[Kilometrage]],MATCH($B$11,Voertuigen[[#All],[Type ID]],0)) -> 70000 | K11: =J11/INDEX(InzetVoertuigPar[[#All],[Waarde]],MATCH("Productieve dagen per jaar",InzetVoertuigPar[[#All],[Variabele]],0)) -> 269.2307692 | M11: =IF(C11=$C$9,0.3,INDEX(EnergieverbruikEnOnderhoudPerType[[#All],[Rijden EV '[kWh/km']]],MATCH('M3-TCO-laadplein'!B11,EnergieverbruikEnOnderhoudPerType[[#All],[Type ID]],0))) -> 0.9475888443 | O11: =IF(N11<>"",N11,M11)*J11 -> 66331.2191 | P11: 8 | Q11: =IFERROR(INDEX(LaadinfraPrivaat[[#All],[Charging type]],MATCH((IF($L$11>0,$L$11,$K$11)*IF($N$11>0,$N$11,$M$11))/P11,LaadinfraPrivaat[[#All],[Power (kW)]],-1)),Config!$A$57) -> FC50 | R11: =ROUNDUP((D11*(IF($L11<>"",$L11,$K11)*IF($N11<>"",$N11,$M11))/$P11)/INDEX(LaadinfraPrivaat[[#All],[Power (kW)]],MATCH('M3-TCO-laadplein'!Q11,LaadinfraPrivaat[[#All],[Charging type]],0)),0) -> 0 | S11: =ROUNDUP((E11*(IF($L11<>"",$L11,$K11)*IF($N11<>"",$N11,$M11))/$P11)/INDEX(LaadinfraPrivaat[[#All],[Power (kW)]],MATCH('M3-TCO-laadplein'!Q11,LaadinfraPrivaat[[#All],[Charging type]],0)),0) -> 0 | T11: =ROUNDUP((F11*(IF($L11<>"",$L11,$K11)*IF($N11<>"",$N11,$M11))/$P11)/INDEX(LaadinfraPrivaat[[#All],[Power (kW)]],MATCH('M3-TCO-laadplein'!Q11,LaadinfraPrivaat[[#All],[Charging type]],0)),0) -> 0 | U11: =ROUNDUP((G11*(IF($L11<>"",$L11,$K11)*IF($N11<>"",$N11,$M11))/$P11)/INDEX(LaadinfraPrivaat[[#All],[Power (kW)]],MATCH('M3-TCO-laadplein'!Q11,LaadinfraPrivaat[[#All],[Charging type]],0)),0) -> 0 | V11: =ROUNDUP((H11*(IF($L11<>"",$L11,$K11)*IF($N11<>"",$N11,$M11))/$P11)/INDEX(LaadinfraPrivaat[[#All],[Power (kW)]],MATCH('M3-TCO-laadplein'!Q11,LaadinfraPrivaat[[#All],[Charging type]],0)),0) -> 0 | W11: =ROUNDUP((I11*(IF($L11<>"",$L11,$K11)*IF($N11<>"",$N11,$M11))/$P11)/INDEX(LaadinfraPrivaat[[#All],[Power (kW)]],MATCH('M3-TCO-laadplein'!Q11,LaadinfraPrivaat[[#All],[Charging type]],0)),0) -> 0
B12: 3 | C12: =IF('Read Me'!$C$3="Nederlands", "Grote bakwagen (lvm >18 ton)", "Large truck (load >18 tonnes)" ) -> Grote bakwagen (lvm >18 ton) | D12: 0 | E12: =$D$12 -> 0 | F12: =$E$12 -> 0 | G12: =$F$12 -> 0 | H12: =$G$12 -> 0 | I12: =$H$12 -> 0 | J12: =INDEX(Voertuigen[[#All],[Kilometrage]],MATCH($B$12,Voertuigen[[#All],[Type ID]],0)) -> 70000 | K12: =J12/INDEX(InzetVoertuigPar[[#All],[Waarde]],MATCH("Productieve dagen per jaar",InzetVoertuigPar[[#All],[Variabele]],0)) -> 269.2307692 | M12: =IF(C12=$C$9,0.3,INDEX(EnergieverbruikEnOnderhoudPerType[[#All],[Rijden EV '[kWh/km']]],MATCH('M3-TCO-laadplein'!B12,EnergieverbruikEnOnderhoudPerType[[#All],[Type ID]],0))) -> 1.343143114 | O12: =IF(N12<>"",N12,M12)*J12 -> 94020.01795 | P12: 8 | Q12: =IFERROR(INDEX(LaadinfraPrivaat[[#All],[Charging type]],MATCH((IF($L$12>0,$L$12,$K$12)*IF($N$12>0,$N$12,$M$12))/P12,LaadinfraPrivaat[[#All],[Power (kW)]],-1)),Config!$A$57) -> FC50 | R12: =ROUNDUP((D12*(IF($L12<>"",$L12,$K12)*IF($N12<>"",$N12,$M12))/$P12)/INDEX(LaadinfraPrivaat[[#All],[Power (kW)]],MATCH('M3-TCO-laadplein'!Q12,LaadinfraPrivaat[[#All],[Charging type]],0)),0) -> 0 | S12: =ROUNDUP((E12*(IF($L12<>"",$L12,$K12)*IF($N12<>"",$N12,$M12))/$P12)/INDEX(LaadinfraPrivaat[[#All],[Power (kW)]],MATCH('M3-TCO-laadplein'!Q12,LaadinfraPrivaat[[#All],[Charging type]],0)),0) -> 0 | T12: =ROUNDUP((F12*(IF($L12<>"",$L12,$K12)*IF($N12<>"",$N12,$M12))/$P12)/INDEX(LaadinfraPrivaat[[#All],[Power (kW)]],MATCH('M3-TCO-laadplein'!Q12,LaadinfraPrivaat[[#All],[Charging type]],0)),0) -> 0 | U12: =ROUNDUP((G12*(IF($L12<>"",$L12,$K12)*IF($N12<>"",$N12,$M12))/$P12)/INDEX(LaadinfraPrivaat[[#All],[Power (kW)]],MATCH('M3-TCO-laadplein'!Q12,LaadinfraPrivaat[[#All],[Charging type]],0)),0) -> 0 | V12: =ROUNDUP((H12*(IF($L12<>"",$L12,$K12)*IF($N12<>"",$N12,$M12))/$P12)/INDEX(LaadinfraPrivaat[[#All],[Power (kW)]],MATCH('M3-TCO-laadplein'!Q12,LaadinfraPrivaat[[#All],[Charging type]],0)),0) -> 0 | W12: =ROUNDUP((I12*(IF($L12<>"",$L12,$K12)*IF($N12<>"",$N12,$M12))/$P12)/INDEX(LaadinfraPrivaat[[#All],[Power (kW)]],MATCH('M3-TCO-laadplein'!Q12,LaadinfraPrivaat[[#All],[Charging type]],0)),0) -> 0
B13: 4 | C13: =IF('Read Me'!$C$3="Nederlands", "Lichte trekker z/opl (GVW <40 ton)", "Light tractor (load <40 tonnes)" ) -> Lichte trekker z/opl (GVW <40 ton) | D13: 0 | E13: =$D$13 -> 0 | F13: =$E$13 -> 0 | G13: =$F$13 -> 0 | H13: =$G$13 -> 0 | I13: =$H$13 -> 0 | J13: =INDEX(Voertuigen[[#All],[Kilometrage]],MATCH($B$13,Voertuigen[[#All],[Type ID]],0)) -> 100000 | K13: =J13/INDEX(InzetVoertuigPar[[#All],[Waarde]],MATCH("Productieve dagen per jaar",InzetVoertuigPar[[#All],[Variabele]],0)) -> 384.6153846 | M13: =IF(C13=$C$9,0.3,INDEX(EnergieverbruikEnOnderhoudPerType[[#All],[Rijden EV '[kWh/km']]],MATCH('M3-TCO-laadplein'!B13,EnergieverbruikEnOnderhoudPerType[[#All],[Type ID]],0))) -> 1.391364971 | O13: =IF(N13<>"",N13,M13)*J13 -> 139136.4971 | P13: 8 | Q13: =IFERROR(INDEX(LaadinfraPrivaat[[#All],[Charging type]],MATCH((IF($L$13>0,$L$13,$K$13)*IF($N$13>0,$N$13,$M$13))/P13,LaadinfraPrivaat[[#All],[Power (kW)]],-1)),Config!$A$57) -> HPC150 | R13: =ROUNDUP((D13*(IF($L13<>"",$L13,$K13)*IF($N13<>"",$N13,$M13))/$P13)/INDEX(LaadinfraPrivaat[[#All],[Power (kW)]],MATCH('M3-TCO-laadplein'!Q13,LaadinfraPrivaat[[#All],[Charging type]],0)),0) -> 0 | S13: =ROUNDUP((E13*(IF($L13<>"",$L13,$K13)*IF($N13<>"",$N13,$M13))/$P13)/INDEX(LaadinfraPrivaat[[#All],[Power (kW)]],MATCH('M3-TCO-laadplein'!Q13,LaadinfraPrivaat[[#All],[Charging type]],0)),0) -> 0 | T13: =ROUNDUP((F13*(IF($L13<>"",$L13,$K13)*IF($N13<>"",$N13,$M13))/$P13)/INDEX(LaadinfraPrivaat[[#All],[Power (kW)]],MATCH('M3-TCO-laadplein'!Q13,LaadinfraPrivaat[[#All],[Charging type]],0)),0) -> 0 | U13: =ROUNDUP((G13*(IF($L13<>"",$L13,$K13)*IF($N13<>"",$N13,$M13))/$P13)/INDEX(LaadinfraPrivaat[[#All],[Power (kW)]],MATCH('M3-TCO-laadplein'!Q13,LaadinfraPrivaat[[#All],[Charging type]],0)),0) -> 0 | V13: =ROUNDUP((H13*(IF($L13<>"",$L13,$K13)*IF($N13<>"",$N13,$M13))/$P13)/INDEX(LaadinfraPrivaat[[#All],[Power (kW)]],MATCH('M3-TCO-laadplein'!Q13,LaadinfraPrivaat[[#All],[Charging type]],0)),0) -> 0 | W13: =ROUNDUP((I13*(IF($L13<>"",$L13,$K13)*IF($N13<>"",$N13,$M13))/$P13)/INDEX(LaadinfraPrivaat[[#All],[Power (kW)]],MATCH('M3-TCO-laadplein'!Q13,LaadinfraPrivaat[[#All],[Charging type]],0)),0) -> 0
B14: 5 | C14: =IF('Read Me'!$C$3="Nederlands", "Zware trekker z/opl (GVW >40 ton)", "Heavy duty tractor (load >40 tonnes)" ) -> Zware trekker z/opl (GVW >40 ton) | D14: 0 | E14: =$D$14 -> 0 | F14: =$E$14 -> 0 | G14: =$F$14 -> 0 | H14: =$G$14 -> 0 | I14: =$H$14 -> 0 | J14: =INDEX(Voertuigen[[#All],[Kilometrage]],MATCH($B$14,Voertuigen[[#All],[Type ID]],0)) -> 100000 | K14: =J14/INDEX(InzetVoertuigPar[[#All],[Waarde]],MATCH("Productieve dagen per jaar",InzetVoertuigPar[[#All],[Variabele]],0)) -> 384.6153846 | M14: =IF(C14=$C$9,0.3,INDEX(EnergieverbruikEnOnderhoudPerType[[#All],[Rijden EV '[kWh/km']]],MATCH('M3-TCO-laadplein'!B14,EnergieverbruikEnOnderhoudPerType[[#All],[Type ID]],0))) -> 1.66 | O14: 166000 | P14: 8 | Q14: =IFERROR(INDEX(LaadinfraPrivaat[[#All],[Charging type]],MATCH((IF($L$14>0,$L$14,$K$14)*IF($N$14>0,$N$14,$M$14))/P14,LaadinfraPrivaat[[#All],[Power (kW)]],-1)),Config!$A$57) -> HPC150 | R14: =ROUNDUP((D14*(IF($L14<>"",$L14,$K14)*IF($N14<>"",$N14,$M14))/$P14)/INDEX(LaadinfraPrivaat[[#All],[Power (kW)]],MATCH('M3-TCO-laadplein'!Q14,LaadinfraPrivaat[[#All],[Charging type]],0)),0) -> 0 | S14: =ROUNDUP((E14*(IF($L14<>"",$L14,$K14)*IF($N14<>"",$N14,$M14))/$P14)/INDEX(LaadinfraPrivaat[[#All],[Power (kW)]],MATCH('M3-TCO-laadplein'!Q14,LaadinfraPrivaat[[#All],[Charging type]],0)),0) -> 0 | T14: =ROUNDUP((F14*(IF($L14<>"",$L14,$K14)*IF($N14<>"",$N14,$M14))/$P14)/INDEX(LaadinfraPrivaat[[#All],[Power (kW)]],MATCH('M3-TCO-laadplein'!Q14,LaadinfraPrivaat[[#All],[Charging type]],0)),0) -> 0 | U14: =ROUNDUP((G14*(IF($L14<>"",$L14,$K14)*IF($N14<>"",$N14,$M14))/$P14)/INDEX(LaadinfraPrivaat[[#All],[Power (kW)]],MATCH('M3-TCO-laadplein'!Q14,LaadinfraPrivaat[[#All],[Charging type]],0)),0) -> 0 | V14: =ROUNDUP((H14*(IF($L14<>"",$L14,$K14)*IF($N14<>"",$N14,$M14))/$P14)/INDEX(LaadinfraPrivaat[[#All],[Power (kW)]],MATCH('M3-TCO-laadplein'!Q14,LaadinfraPrivaat[[#All],[Charging type]],0)),0) -> 0 | W14: =ROUNDUP((I14*(IF($L14<>"",$L14,$K14)*IF($N14<>"",$N14,$M14))/$P14)/INDEX(LaadinfraPrivaat[[#All],[Power (kW)]],MATCH('M3-TCO-laadplein'!Q14,LaadinfraPrivaat[[#All],[Charging type]],0)),0) -> 0
B16: =IF('Read Me'!$C$3="Nederlands","Totaal e-voertuigen","Total e-vehicles") -> Totaal e-voertuigen | D16: =SUM(D9:D14) -> 0 | E16: =SUM(E9:E14) -> 0 | F16: 0 | G16: 0 | H16: 0 | I16: 0
B17: =IF('Read Me'!$C$3="Nederlands","Totale energievraag [kWh]","Total energy demand [kWh]") -> Totale energievraag [kWh] | D17: =SUMPRODUCT(D9:D14,$O$9:$O$14) -> 0 | E17: =SUMPRODUCT(E9:E14,$O$9:$O$14) -> 0 | F17: =SUMPRODUCT(F9:F14,$O$9:$O$14) -> 0 | G17: 0 | H17: 0 | I17: 0
B18: =IF('Read Me'!$C$3="Nederlands","Piekvermogen [kW/u]*","Peak power [kW/h]*") -> Piekvermogen [kW/u]* | D18: =Calculatie!M$17 -> 0 | E18: =Calculatie!N$17 -> 0 | F18: =Calculatie!O$17 -> 0 | G18: =Calculatie!P$17 -> 0 | H18: =Calculatie!Q$17 -> 0 | I18: =Calculatie!R$17 -> 0
B20: =Config!$A$58 -> * Bovenstaand piekvermogen is van toepassing in het geval dat alle laadpalen gelijktijdig worden gebruikt. Let op dat wanneer deze piek groter is dan uw publieke aansluiting toestaat, de zekering van uw aansluiting op het publieke net springt! De piek kan verlaagd worden door de toepassing van een "smart charging grid". Daarnaast kan een aansluiting overwogen worden met een zonne- of windpark of een elektriciteitsopslag in batterijen.
G21: =IF('Read Me'!$C$3="Nederlands","TOTALE KOSTEN LAADPLEIN (afschrijftermijn is 10 jaar)","TOTAL COST CHARGING HUB (depreciation period is 10 years)") -> TOTALE KOSTEN LAADPLEIN (afschrijftermijn is 10 jaar) | Q21: =IF('Read Me'!$C$3="Nederlands","SAMENVATTING STATIONAIRE BATTERIJ","SUMMARY STATIONARY BATTERY") -> SAMENVATTING STATIONAIRE BATTERIJ
R22: =IF('Read Me'!$C$3="Nederlands","Afschrijftermijn [jaar]","Depreciation [years]") -> Afschrijftermijn [jaar] | S22: =$J$40 -> 15
I23: CAPEX | J23: =Calculatie!U25 -> 0 | M23: Details CAPEX | R23: =IF('Read Me'!$C$3="Nederlands","Jaarcapaciteit [kWh]","Yearly capacity [kWh]") -> Jaarcapaciteit [kWh] | S23: =$J$45 -> 208000
I24: OPEX | J24: =Calculatie!U31 -> 0 | M24: =IF('Read Me'!$C$3="Nederlands","inkoopprijs laadpalen","purchase charging stations") -> inkoopprijs laadpalen | N24: =Calculatie!U21 -> 0 | R24: CAPEX | S24: =SUM($N$41:$N$44) -> 556500
I25: =IF('Read Me'!$C$3="Nederlands","Netverzwaring","Upgrading mains") -> Netverzwaring | J25: =Calculatie!U35 -> 0 | M25: =IF('Read Me'!$C$3="Nederlands","plaatsing","installation") -> plaatsing | N25: =Calculatie!U22 -> 0 | R25: OPEX | S25: =SUM($N$48:$N$50) -> 27900
I26: =IF('Read Me'!$C$3="Nederlands","Transformator","Transformer") -> Transformator | J26: =IF(J23>0,Calculatie!U36,0) -> 0 | M26: =IF('Read Me'!$C$3="Nederlands","projectmanagement / advies","projectmanagement / consulting") -> projectmanagement / advies | N26: =Calculatie!U23 -> 0 | R26: =IF('Read Me'!$C$3="Nederlands","Besparing per kWh","Savings per kWh") -> Besparing per kWh | S26: =($J$48-$J$49)*$J$50 -> 0.03103644628
I27: =IF('Read Me'!$C$3="Nederlands","Totaal","Total") -> Totaal | J27: =SUM(J23:J26) -> 0 | M27: =IF('Read Me'!$C$3="Nederlands","aansluitkosten netbeheerder","connection costs network operator") -> aansluitkosten netbeheerder | N27: =Calculatie!U24 -> 0
R28: =IF('Read Me'!$C$3="Nederlands","Jaarlijkse kosten","Yearly costs") -> Jaarlijkse kosten
I29: =IF('Read Me'!$C$3="Nederlands","Netverzwaring meenemen* ","Include upgrading mains* ") -> Netverzwaring meenemen* | J29: Nee | M29: Details OPEX | R29: =IF('Read Me'!$C$3="Nederlands","Bruto totale kosten","Gross total costs") -> Bruto totale kosten | S29: =($S$24/$S$22)+$S$25 -> 65000
I30: =IF('Read Me'!$C$3="Nederlands","kosten per jaar ","annual costs ") -> kosten per jaar | J30: =IF($J$29=Config!$A$11,('M3-TCO-laadplein'!J23+'M3-TCO-laadplein'!J24+'M3-TCO-laadplein'!J25+'M3-TCO-laadplein'!J26),('M3-TCO-laadplein'!J23+'M3-TCO-laadplein'!J24))/10 -> 0 | M30: =IF('Read Me'!$C$3="Nederlands","periodieke netkosten","periodic costs network operator") -> periodieke netkosten | N30: =Calculatie!U28 -> 0 | R30: =IF('Read Me'!$C$3="Nederlands","Totale besparing","Total savings") -> Totale besparing | S30: =$S$26*$S$23 -> 6455.580826
I31: =IF('Read Me'!$C$3="Nederlands","kosten per kWh ","costs per kWh ") -> kosten per kWh | J31: =IF(J27>0, IF($J$29=Config!$A$11,('M3-TCO-laadplein'!J23+'M3-TCO-laadplein'!J24+'M3-TCO-laadplein'!J25+'M3-TCO-laadplein'!J26),('M3-TCO-laadplein'!J23+'M3-TCO-laadplein'!J24))/ (SUM(Calculatie!$M$18:$R$18)*2),0) -> 0 | M31: =IF('Read Me'!$C$3="Nederlands","operatie, onderhoud, service","operations, maintenance and service") -> operatie, onderhoud, service | N31: =Calculatie!U29 -> 0 | R31: =IF('Read Me'!$C$3="Nederlands","Netto totale kosten","Net total costs") -> Netto totale kosten | S31: =$S$29-$S$30 -> 58544.41917
H32: =IF(AND($J$29=Config!$A$11,$J$31*(1+INDEX(PAR_STAT_BATTERY[#All],MATCH("Marge",PAR_STAT_BATTERY[[#All],[Variabele]],0),3))>=$S$32),Config!$A$59,"") ->  | M32: =IF('Read Me'!$C$3="Nederlands","energiekosten","energy costs") -> energiekosten | N32: =Calculatie!U30 -> 0 | R32: =IF('Read Me'!$C$3="Nederlands","Kosten per kWh","Costs per kWh") -> Kosten per kWh | S32: =$S$31/$S$23 -> 0.2814635537
G35: =IF('Read Me'!$C$3="Nederlands", "*let op! Een netverzwaring of de aanschaf van een transformator is niet altijd nodig. Deze kosten kunnen genegeerd worden door hier voor 'nee' te kiezen", "*Note! Upgrading your mains of purchasing a transformer is not always needed. These costs can be excluded by chossing 'No' here") -> *let op! Een netverzwaring of de aanschaf van een transformator is niet altijd nodig. Deze kosten kunnen genegeerd worden door hier voor 'nee' te kiezen
G38: =IF('Read Me'!$C$3="Nederlands","AANSCHAF EN KOSTEN STATIONAIRE BATTERIJ","PURCHASE AND OPERATING STATIONARY BATTERY") -> AANSCHAF EN KOSTEN STATIONAIRE BATTERIJ
I40: =Config!$A$60 -> Afschrijftermijn [jaar] | J40: =INDEX(PAR_STAT_BATTERY[[#All],[Waarde]],MATCH($I$40,PAR_STAT_BATTERY[[#All],[Variabele]],0)) -> 15 | M40: Details CAPEX
I41: =Config!$A$61 -> Prijs per kWh | J41: =INDEX(PAR_STAT_BATTERY[[#All],[Waarde]],MATCH($I$41,PAR_STAT_BATTERY[[#All],[Variabele]],0)) -> 550 | M41: =IF('Read Me'!$C$3="Nederlands","Aanschafkosten batterijcontainer ","Purchase price batterycontainer ") -> Aanschafkosten batterijcontainer | N41: =$J$41*$J$42 -> 550000
I42: =Config!$A$62 -> Capaciteit batterij (kWh) | J42: =INDEX(PAR_STAT_BATTERY[[#All],[Waarde]],MATCH($I$42,PAR_STAT_BATTERY[[#All],[Variabele]],0)) -> 1000 | M42: =Config!$A$67 -> Afleveringsskosten | N42: =INDEX(PAR_STAT_BATTERY[[#All],[Waarde]],MATCH($M$42,PAR_STAT_BATTERY[[#All],[Variabele]],0)) -> 1500
I43: =Config!$A$63 -> Max. ontlading batterij | J43: =INDEX(PAR_STAT_BATTERY[[#All],[Waarde]],MATCH($I$43,PAR_STAT_BATTERY[[#All],[Variabele]],0)) -> 0.8 | M43: =Config!$A$68 -> Plaatsingskosten | N43: =INDEX(PAR_STAT_BATTERY[[#All],[Waarde]],MATCH($M$43,PAR_STAT_BATTERY[[#All],[Variabele]],0)) -> 5000
I44: =Config!$A$64 -> Sessies per week | J44: =INDEX(PAR_STAT_BATTERY[[#All],[Waarde]],MATCH($I$44,PAR_STAT_BATTERY[[#All],[Variabele]],0)) -> 5 | M44: =Config!$A$69 -> Extra opties | N44: =INDEX(PAR_STAT_BATTERY[[#All],[Waarde]],MATCH($M$44,PAR_STAT_BATTERY[[#All],[Variabele]],0)) -> 0
I45: =IF('Read Me'!$C$3="Nederlands","Jaarlijkse batterij capaciteit ","Yearly battery capacity ") -> Jaarlijkse batterij capaciteit | J45: =J42*J44*J43*52 -> 208000
H47: =IF('Read Me'!$C$3="Nederlands","Inkoopprijs elektriciteit","Purchase price electricity") -> Inkoopprijs elektriciteit | M47: Details OPEX
I48: =IF('Read Me'!$C$3="Nederlands","Via publieke net ","Via power network ") -> Via publieke net | J48: ='Input-Output Module'!$E$32 -> 0.1220728926 | M48: =Config!$A$70 -> Onderhoudscontract | N48: =INDEX(PAR_STAT_BATTERY[[#All],[Waarde]],MATCH($M$48,PAR_STAT_BATTERY[[#All],[Variabele]],0)) -> 5400
I49: =Config!$A$65 -> Eigen opwek | J49: =INDEX(PAR_STAT_BATTERY[[#All],[Waarde]],MATCH($I$49,PAR_STAT_BATTERY[[#All],[Variabele]],0)) -> 0.06 | M49: =Config!$A$71 -> Energiemanagement software | N49: =INDEX(PAR_STAT_BATTERY[[#All],[Waarde]],MATCH($M$49,PAR_STAT_BATTERY[[#All],[Variabele]],0)) -> 7500
I50: =Config!$A$66 -> Fractie eigen opwek | J50: =INDEX(PAR_STAT_BATTERY[[#All],[Waarde]],MATCH($I$50,PAR_STAT_BATTERY[[#All],[Variabele]],0)) -> 0.5 | M50: =Config!$A$72 -> Monitoring | N50: =INDEX(PAR_STAT_BATTERY[[#All],[Waarde]],MATCH($M$50,PAR_STAT_BATTERY[[#All],[Variabele]],0)) -> 15000

Sheet Calculatie
A1: BASIS INVOERGEGEVENS
A2: Voertuig / ID | B2: =Voertuigtype -> Grote bakwagen (lvm > 16 ton) | C2: =INDEX(Voertuigen[#All],MATCH(Calculatie!B2,Voertuigen[[#All],[Voertuig]],0),2) -> 5 | F2: test | G2: Dit is een overgenomen veld
A3: Voertuigtype / ID | B3: =INDEX(Voertuigen[#All],MATCH(Calculatie!B2,Voertuigen[[#All],[Voertuig]],0),3) -> Grote bakwagen | C3: =INDEX(Voertuigen[#All],MATCH(Calculatie!B2,Voertuigen[[#All],[Voertuig]],0),4) -> 3 | F3: test | G3: Dit is een berekening
A4: Verwacht jaarkilometrage | B4: =Kilometrage -> 70000
A5: Grijze/groene elektriciciteit | B5: =Elec_type -> Groen
A6: Grijze/groene waterstof | B6: =H2_type -> Electrolyse (hernieuwbare energie)
A7: Rechtsvorm en belastingpercentage | B7: =Belasting -> BV of NV met 19% belasting
A8: Grootte van bedrijf | B8: =Bedrijfsgrootte -> Groot | K8: Berekeningen Laadpleinmodel
K9: Aantal laadpalen en piekvermogen
A10: INZETGEGEVENS VOERTUIG SYSTEM | B10: DV | C10: EV | D10: FC | E10: H2ICE-CI | K10: Laadpaal | L10: Vermogen [kW/u] | M10: jaar 0 | N10: jaar 1-2 | O10: jaar 3-4 | P10: jaar 5-6 | Q10: jaar 7-8 | R10: jaar 9-10 | S10: OPEX
A11: Economische levensduur [jaren] | B11: ='Input-Output Module'!D$36 -> 7 | C11: ='Input-Output Module'!E$36 -> 7 | D11: ='Input-Output Module'!F$36 -> 7 | E11: ='Input-Output Module'!G$36 -> 7 | K11: HPC350 | L11: =INDEX(LaadinfraPrivaat[[#All],[Power (kW)]],MATCH(Calculatie!K11,LaadinfraPrivaat[[#All],[Charging type]],0)) -> 350 | M11: =SUMIF('M3-TCO-laadplein'!$Q$9:$Q$14,Calculatie!$K11,'M3-TCO-laadplein'!R$9:R$14) -> 0 | N11: =IF( SUMIF('M3-TCO-laadplein'!$Q$9:$Q$14,Calculatie!$K11,'M3-TCO-laadplein'!S$9:S$14)<M11, M11, SUMIF('M3-TCO-laadplein'!$Q$9:$Q$14,Calculatie!$K11,'M3-TCO-laadplein'!S$9:S$14)) -> 0 | O11: =IF(SUMIF('M3-TCO-laadplein'!$Q$9:$Q$14,Calculatie!$K11,'M3-TCO-laadplein'!T$9:T$14)<N11, N11, SUMIF('M3-TCO-laadplein'!$Q$9:$Q$14,Calculatie!$K11,'M3-TCO-laadplein'!T$9:T$14)) -> 0 | P11: =IF(SUMIF('M3-TCO-laadplein'!$Q$9:$Q$14,Calculatie!$K11,'M3-TCO-laadplein'!U$9:U$14)<O11, O11, SUMIF('M3-TCO-laadplein'!$Q$9:$Q$14,Calculatie!$K11,'M3-TCO-laadplein'!U$9:U$14)) -> 0 | Q11: =IF(SUMIF('M3-TCO-laadplein'!$Q$9:$Q$14,Calculatie!$K11,'M3-TCO-laadplein'!V$9:V$14)<P11,P11,SUMIF('M3-TCO-laadplein'!$Q$9:$Q$14,Calculatie!$K11,'M3-TCO-laadplein'!V$9:V$14)) -> 0 | R11: =IF(SUMIF('M3-TCO-laadplein'!$Q$9:$Q$14,Calculatie!$K11,'M3-TCO-laadplein'!W$9:W$14)<Q11,Q11,SUMIF('M3-TCO-laadplein'!$Q$9:$Q$14,Calculatie!$K11,'M3-TCO-laadplein'!W$9:W$14)) -> 0 | S11: =SUM($N11:$R11)*2 -> 0
A12: Kosten van reparaties | B12: ='Input-Output Module'!D$37 -> 1000 | C12: ='Input-Output Module'!E$37 -> 1000 | D12: ='Input-Output Module'!F$37 -> 3000 | E12: ='Input-Output Module'!G$37 -> 1000 | K12: HPC150 | L12: =INDEX(LaadinfraPrivaat[[#All],[Power (kW)]],MATCH(Calculatie!K12,LaadinfraPrivaat[[#All],[Charging type]],0)) -> 150 | M12: =SUMIF('M3-TCO-laadplein'!$Q$9:$Q$14,Calculatie!$K12,'M3-TCO-laadplein'!R$9:R$14) -> 0 | N12: =IF( SUMIF('M3-TCO-laadplein'!$Q$9:$Q$14,Calculatie!$K12,'M3-TCO-laadplein'!S$9:S$14)<M12, M12, SUMIF('M3-TCO-laadplein'!$Q$9:$Q$14,Calculatie!$K12,'M3-TCO-laadplein'!S$9:S$14)) -> 0 | O12: =IF(SUMIF('M3-TCO-laadplein'!$Q$9:$Q$14,Calculatie!$K12,'M3-TCO-laadplein'!T$9:T$14)<N12, N12, SUMIF('M3-TCO-laadplein'!$Q$9:$Q$14,Calculatie!$K12,'M3-TCO-laadplein'!T$9:T$14)) -> 0 | P12: =IF(SUMIF('M3-TCO-laadplein'!$Q$9:$Q$14,Calculatie!$K12,'M3-TCO-laadplein'!U$9:U$14)<O12, O12, SUMIF('M3-TCO-laadplein'!$Q$9:$Q$14,Calculatie!$K12,'M3-TCO-laadplein'!U$9:U$14)) -> 0 | Q12: =IF(SUMIF('M3-TCO-laadplein'!$Q$9:$Q$14,Calculatie!$K12,'M3-TCO-laadplein'!V$9:V$14)<P12,P12,SUMIF('M3-TCO-laadplein'!$Q$9:$Q$14,Calculatie!$K12,'M3-TCO-laadplein'!V$9:V$14)) -> 0 | R12: =IF(SUMIF('M3-TCO-laadplein'!$Q$9:$Q$14,Calculatie!$K12,'M3-TCO-laadplein'!W$9:W$14)<Q12,Q12,SUMIF('M3-TCO-laadplein'!$Q$9:$Q$14,Calculatie!$K12,'M3-TCO-laadplein'!W$9:W$14)) -> 0 | S12: =SUM($N12:$R12)*2 -> 0
A13: Productieve dagen per jaar | B13: =Parameters!$C$15 -> 260 | C13: =B13-'Input-Output Module'!$E$39 -> 260 | D13: =B13-'Input-Output Module'!$F$39 -> 260 | E13: =B13-'Input-Output Module'!$G$39 -> 260 | K13: FC50 | L13: =INDEX(LaadinfraPrivaat[[#All],[Power (kW)]],MATCH(Calculatie!K13,LaadinfraPrivaat[[#All],[Charging type]],0)) -> 50 | M13: =SUMIF('M3-TCO-laadplein'!$Q$9:$Q$14,Calculatie!$K13,'M3-TCO-laadplein'!R$9:R$14) -> 0 | N13: =IF( SUMIF('M3-TCO-laadplein'!$Q$9:$Q$14,Calculatie!$K13,'M3-TCO-laadplein'!S$9:S$14)<M13, M13, SUMIF('M3-TCO-laadplein'!$Q$9:$Q$14,Calculatie!$K13,'M3-TCO-laadplein'!S$9:S$14)) -> 0 | O13: =IF(SUMIF('M3-TCO-laadplein'!$Q$9:$Q$14,Calculatie!$K13,'M3-TCO-laadplein'!T$9:T$14)<N13, N13, SUMIF('M3-TCO-laadplein'!$Q$9:$Q$14,Calculatie!$K13,'M3-TCO-laadplein'!T$9:T$14)) -> 0 | P13: =IF(SUMIF('M3-TCO-laadplein'!$Q$9:$Q$14,Calculatie!$K13,'M3-TCO-laadplein'!U$9:U$14)<O13, O13, SUMIF('M3-TCO-laadplein'!$Q$9:$Q$14,Calculatie!$K13,'M3-TCO-laadplein'!U$9:U$14)) -> 0 | Q13: =IF(SUMIF('M3-TCO-laadplein'!$Q$9:$Q$14,Calculatie!$K13,'M3-TCO-laadplein'!V$9:V$14)<P13,P13,SUMIF('M3-TCO-laadplein'!$Q$9:$Q$14,Calculatie!$K13,'M3-TCO-laadplein'!V$9:V$14)) -> 0 | R13: =IF(SUMIF('M3-TCO-laadplein'!$Q$9:$Q$14,Calculatie!$K13,'M3-TCO-laadplein'!W$9:W$14)<Q13,Q13,SUMIF('M3-TCO-laadplein'!$Q$9:$Q$14,Calculatie!$K13,'M3-TCO-laadplein'!W$9:W$14)) -> 0 | S13: 0
A14: Productieve uren per jaar | B14: ='Input-Output Module'!$D$38 -> 2600 | C14: =$B$15*C13 -> 2600 | D14: =$B$15*D13 -> 2600 | E14: =$B$15*E13 -> 2600 | K14: AC22 | L14: =INDEX(LaadinfraPrivaat[[#All],[Power (kW)]],MATCH(Calculatie!K14,LaadinfraPrivaat[[#All],[Charging type]],0)) -> 22 | M14: =SUMIF('M3-TCO-laadplein'!$Q$9:$Q$14,Calculatie!$K14,'M3-TCO-laadplein'!R$9:R$14) -> 0 | N14: =IF( SUMIF('M3-TCO-laadplein'!$Q$9:$Q$14,Calculatie!$K14,'M3-TCO-laadplein'!S$9:S$14)<M14, M14, SUMIF('M3-TCO-laadplein'!$Q$9:$Q$14,Calculatie!$K14,'M3-TCO-laadplein'!S$9:S$14)) -> 0 | O14: =IF(SUMIF('M3-TCO-laadplein'!$Q$9:$Q$14,Calculatie!$K14,'M3-TCO-laadplein'!T$9:T$14)<N14, N14, SUMIF('M3-TCO-laadplein'!$Q$9:$Q$14,Calculatie!$K14,'M3-TCO-laadplein'!T$9:T$14)) -> 0 | P14: =IF(SUMIF('M3-TCO-laadplein'!$Q$9:$Q$14,Calculatie!$K14,'M3-TCO-laadplein'!U$9:U$14)<O14, O14, SUMIF('M3-TCO-laadplein'!$Q$9:$Q$14,Calculatie!$K14,'M3-TCO-laadplein'!U$9:U$14)) -> 0 | Q14: =IF(SUMIF('M3-TCO-laadplein'!$Q$9:$Q$14,Calculatie!$K14,'M3-TCO-laadplein'!V$9:V$14)<P14,P14,SUMIF('M3-TCO-laadplein'!$Q$9:$Q$14,Calculatie!$K14,'M3-TCO-laadplein'!V$9:V$14)) -> 0 | R14: =IF(SUMIF('M3-TCO-laadplein'!$Q$9:$Q$14,Calculatie!$K14,'M3-TCO-laadplein'!W$9:W$14)<Q14,Q14,SUMIF('M3-TCO-laadplein'!$Q$9:$Q$14,Calculatie!$K14,'M3-TCO-laadplein'!W$9:W$14)) -> 0 | S14: 0
A15: Productieve uren per dag | B15: =B14/B13 -> 10 | K15: AC11 | L15: =INDEX(LaadinfraPrivaat[[#All],[Power (kW)]],MATCH(Calculatie!K15,LaadinfraPrivaat[[#All],[Charging type]],0)) -> 11 | M15: =SUMIF('M3-TCO-laadplein'!$Q$9:$Q$14,Calculatie!$K15,'M3-TCO-laadplein'!R$9:R$14) -> 0 | N15: =IF( SUMIF('M3-TCO-laadplein'!$Q$9:$Q$14,Calculatie!$K15,'M3-TCO-laadplein'!S$9:S$14)<M15, M15, SUMIF('M3-TCO-laadplein'!$Q$9:$Q$14,Calculatie!$K15,'M3-TCO-laadplein'!S$9:S$14)) -> 0 | O15: =IF(SUMIF('M3-TCO-laadplein'!$Q$9:$Q$14,Calculatie!$K15,'M3-TCO-laadplein'!T$9:T$14)<N15, N15, SUMIF('M3-TCO-laadplein'!$Q$9:$Q$14,Calculatie!$K15,'M3-TCO-laadplein'!T$9:T$14)) -> 0 | P15: =IF(SUMIF('M3-TCO-laadplein'!$Q$9:$Q$14,Calculatie!$K15,'M3-TCO-laadplein'!U$9:U$14)<O15, O15, SUMIF('M3-TCO-laadplein'!$Q$9:$Q$14,Calculatie!$K15,'M3-TCO-laadplein'!U$9:U$14)) -> 0 | Q15: =IF(SUMIF('M3-TCO-laadplein'!$Q$9:$Q$14,Calculatie!$K15,'M3-TCO-laadplein'!V$9:V$14)<P15,P15,SUMIF('M3-TCO-laadplein'!$Q$9:$Q$14,Calculatie!$K15,'M3-TCO-laadplein'!V$9:V$14)) -> 0 | R15: =IF(SUMIF('M3-TCO-laadplein'!$Q$9:$Q$14,Calculatie!$K15,'M3-TCO-laadplein'!W$9:W$14)<Q15,Q15,SUMIF('M3-TCO-laadplein'!$Q$9:$Q$14,Calculatie!$K15,'M3-TCO-laadplein'!W$9:W$14)) -> 0 | S15: 0
A16: kilometers per dag | B16: =B4/B13 -> 269.2307692 | K16: Totaal | M16: =SUM(M11:M15) -> 0 | N16: =SUM(N11:N15) -> 0 | O16: 0 | P16: 0 | Q16: 0 | R16: 0
K17: Totaal piekvermogen [kW/u] | M17: =SUMPRODUCT($L$11:$L$15,M11:M15) -> 0 | N17: =SUMPRODUCT($L$11:$L$15,N11:N15) -> 0 | O17: 0 | P17: 0 | Q17: 0 | R17: 0
A18: VOERTUIGKENMERKEN | K18: Totaal energie verbruik per jaar [kWh] | M18: =SUMPRODUCT(('M3-TCO-laadplein'!$Q$9:$Q$14<>"")*'M3-TCO-laadplein'!$O$9:$O$14*'M3-TCO-laadplein'!D$9:D$14) -> 0 | N18: =SUMPRODUCT(('M3-TCO-laadplein'!$Q$9:$Q$14<>"")*'M3-TCO-laadplein'!$O$9:$O$14*'M3-TCO-laadplein'!E$9:E$14) -> 0 | O18: =SUMPRODUCT(('M3-TCO-laadplein'!$Q$9:$Q$14<>"")*'M3-TCO-laadplein'!$O$9:$O$14*'M3-TCO-laadplein'!F$9:F$14) -> 0 | P18: =SUMPRODUCT(('M3-TCO-laadplein'!$Q$9:$Q$14<>"")*'M3-TCO-laadplein'!$O$9:$O$14*'M3-TCO-laadplein'!G$9:G$14) -> 0 | Q18: =SUMPRODUCT(('M3-TCO-laadplein'!$Q$9:$Q$14<>"")*'M3-TCO-laadplein'!$O$9:$O$14*'M3-TCO-laadplein'!H$9:H$14) -> 0 | R18: =SUMPRODUCT(('M3-TCO-laadplein'!$Q$9:$Q$14<>"")*'M3-TCO-laadplein'!$O$9:$O$14*'M3-TCO-laadplein'!I$9:I$14) -> 0 | T18: =SUM(N18:R18)*2 -> 0
A19: Capaciteit vrachtwagenbatterij (kWh) | C19: ='Input-Output Module'!$E$43 -> 260 | D19: ='Input-Output Module'!$F$43 -> 140
A20: Waterstof opslag tank (kg) | D20: ='Input-Output Module'!$F$44 -> 20 | E20: ='Input-Output Module'!$G$44 -> 0 | K20: Inkoop
A21: Fuell cell system (kW) | D21: ='Input-Output Module'!$F$45 -> 45 | K21: Laadpaal | L21: Kosten (inkoop + graafwerk) | M21: jaar 0 | N21: jaar 1-2 | O21: jaar 3-4 | P21: jaar 5-6 | Q21: jaar 7-8 | R21: jaar 9-10 | T21: inkoopprijs | U21: =SUM(M27:R27) -> 0
K22: HPC350 | L22: =INDEX(LaadinfraPrivaat[[#All],[Purchase (€)]],MATCH(Calculatie!K22,LaadinfraPrivaat[[#All],[Charging type]],0)) -> 135056.25 | M22: 0 | N22: =N11-M11 -> 0 | O22: =O11-N11 -> 0 | P22: 0 | Q22: 0 | R22: 0 | T22: Graaf werk + civiele werken | U22: =SUMPRODUCT(LaadinfraPrivaat[Installation costs (€)]*(Calculatie!R11:R15-Calculatie!M11:M15))-U23-U24 -> 0 | W22: Installaties | X22: =INDEX(Piekvermogen[[#All],[Installaties per kW piekvermogen]],MATCH(IF(R17>2000,"Meer dan 2MW","Tot 2MW"),Piekvermogen[[#All],[Piekvermogen]],0))*SUMPRODUCT(L11:L15*(R11:R15-M11:M15)) -> 0
A23: ENERGIE EN KOSTEN | B23: Dieselvoertuig [L] | C23: Elektrisch voertuig [kWh] | D23: Waterstof voertuig [kg] | E23: H2ICE [kg] | K23: HPC150 | L23: =INDEX(LaadinfraPrivaat[[#All],[Purchase (€)]],MATCH(Calculatie!K23,LaadinfraPrivaat[[#All],[Charging type]],0)) -> 57881.25 | M23: 0 | N23: =N12-M12 -> 0 | O23: 0 | P23: 0 | Q23: 0 | R23: 0 | T23: Projectmanagement/advies | U23: =SUMPRODUCT(LaadinfraPrivaat[Locatiebepaling, enginering, proj mgt ]*(Calculatie!R11:R15-Calculatie!M11:M15)) -> 0
A24: Energie voor transport / jaar (bruto) | B24: ='M1-PowerSupply'!B$16*Calculatie!$B$4 -> 19979.25381 | C24: ='M1-PowerSupply'!C$16*Calculatie!$B$4 -> 94020.01795 | D24: ='M1-PowerSupply'!D$16*Calculatie!$B$4 -> 6218.255156 | E24: ='M1-PowerSupply'!E$16*Calculatie!$B$4 -> 0 | K24: FC50 | L24: =INDEX(LaadinfraPrivaat[[#All],[Purchase (€)]],MATCH(Calculatie!K24,LaadinfraPrivaat[[#All],[Charging type]],0)) -> 19293.75 | M24: 0 | N24: =N13-M13 -> 0 | O24: 0 | P24: 0 | Q24: 0 | R24: 0 | T24: aansluiten | U24: =SUMPRODUCT(LaadinfraPrivaat[Aansluitkosten netbeheerder (!)]*(Calculatie!R11:R15-Calculatie!M11:M15)) -> 0
A25: Energie voor koeling / jaar (bruto) | B25: ='M1-PowerSupply'!B$17*Calculatie!B$14*INDEX(InzetVoertuigPar[[#All],[Waarde]],MATCH("Aandeel koelunit",InzetVoertuigPar[[#All],[Variabele]],0)) -> 0 | C25: ='M1-PowerSupply'!C$17*Calculatie!C$14*INDEX(InzetVoertuigPar[[#All],[Waarde]],MATCH("Aandeel koelunit",InzetVoertuigPar[[#All],[Variabele]],0)) -> 0 | D25: ='M1-PowerSupply'!D$17*Calculatie!D$14*INDEX(InzetVoertuigPar[[#All],[Waarde]],MATCH("Aandeel koelunit",InzetVoertuigPar[[#All],[Variabele]],0)) -> 0 | E25: ='M1-PowerSupply'!E$17*Calculatie!E$14*INDEX(InzetVoertuigPar[[#All],[Waarde]],MATCH("Aandeel koelunit",InzetVoertuigPar[[#All],[Variabele]],0)) -> 0 | K25: AC22 | L25: =INDEX(LaadinfraPrivaat[[#All],[Purchase (€)]],MATCH(Calculatie!K25,LaadinfraPrivaat[[#All],[Charging type]],0)) -> 2315.25 | M25: 0 | N25: =N14-M14 -> 0 | O25: 0 | P25: 0 | Q25: 0 | R25: 0 | T25: CAPEX | U25: =SUM(U21:U24) -> 0
A26: Efficiëtie omzetting | B26: =INDEX(InzetVoertuigPar[[#All],[Waarde]],MATCH("Efficiëntie van transmissie overdracht (DV)",InzetVoertuigPar[[#All],[Variabele]],0)) -> 1 | C26: =INDEX(InzetVoertuigPar[[#All],[Waarde]],MATCH("Efficiëntie van transmissie overdracht (EV)",InzetVoertuigPar[[#All],[Variabele]],0)) -> 1 | D26: =INDEX(InzetVoertuigPar[[#All],[Waarde]],MATCH("Efficiëntie van transmissie overdracht (FC)",InzetVoertuigPar[[#All],[Variabele]],0)) -> 1 | E26: =INDEX(InzetVoertuigPar[[#All],[Waarde]],MATCH("Efficiëntie van transmissie overdracht (H2ICE)",InzetVoertuigPar[[#All],[Variabele]],0)) -> 1 | K26: AC11 | L26: =INDEX(LaadinfraPrivaat[[#All],[Purchase (€)]],MATCH(Calculatie!K26,LaadinfraPrivaat[[#All],[Charging type]],0)) -> 1984.5 | M26: 0 | N26: =N15-M15 -> 0 | O26: 0 | P26: 0 | Q26: 0 | R26: 0
A27: Energie voor transport / jaar (netto) | B27: =B24/B$26 -> 19979.25381 | C27: =C24/C$26 -> 94020.01795 | D27: =D24/D$26 -> 6218.255156 | E27: =E24/E$26 -> 0 | K27: Totale kosten | M27: =MAX(SUMPRODUCT($L$22:$L$26,M22:M26),0) -> 0 | N27: =MAX(SUMPRODUCT($L$22:$L$26,N22:N26),0) -> 0 | O27: 0 | P27: 0 | Q27: 0 | R27: 0
A28: Energie voor koeling / jaar (netto) | B28: =B25/B$26 -> 0 | C28: =C25/C$26 -> 0 | D28: =D25/D$26 -> 0 | E28: =E25/E$26 -> 0 | T28: Periodieke net | U28: =SUMPRODUCT(S11:S15*LaadinfraPrivaat[Periodieke kosten netaansluiting (!) ]) -> 0
A29: Aandeel depot laden (elektrisch) | C29: ='M1-PowerSupply'!B29/'M1-PowerSupply'!C18 -> 0.5751966568 | K29: Operationele kosten | T29: Operatie, onderhoud, service | U29: =SUMPRODUCT($S$11:$S$15,LaadinfraPrivaat[Operational costs annual (€)])-U28 -> 0
A30: Aandeel extern laden (elektrisch) | C30: ='M1-PowerSupply'!B45/'M1-PowerSupply'!C18 -> 0.4248033432 | K30: Laadpaal | L30: OPEX | M30: jaar 0 | N30: jaar 1-2 | O30: jaar 3-4 | P30: jaar 5-6 | Q30: jaar 7-8 | R30: jaar 9-10 | T30: Energiekosten | U30: =SUM(M45:R45)*2 -> 0
A31: Externe laadkosten (elektrisch) | C31: =INDEX(LaadinfraPubliek[[#All],[External energy costs (€)]],MATCH('M1-PowerSupply'!$C$42,LaadinfraPubliek[[#All],[Charging type]],0)) -> 0.5 | K31: HPC350 | L31: =INDEX(LaadinfraPrivaat[[#All],[Operational costs annual (€)]],MATCH(Calculatie!$K31,LaadinfraPrivaat[[#All],[Charging type]],0)) -> 18564.71321 | M31: =$L31*M11 -> 0 | N31: =$L31*N11 -> 0 | O31: 0 | P31: 0 | Q31: 0 | R31: 0 | T31: OPEX | U31: =SUM(U28:U30) -> 0
K32: HPC150 | L32: =INDEX(LaadinfraPrivaat[[#All],[Operational costs annual (€)]],MATCH(Calculatie!$K32,LaadinfraPrivaat[[#All],[Charging type]],0)) -> 8506.852804 | M32: =$L32*M12 -> 0 | N32: 0 | O32: 0 | P32: 0 | Q32: 0 | R32: 0 | T32: (per kWh) | U32: =IF(U28+U29=0,0, (U28+U29)/(SUM($M$18:$R$18)*2)) -> 0 | V32: *exclusief energiekosten
A33: Jaarlijkse verandering kosten (depot) | B33: n.v.t. | C33: =INDEX(JaarlijkseVeranderingen[[#All],[Waarde]],MATCH("Eigen energiekosten",JaarlijkseVeranderingen[[#All],[Variabele]],0)) -> 0.01 | D33: n.v.t. | E33: n.v.t. | K33: FC50 | L33: =INDEX(LaadinfraPrivaat[[#All],[Operational costs annual (€)]],MATCH(Calculatie!$K33,LaadinfraPrivaat[[#All],[Charging type]],0)) -> 4367.797601 | M33: =$L33*M13 -> 0 | N33: 0 | O33: 0 | P33: 0 | Q33: 0 | R33: 0
A34: Jaarlijkse verandering kosten (extern) | B34: =INDEX(JaarlijkseVeranderingen[[#All],[Waarde]],MATCH("Dieselprijs",JaarlijkseVeranderingen[[#All],[Variabele]],0)) -> 0.01 | C34: =INDEX(JaarlijkseVeranderingen[[#All],[Waarde]],MATCH("Energiekosten extern opladen",JaarlijkseVeranderingen[[#All],[Variabele]],0)) -> 0.01 | D34: =INDEX(JaarlijkseVeranderingen[[#All],[Waarde]],MATCH("Waterstof",JaarlijkseVeranderingen[[#All],[Variabele]],0)) -> 0 | E34: =INDEX(JaarlijkseVeranderingen[[#All],[Waarde]],MATCH("Waterstof",JaarlijkseVeranderingen[[#All],[Variabele]],0)) -> 0 | K34: AC22 | L34: =INDEX(LaadinfraPrivaat[[#All],[Operational costs annual (€)]],MATCH(Calculatie!$K34,LaadinfraPrivaat[[#All],[Charging type]],0)) -> 1571.883312 | M34: =$L34*M14 -> 0 | N34: 0 | O34: 0 | P34: 0 | Q34: 0 | R34: 0
A35: Energiekosten transport / jaar | B35: =B$27*'Input-Output Module'!D$32 *IF(B34=0,1,(1-(1+B34)^B11)/(1-(1+B34))/B11) -> 31834.28127 | C35: =C$27*'Input-Output Module'!E$32*$C$29*IF(C33=0,1,(1-(1+C33)^C11)/(1-(1+C33))/C11) +C$27*C31*C30*IF(C34=0,1,(1-(1+C34)^C11)/(1-(1+C34))/C11) -> 27382.28185 | D35: =D$27*'Input-Output Module'!F$32 *IF(D34=0,1,(1-(1+D34)^D11)/(1-(1+D34))/D11) -> 118146.848 | E35: =E$27*'Input-Output Module'!F$32 *IF(E34=0,1,(1-(1+E34)^E11)/(1-(1+E34))/E11) -> 0 | K35: AC11 | L35: =INDEX(LaadinfraPrivaat[[#All],[Operational costs annual (€)]],MATCH(Calculatie!$K35,LaadinfraPrivaat[[#All],[Charging type]],0)) -> 494.0316961 | M35: =$L35*M15 -> 0 | N35: 0 | O35: 0 | P35: 0 | Q35: 0 | R35: 0 | T35: Netverzwaring | U35: =0.5*U25 -> 0
A36: Energiekosten koeling / jaar | B36: =B$28*'Input-Output Module'!D$32 *IF(B34=0,1,(1-(1+B34)^B11)/(1-(1+B34))/B11) -> 0 | C36: =C$28*'Input-Output Module'!E$32*$C$29*IF(C33=0,1,(1-(1+C33)^C11)/(1-(1+C33))/C11) +C$28*C31*C30*IF(C34=0,1,(1-(1+C34)^C11)/(1-(1+C34))/C11) -> 0 | D36: =D$28*'Input-Output Module'!F$32 *IF(D34=0,1,(1-(1+D34)^D11)/(1-(1+D34))/D11) -> 0 | E36: =E$28*'Input-Output Module'!F$32 *IF(E34=0,1,(1-(1+E34)^E11)/(1-(1+E34))/E11) -> 0 | K36: Totale kosten | M36: =SUM(M31:M35) -> 0 | N36: =SUM(N31:N35) -> 0 | O36: 0 | P36: 0 | Q36: 0 | R36: 0 | T36: Transformator | U36: 72000
A37: Totale energiekosten / jaar | B37: =B35+B36 -> 31834.28127 | C37: =C35+C36 -> 27382.28185 | D37: =D35+D36 -> 118146.848 | E37: =E35+E36 -> 0
K38: Energiekosten
A39: EMISSIES | K39: Laadpaal | L39: Kosten per kWh | M39: jaar 0 | N39: jaar 1-2 | O39: jaar 3-4 | P39: jaar 5-6 | Q39: jaar 7-8 | R39: jaar 9-10
A40: WTW CO2-eq (tonnes) | B40: =(B28+B27)*SUMIFS(Fuel_Emission_factors27[[#All],[CO2-eq (kg per unit)]],Fuel_Emission_factors27[[#All],[Fuel category ID]],B$10,Fuel_Emission_factors27[[#All],[Type ID]],$C$3)/1000 -> 64.71607769 | C40: =(C28+C27)*SUMIFS(Fuel_Emission_factors27[[#All],[CO2-eq (kg per unit)]],Fuel_Emission_factors27[[#All],[Fuel category ID]],C$10,Fuel_Emission_factors27[[#All],[Type ID]],$B$5)/1000 -> 0 | D40: =(D28+D27)*SUMIFS(Fuel_Emission_factors27[[#All],[CO2-eq (kg per unit)]],Fuel_Emission_factors27[[#All],[Fuel category ID]],D$10,Fuel_Emission_factors27[[#All],[Type ID]],$B$6)/1000 -> 0 | E40: =D40 -> 0 | K40: HPC350 | L40: ='Input-Output Module'!$E$32 -> 0.1220728926 | M40: =SUMPRODUCT(('M3-TCO-laadplein'!$Q$9:$Q$14=Calculatie!$K40)*'M3-TCO-laadplein'!$O$9:$O$14*'M3-TCO-laadplein'!D$9:D$14)*Calculatie!$L40 -> 0 | N40: =SUMPRODUCT(('M3-TCO-laadplein'!$Q$9:$Q$14=Calculatie!$K40)*'M3-TCO-laadplein'!$O$9:$O$14*'M3-TCO-laadplein'!E$9:E$14)*Calculatie!$L40 -> 0 | O40: =SUMPRODUCT(('M3-TCO-laadplein'!$Q$9:$Q$14=Calculatie!$K40)*'M3-TCO-laadplein'!$O$9:$O$14*'M3-TCO-laadplein'!F$9:F$14)*Calculatie!$L40 -> 0 | P40: =SUMPRODUCT(('M3-TCO-laadplein'!$Q$9:$Q$14=Calculatie!$K40)*'M3-TCO-laadplein'!$O$9:$O$14*'M3-TCO-laadplein'!G$9:G$14)*Calculatie!$L40 -> 0 | Q40: =SUMPRODUCT(('M3-TCO-laadplein'!$Q$9:$Q$14=Calculatie!$K40)*'M3-TCO-laadplein'!$O$9:$O$14*'M3-TCO-laadplein'!H$9:H$14)*Calculatie!$L40 -> 0 | R40: =SUMPRODUCT(('M3-TCO-laadplein'!$Q$9:$Q$14=Calculatie!$K40)*'M3-TCO-laadplein'!$O$9:$O$14*'M3-TCO-laadplein'!I$9:I$14)*Calculatie!$L40 -> 0 | T40: Toegestane opties | U40: 1 | V40: 2 | W40: 3 | X40: 4 | Y40: 5
A41: PMc (kg) | B41: =(B28+B27)*SUMIFS(Fuel_Emission_factors27[[#All],[PM10 combustion (g per unit)]],Fuel_Emission_factors27[[#All],[Fuel category ID]],B$10,Fuel_Emission_factors27[[#All],[Type ID]],$C$3)/1000 -> 0.7717457724 | C41: =(C28+C27)*SUMIFS(Fuel_Emission_factors27[[#All],[PM10 combustion (g per unit)]],Fuel_Emission_factors27[[#All],[Fuel category ID]],C$10,Fuel_Emission_factors27[[#All],[Type ID]],$B$5)/1000 -> 0 | D41: =(D28+D27)*SUMIFS(Fuel_Emission_factors27[[#All],[PM10 combustion (g per unit)]],Fuel_Emission_factors27[[#All],[Fuel category ID]],D$10,Fuel_Emission_factors27[[#All],[Type ID]],$B$6)/1000 -> 0 | E41: =C41 -> 0 | K41: HPC150 | L41: ='Input-Output Module'!$E$32 -> 0.1220728926 | M41: =SUMPRODUCT(('M3-TCO-laadplein'!$Q$9:$Q$14=Calculatie!$K41)*'M3-TCO-laadplein'!$O$9:$O$14*'M3-TCO-laadplein'!D$9:D$14)*Calculatie!$L41 -> 0 | N41: =SUMPRODUCT(('M3-TCO-laadplein'!$Q$9:$Q$14=Calculatie!$K41)*'M3-TCO-laadplein'!$O$9:$O$14*'M3-TCO-laadplein'!E$9:E$14)*Calculatie!$L41 -> 0 | O41: =SUMPRODUCT(('M3-TCO-laadplein'!$Q$9:$Q$14=Calculatie!$K41)*'M3-TCO-laadplein'!$O$9:$O$14*'M3-TCO-laadplein'!F$9:F$14)*Calculatie!$L41 -> 0 | P41: =SUMPRODUCT(('M3-TCO-laadplein'!$Q$9:$Q$14=Calculatie!$K41)*'M3-TCO-laadplein'!$O$9:$O$14*'M3-TCO-laadplein'!G$9:G$14)*Calculatie!$L41 -> 0 | Q41: =SUMPRODUCT(('M3-TCO-laadplein'!$Q$9:$Q$14=Calculatie!$K41)*'M3-TCO-laadplein'!$O$9:$O$14*'M3-TCO-laadplein'!H$9:H$14)*Calculatie!$L41 -> 0 | R41: =SUMPRODUCT(('M3-TCO-laadplein'!$Q$9:$Q$14=Calculatie!$K41)*'M3-TCO-laadplein'!$O$9:$O$14*'M3-TCO-laadplein'!I$9:I$14)*Calculatie!$L41 -> 0 | T41: Bestelwagens (tot 3,5 ton) | U41: =IFERROR(INDEX(LaadinfraPrivaat[[#All],[Charging type]],MATCH((IF('M3-TCO-laadplein'!L9<>"",'M3-TCO-laadplein'!L9,'M3-TCO-laadplein'!K9)*IF('M3-TCO-laadplein'!N9<>"",'M3-TCO-laadplein'!N9,'M3-TCO-laadplein'!M9))/'M3-TCO-laadplein'!P9,LaadinfraPrivaat[[#All],[Power (kW)]],-1)),"Niet mogelijk") -> AC11 | V41: =IF(OR(INDEX(LaadinfraPrivaat[Index],MATCH(U41,LaadinfraPrivaat[Charging type],0))+1>5,U41=""),"", INDEX(LaadinfraPrivaat[[#All],[Charging type]],MATCH(INDEX(LaadinfraPrivaat[Index],MATCH(U41,LaadinfraPrivaat[Charging type],0))+1,LaadinfraPrivaat[[#All],[Index]],0))) -> AC22 | W41: =IF(V41="","", IF(INDEX(LaadinfraPrivaat[Index],MATCH(V41,LaadinfraPrivaat[Charging type],0))+1>5,"", INDEX(LaadinfraPrivaat[[#All],[Charging type]],MATCH(INDEX(LaadinfraPrivaat[Index],MATCH(V41,LaadinfraPrivaat[Charging type],0))+1,LaadinfraPrivaat[[#All],[Index]],0)))) -> FC50 | X41: =IF(W41="","", IF(INDEX(LaadinfraPrivaat[Index],MATCH(W41,LaadinfraPrivaat[Charging type],0))+1>5,"", INDEX(LaadinfraPrivaat[[#All],[Charging type]],MATCH(INDEX(LaadinfraPrivaat[Index],MATCH(W41,LaadinfraPrivaat[Charging type],0))+1,LaadinfraPrivaat[[#All],[Index]],0)))) -> HPC150 | Y41: =IF(X41="","", IF(INDEX(LaadinfraPrivaat[Index],MATCH(X41,LaadinfraPrivaat[Charging type],0))+1>5,"", INDEX(LaadinfraPrivaat[[#All],[Charging type]],MATCH(INDEX(LaadinfraPrivaat[Index],MATCH(X41,LaadinfraPrivaat[Charging type],0))+1,LaadinfraPrivaat[[#All],[Index]],0)))) -> HPC350
A42: PM_tire (kg) | B42: =INDEX(OperationeleKostenPerType[[#All],[PM_wear from tires]],MATCH(Calculatie!$C$3,OperationeleKostenPerType[[#All],[Type ID]],0))*$B$4/1000 -> 5.684481648 | C42: =INDEX(OperationeleKostenPerType[[#All],[PM_wear from tires]],MATCH(Calculatie!$C$3,OperationeleKostenPerType[[#All],[Type ID]],0))*$B$4/1000 -> 5.684481648 | D42: =INDEX(OperationeleKostenPerType[[#All],[PM_wear from tires]],MATCH(Calculatie!$C$3,OperationeleKostenPerType[[#All],[Type ID]],0))*$B$4/1000 -> 5.684481648 | E42: =C42 -> 5.684481648 | K42: FC50 | L42: ='Input-Output Module'!$E$32 -> 0.1220728926 | M42: =SUMPRODUCT(('M3-TCO-laadplein'!$Q$9:$Q$14=Calculatie!$K42)*'M3-TCO-laadplein'!$O$9:$O$14*'M3-TCO-laadplein'!D$9:D$14)*Calculatie!$L42 -> 0 | N42: =SUMPRODUCT(('M3-TCO-laadplein'!$Q$9:$Q$14=Calculatie!$K42)*'M3-TCO-laadplein'!$O$9:$O$14*'M3-TCO-laadplein'!E$9:E$14)*Calculatie!$L42 -> 0 | O42: =SUMPRODUCT(('M3-TCO-laadplein'!$Q$9:$Q$14=Calculatie!$K42)*'M3-TCO-laadplein'!$O$9:$O$14*'M3-TCO-laadplein'!F$9:F$14)*Calculatie!$L42 -> 0 | P42: =SUMPRODUCT(('M3-TCO-laadplein'!$Q$9:$Q$14=Calculatie!$K42)*'M3-TCO-laadplein'!$O$9:$O$14*'M3-TCO-laadplein'!G$9:G$14)*Calculatie!$L42 -> 0 | Q42: =SUMPRODUCT(('M3-TCO-laadplein'!$Q$9:$Q$14=Calculatie!$K42)*'M3-TCO-laadplein'!$O$9:$O$14*'M3-TCO-laadplein'!H$9:H$14)*Calculatie!$L42 -> 0 | R42: =SUMPRODUCT(('M3-TCO-laadplein'!$Q$9:$Q$14=Calculatie!$K42)*'M3-TCO-laadplein'!$O$9:$O$14*'M3-TCO-laadplein'!I$9:I$14)*Calculatie!$L42 -> 0 | S42: 1 | T42: Kleine bakwagen (lvm <12 ton) | U42: =IFERROR(INDEX(LaadinfraPrivaat[[#All],[Charging type]],MATCH((IF('M3-TCO-laadplein'!L10<>"",'M3-TCO-laadplein'!L10,'M3-TCO-laadplein'!K10)*IF('M3-TCO-laadplein'!N10<>"",'M3-TCO-laadplein'!N10,'M3-TCO-laadplein'!M10))/'M3-TCO-laadplein'!P10,LaadinfraPrivaat[[#All],[Power (kW)]],-1)),"Niet mogelijk") -> AC11 | V42: =IF(OR(INDEX(LaadinfraPrivaat[Index],MATCH(U42,LaadinfraPrivaat[Charging type],0))+1>5,U42=""),"", INDEX(LaadinfraPrivaat[[#All],[Charging type]],MATCH(INDEX(LaadinfraPrivaat[Index],MATCH(U42,LaadinfraPrivaat[Charging type],0))+1,LaadinfraPrivaat[[#All],[Index]],0))) -> AC22 | W42: =IF(V42="","", IF(INDEX(LaadinfraPrivaat[Index],MATCH(V42,LaadinfraPrivaat[Charging type],0))+1>5,"", INDEX(LaadinfraPrivaat[[#All],[Charging type]],MATCH(INDEX(LaadinfraPrivaat[Index],MATCH(V42,LaadinfraPrivaat[Charging type],0))+1,LaadinfraPrivaat[[#All],[Index]],0)))) -> FC50 | X42: =IF(W42="","", IF(INDEX(LaadinfraPrivaat[Index],MATCH(W42,LaadinfraPrivaat[Charging type],0))+1>5,"", INDEX(LaadinfraPrivaat[[#All],[Charging type]],MATCH(INDEX(LaadinfraPrivaat[Index],MATCH(W42,LaadinfraPrivaat[Charging type],0))+1,LaadinfraPrivaat[[#All],[Index]],0)))) -> HPC150 | Y42: =IF(X42="","", IF(INDEX(LaadinfraPrivaat[Index],MATCH(X42,LaadinfraPrivaat[Charging type],0))+1>5,"", INDEX(LaadinfraPrivaat[[#All],[Charging type]],MATCH(INDEX(LaadinfraPrivaat[Index],MATCH(X42,LaadinfraPrivaat[Charging type],0))+1,LaadinfraPrivaat[[#All],[Index]],0)))) -> HPC350
A43: NOx (kg) | B43: =(B28+B27)*SUMIFS(Fuel_Emission_factors27[[#All],[NOx (g per unit)]],Fuel_Emission_factors27[[#All],[Fuel category ID]],B$10,Fuel_Emission_factors27[[#All],[Type ID]],$C$3)/1000 -> 587.6742017 | C43: =(C28+C27)*SUMIFS(Fuel_Emission_factors27[[#All],[NOx (g per unit)]],Fuel_Emission_factors27[[#All],[Fuel category ID]],C$10,Fuel_Emission_factors27[[#All],[Type ID]],$B$5)/1000 -> 0 | D43: =(D28+D27)*SUMIFS(Fuel_Emission_factors27[[#All],[NOx (g per unit)]],Fuel_Emission_factors27[[#All],[Fuel category ID]],D$10,Fuel_Emission_factors27[[#All],[Type ID]],$B$6)/1000 -> 0 | E43: =B43 -> 587.6742017 | K43: AC22 | L43: ='Input-Output Module'!$E$32 -> 0.1220728926 | M43: =SUMPRODUCT(('M3-TCO-laadplein'!$Q$9:$Q$14=Calculatie!$K43)*'M3-TCO-laadplein'!$O$9:$O$14*'M3-TCO-laadplein'!D$9:D$14)*Calculatie!$L43 -> 0 | N43: =SUMPRODUCT(('M3-TCO-laadplein'!$Q$9:$Q$14=Calculatie!$K43)*'M3-TCO-laadplein'!$O$9:$O$14*'M3-TCO-laadplein'!E$9:E$14)*Calculatie!$L43 -> 0 | O43: =SUMPRODUCT(('M3-TCO-laadplein'!$Q$9:$Q$14=Calculatie!$K43)*'M3-TCO-laadplein'!$O$9:$O$14*'M3-TCO-laadplein'!F$9:F$14)*Calculatie!$L43 -> 0 | P43: =SUMPRODUCT(('M3-TCO-laadplein'!$Q$9:$Q$14=Calculatie!$K43)*'M3-TCO-laadplein'!$O$9:$O$14*'M3-TCO-laadplein'!G$9:G$14)*Calculatie!$L43 -> 0 | Q43: =SUMPRODUCT(('M3-TCO-laadplein'!$Q$9:$Q$14=Calculatie!$K43)*'M3-TCO-laadplein'!$O$9:$O$14*'M3-TCO-laadplein'!H$9:H$14)*Calculatie!$L43 -> 0 | R43: =SUMPRODUCT(('M3-TCO-laadplein'!$Q$9:$Q$14=Calculatie!$K43)*'M3-TCO-laadplein'!$O$9:$O$14*'M3-TCO-laadplein'!I$9:I$14)*Calculatie!$L43 -> 0 | S43: 2 | T43: Medium bakwagen (lvm 12-18 ton) | U43: =IFERROR(INDEX(LaadinfraPrivaat[[#All],[Charging type]],MATCH((IF('M3-TCO-laadplein'!L11<>"",'M3-TCO-laadplein'!L11,'M3-TCO-laadplein'!K11)*IF('M3-TCO-laadplein'!N11<>"",'M3-TCO-laadplein'!N11,'M3-TCO-laadplein'!M11))/'M3-TCO-laadplein'!P11,LaadinfraPrivaat[[#All],[Power (kW)]],-1)),"Niet mogelijk") -> FC50 | V43: =IF(OR(INDEX(LaadinfraPrivaat[Index],MATCH(U43,LaadinfraPrivaat[Charging type],0))+1>5,U43=""),"", INDEX(LaadinfraPrivaat[[#All],[Charging type]],MATCH(INDEX(LaadinfraPrivaat[Index],MATCH(U43,LaadinfraPrivaat[Charging type],0))+1,LaadinfraPrivaat[[#All],[Index]],0))) -> HPC150 | W43: =IF(V43="","", IF(INDEX(LaadinfraPrivaat[Index],MATCH(V43,LaadinfraPrivaat[Charging type],0))+1>5,"", INDEX(LaadinfraPrivaat[[#All],[Charging type]],MATCH(INDEX(LaadinfraPrivaat[Index],MATCH(V43,LaadinfraPrivaat[Charging type],0))+1,LaadinfraPrivaat[[#All],[Index]],0)))) -> HPC350 | X43: =IF(W43="","", IF(INDEX(LaadinfraPrivaat[Index],MATCH(W43,LaadinfraPrivaat[Charging type],0))+1>5,"", INDEX(LaadinfraPrivaat[[#All],[Charging type]],MATCH(INDEX(LaadinfraPrivaat[Index],MATCH(W43,LaadinfraPrivaat[Charging type],0))+1,LaadinfraPrivaat[[#All],[Index]],0)))) ->  | Y43: =IF(X43="","", IF(INDEX(LaadinfraPrivaat[Index],MATCH(X43,LaadinfraPrivaat[Charging type],0))+1>5,"", INDEX(LaadinfraPrivaat[[#All],[Charging type]],MATCH(INDEX(LaadinfraPrivaat[Index],MATCH(X43,LaadinfraPrivaat[Charging type],0))+1,LaadinfraPrivaat[[#All],[Index]],0)))) -> 
K44: AC11 | L44: ='Input-Output Module'!$E$32 -> 0.1220728926 | M44: =SUMPRODUCT(('M3-TCO-laadplein'!$Q$9:$Q$14=Calculatie!$K44)*'M3-TCO-laadplein'!$O$9:$O$14*'M3-TCO-laadplein'!D$9:D$14)*Calculatie!$L44 -> 0 | N44: =SUMPRODUCT(('M3-TCO-laadplein'!$Q$9:$Q$14=Calculatie!$K44)*'M3-TCO-laadplein'!$O$9:$O$14*'M3-TCO-laadplein'!E$9:E$14)*Calculatie!$L44 -> 0 | O44: =SUMPRODUCT(('M3-TCO-laadplein'!$Q$9:$Q$14=Calculatie!$K44)*'M3-TCO-laadplein'!$O$9:$O$14*'M3-TCO-laadplein'!F$9:F$14)*Calculatie!$L44 -> 0 | P44: =SUMPRODUCT(('M3-TCO-laadplein'!$Q$9:$Q$14=Calculatie!$K44)*'M3-TCO-laadplein'!$O$9:$O$14*'M3-TCO-laadplein'!G$9:G$14)*Calculatie!$L44 -> 0 | Q44: =SUMPRODUCT(('M3-TCO-laadplein'!$Q$9:$Q$14=Calculatie!$K44)*'M3-TCO-laadplein'!$O$9:$O$14*'M3-TCO-laadplein'!H$9:H$14)*Calculatie!$L44 -> 0 | R44: =SUMPRODUCT(('M3-TCO-laadplein'!$Q$9:$Q$14=Calculatie!$K44)*'M3-TCO-laadplein'!$O$9:$O$14*'M3-TCO-laadplein'!I$9:I$14)*Calculatie!$L44 -> 0 | S44: 3 | T44: Grote bakwagen (lvm >18 ton) | U44: =IFERROR(INDEX(LaadinfraPrivaat[[#All],[Charging type]],MATCH((IF('M3-TCO-laadplein'!L12<>"",'M3-TCO-laadplein'!L12,'M3-TCO-laadplein'!K12)*IF('M3-TCO-laadplein'!N12<>"",'M3-TCO-laadplein'!N12,'M3-TCO-laadplein'!M12))/'M3-TCO-laadplein'!P12,LaadinfraPrivaat[[#All],[Power (kW)]],-1)),"Niet mogelijk") -> FC50 | V44: =IF(OR(INDEX(LaadinfraPrivaat[Index],MATCH(U44,LaadinfraPrivaat[Charging type],0))+1>5,U44=""),"", INDEX(LaadinfraPrivaat[[#All],[Charging type]],MATCH(INDEX(LaadinfraPrivaat[Index],MATCH(U44,LaadinfraPrivaat[Charging type],0))+1,LaadinfraPrivaat[[#All],[Index]],0))) -> HPC150 | W44: =IF(V44="","", IF(INDEX(LaadinfraPrivaat[Index],MATCH(V44,LaadinfraPrivaat[Charging type],0))+1>5,"", INDEX(LaadinfraPrivaat[[#All],[Charging type]],MATCH(INDEX(LaadinfraPrivaat[Index],MATCH(V44,LaadinfraPrivaat[Charging type],0))+1,LaadinfraPrivaat[[#All],[Index]],0)))) -> HPC350 | X44: =IF(W44="","", IF(INDEX(LaadinfraPrivaat[Index],MATCH(W44,LaadinfraPrivaat[Charging type],0))+1>5,"", INDEX(LaadinfraPrivaat[[#All],[Charging type]],MATCH(INDEX(LaadinfraPrivaat[Index],MATCH(W44,LaadinfraPrivaat[Charging type],0))+1,LaadinfraPrivaat[[#All],[Index]],0)))) ->  | Y44: =IF(X44="","", IF(INDEX(LaadinfraPrivaat[Index],MATCH(X44,LaadinfraPrivaat[Charging type],0))+1>5,"", INDEX(LaadinfraPrivaat[[#All],[Charging type]],MATCH(INDEX(LaadinfraPrivaat[Index],MATCH(X44,LaadinfraPrivaat[Charging type],0))+1,LaadinfraPrivaat[[#All],[Index]],0)))) -> 
A45: Allowed NOx (kg) | B45: =INDEX(EnergieverbruikEnOnderhoudPerType[[#All],[Rijden EV '[kWh/km']]],MATCH(Calculatie!$C$3,EnergieverbruikEnOnderhoudPerType[[#All],[Type ID]],0)) *INDEX(AdBleu[[#All],[Waarde]],MATCH("Nox standaard (Euro VI)",AdBleu[[#All],[Variabele]],0)) *$B$4 / 1000 -> 43.24920826 | E45: =INDEX(EnergieverbruikEnOnderhoudPerType[[#All],[Rijden EV '[kWh/km']]],MATCH(Calculatie!$C$3,EnergieverbruikEnOnderhoudPerType[[#All],[Type ID]],0)) *INDEX(AdBleu[[#All],[Waarde]],MATCH("Nox standaard (Euro VI)",AdBleu[[#All],[Variabele]],0)) *$B$4 / 1000 -> 43.24920826 | K45: Totale kosten | M45: =SUM(M40:M44) -> 0 | N45: =SUM(N40:N44) -> 0 | O45: 0 | P45: 0 | Q45: 0 | R45: 0 | S45: 4 | T45: Lichte trekker z/opl (GVW <40 ton) | U45: =IFERROR(INDEX(LaadinfraPrivaat[[#All],[Charging type]],MATCH((IF('M3-TCO-laadplein'!L13<>"",'M3-TCO-laadplein'!L13,'M3-TCO-laadplein'!K13)*IF('M3-TCO-laadplein'!N13<>"",'M3-TCO-laadplein'!N13,'M3-TCO-laadplein'!M13))/'M3-TCO-laadplein'!P13,LaadinfraPrivaat[[#All],[Power (kW)]],-1)),"Niet mogelijk") -> HPC150 | V45: =IF(OR(INDEX(LaadinfraPrivaat[Index],MATCH(U45,LaadinfraPrivaat[Charging type],0))+1>5,U45=""),"", INDEX(LaadinfraPrivaat[[#All],[Charging type]],MATCH(INDEX(LaadinfraPrivaat[Index],MATCH(U45,LaadinfraPrivaat[Charging type],0))+1,LaadinfraPrivaat[[#All],[Index]],0))) -> HPC350 | W45: =IF(V45="","", IF(INDEX(LaadinfraPrivaat[Index],MATCH(V45,LaadinfraPrivaat[Charging type],0))+1>5,"", INDEX(LaadinfraPrivaat[[#All],[Charging type]],MATCH(INDEX(LaadinfraPrivaat[Index],MATCH(V45,LaadinfraPrivaat[Charging type],0))+1,LaadinfraPrivaat[[#All],[Index]],0)))) ->  | X45: =IF(W45="","", IF(INDEX(LaadinfraPrivaat[Index],MATCH(W45,LaadinfraPrivaat[Charging type],0))+1>5,"", INDEX(LaadinfraPrivaat[[#All],[Charging type]],MATCH(INDEX(LaadinfraPrivaat[Index],MATCH(W45,LaadinfraPrivaat[Charging type],0))+1,LaadinfraPrivaat[[#All],[Index]],0)))) ->  | Y45: =IF(X45="","", IF(INDEX(LaadinfraPrivaat[Index],MATCH(X45,LaadinfraPrivaat[Charging type],0))+1>5,"", INDEX(LaadinfraPrivaat[[#All],[Charging type]],MATCH(INDEX(LaadinfraPrivaat[Index],MATCH(X45,LaadinfraPrivaat[Charging type],0))+1,LaadinfraPrivaat[[#All],[Index]],0)))) -> 
A46: Reduction of NOx by Adblue (kg) | B46: =MAX(0,B43-B45) -> 544.4249934 | E46: =MAX(0,E43-E45) -> 544.4249934 | S46: 5 | T46: Zware trekker z/opl (GVW >40 ton) | U46: =IFERROR(INDEX(LaadinfraPrivaat[[#All],[Charging type]],MATCH((IF('M3-TCO-laadplein'!L14<>"",'M3-TCO-laadplein'!L14,'M3-TCO-laadplein'!K14)*IF('M3-TCO-laadplein'!N14<>"",'M3-TCO-laadplein'!N14,'M3-TCO-laadplein'!M14))/'M3-TCO-laadplein'!P14,LaadinfraPrivaat[[#All],[Power (kW)]],-1)),"Niet mogelijk") -> HPC150 | V46: =IF(OR(INDEX(LaadinfraPrivaat[Index],MATCH(U46,LaadinfraPrivaat[Charging type],0))+1>5,U46=""),"", INDEX(LaadinfraPrivaat[[#All],[Charging type]],MATCH(INDEX(LaadinfraPrivaat[Index],MATCH(U46,LaadinfraPrivaat[Charging type],0))+1,LaadinfraPrivaat[[#All],[Index]],0))) -> HPC350 | W46: =IF(V46="","", IF(INDEX(LaadinfraPrivaat[Index],MATCH(V46,LaadinfraPrivaat[Charging type],0))+1>5,"", INDEX(LaadinfraPrivaat[[#All],[Charging type]],MATCH(INDEX(LaadinfraPrivaat[Index],MATCH(V46,LaadinfraPrivaat[Charging type],0))+1,LaadinfraPrivaat[[#All],[Index]],0)))) ->  | X46: =IF(W46="","", IF(INDEX(LaadinfraPrivaat[Index],MATCH(W46,LaadinfraPrivaat[Charging type],0))+1>5,"", INDEX(LaadinfraPrivaat[[#All],[Charging type]],MATCH(INDEX(LaadinfraPrivaat[Index],MATCH(W46,LaadinfraPrivaat[Charging type],0))+1,LaadinfraPrivaat[[#All],[Index]],0)))) ->  | Y46: =IF(X46="","", IF(INDEX(LaadinfraPrivaat[Index],MATCH(X46,LaadinfraPrivaat[Charging type],0))+1>5,"", INDEX(LaadinfraPrivaat[[#All],[Charging type]],MATCH(INDEX(LaadinfraPrivaat[Index],MATCH(X46,LaadinfraPrivaat[Charging type],0))+1,LaadinfraPrivaat[[#All],[Index]],0)))) -> 
A47: Adblue cost | B47: =B46 * 1000 *INDEX(AdBleu[[#All],[Waarde]],MATCH("Adblue gebruik",AdBleu[[#All],[Variabele]],0)) *INDEX(AdBleu[[#All],[Waarde]],MATCH("Kosten Adblue",AdBleu[[#All],[Variabele]],0)) -> 342.7147648 | E47: =E46 * 1000 *INDEX(AdBleu[[#All],[Waarde]],MATCH("Adblue gebruik",AdBleu[[#All],[Variabele]],0)) *INDEX(AdBleu[[#All],[Waarde]],MATCH("Kosten Adblue",AdBleu[[#All],[Variabele]],0)) -> 342.7147648
A49: HERNIEUWBARE ENERGIE-EENHEDEN
A50: Gebruikte energie | C50: =C27+C28 -> 94020.01795 | D50: =D27+D28 -> 6218.255156 | E50: =E27+E28 -> 0
A51: Omrekenen naar GJ | C51: =C50*0.0036 -> 338.4720646 | D51: =D50*INDEX(HBEs[[#All],[Waarde]],MATCH("Energiewaarde (MJ) per kg H2",HBEs[[#All],[Variabele]],0))/1000 -> 746.8124442 | E51: =E50*INDEX(HBEs[[#All],[Waarde]],MATCH("Energiewaarde (MJ) per kg H2",HBEs[[#All],[Variabele]],0))/1000 -> 0 | F51: Want 1 HBE = 1GJ
A52: Forfait | C52: =IF(Elec_type=Config!$A$16,1,INDEX(HBEs[[#All],[Waarde]],MATCH("Aandeel groene energie 'grijze' stroom",HBEs[[#All],[Variabele]],0))) -> 1 | D52: =IF(H2_type=Config!$A$19,1,0) -> 1 | E52: =IF(H2_type=Config!$A$19,1,0) -> 1 | F52: Als voor EV geen 100% groene stroom wordt gebruikt, dan mag niet alles worden meegenomen
A53: Hoeveelheid hernieuwbare energie | C53: =C52*C51 -> 338.4720646 | D53: =D52*D51 -> 746.8124442 | E53: =E52*E51 -> 0
A54: Multiplier | C54: =INDEX(HBEs[[#All],[Waarde]],MATCH(_xlfn.CONCAT("Multiplier ",Calculatie!$C$10),HBEs[[#All],[Variabele]],0)) -> 4 | D54: =INDEX(HBEs[[#All],[Waarde]],MATCH(_xlfn.CONCAT("Multiplier ",Calculatie!$D$10),HBEs[[#All],[Variabele]],0)) -> 2.5 | E54: =INDEX(HBEs[[#All],[Waarde]],MATCH(_xlfn.CONCAT("Multiplier ",Calculatie!$D$10),HBEs[[#All],[Variabele]],0)) -> 2.5
A55: HBE's (onafgerond) | C55: =C54*C53 -> 1353.888259 | D55: =D54*D53 -> 1867.03111 | E55: =E54*E53 -> 0
A56: HBE's | C56: =ROUNDDOWN(C55,0) -> 1353 | D56: =ROUNDDOWN(D55,0) -> 1867 | E56: =ROUNDDOWN(E55,0) -> 0 | F56: HBE's moeten altijd naar beneden worden afgerond

Sheet M1-PowerSupply
A1: BASIS INVOERGEGEVENS
A2: Voertuig / ID | B2: =Voertuigtype -> Grote bakwagen (lvm > 16 ton) | C2: =INDEX(Voertuigen[#All],MATCH(Calculatie!B2,Voertuigen[[#All],[Voertuig]],0),2) -> 5 | F2: test | G2: Dit is een overgenomen veld
A3: Voertuigtype / ID | B3: =INDEX(Voertuigen[#All],MATCH(Calculatie!B2,Voertuigen[[#All],[Voertuig]],0),3) -> Grote bakwagen | C3: =INDEX(Voertuigen[#All],MATCH(Calculatie!B2,Voertuigen[[#All],[Voertuig]],0),4) -> 3 | F3: test | G3: Dit is een berekening
A4: Verwacht jaarkilometrage | B4: =Kilometrage -> 70000
A5: Grijze/groene elektriciciteit | B5: =Elec_type -> Groen
A6: Grijze/groene waterstof | B6: =H2_type -> Electrolyse (hernieuwbare energie)
A7: Rechtsvorm en belastingpercentage | B7: =Belasting -> BV of NV met 19% belasting
A8: Grootte van bedrijf | B8: =Bedrijfsgrootte -> Groot
A9: Gekoeld? | B9: =Koeling -> Nee
A10: Km/dag | B10: =Calculatie!B16 -> 269.2307692
A11: Productieve uren per dag | B11: =Calculatie!B15 -> 10
B14: Dieselvoertuig | C14: Elektrisch voertuig | D14: Waterstof voertuig | I14: Batterij opties per variant [EV] | J14: [kWh] | L14: FCEV variants | M14: Batterij [kWh] | N14: FC-tank [L]
B15: DV | C15: EV | D15: FC | E15: H2ICE | I15: 4 | J15: =INDEX(FCEV_Variants[#All],MATCH('M1-PowerSupply'!$C$3,FCEV_Variants[[#All],[Type ID]],0),6) -> 260 | L15: 1 | M15: =INDEX(FCEV_Variants[#All],MATCH('M1-PowerSupply'!$C$3,FCEV_Variants[[#All],[Type ID]],0),7) -> 140 | N15: =INDEX(FCEV_Variants[#All],MATCH('M1-PowerSupply'!$C$3,FCEV_Variants[[#All],[Type ID]],0),9) -> 20
A16: Energieverbruik/km | B16: =INDEX(EnergieverbruikEnOnderhoudPerType[[#All],[Rijden DV '[L/km']]],MATCH('M1-PowerSupply'!$C$3,EnergieverbruikEnOnderhoudPerType[[#All],[Type ID]],0)) -> 0.2854179116 | C16: =INDEX(EnergieverbruikEnOnderhoudPerType[[#All],[Rijden EV '[kWh/km']]],MATCH('M1-PowerSupply'!$C$3,EnergieverbruikEnOnderhoudPerType[[#All],[Type ID]],0)) -> 1.343143114 | D16: =INDEX(EnergieverbruikEnOnderhoudPerType[[#All],[Rijden FC '[kg H2/km']]],MATCH('M1-PowerSupply'!$C$3,EnergieverbruikEnOnderhoudPerType[[#All],[Type ID]],0)) -> 0.08883221651 | E16: =INDEX(EnergieverbruikEnOnderhoudPerType[[#All],[Rijden H2ICE '[kg H2 /km']]],MATCH('M1-PowerSupply'!$C$3,EnergieverbruikEnOnderhoudPerType[[#All],[Type ID]],0)) -> 0 | I16: 3 | J16: =INDEX(FCEV_Variants[#All],MATCH('M1-PowerSupply'!$C$3,FCEV_Variants[[#All],[Type ID]],0),5) -> 200 | L16: 1.25 | M16: =M$15*L16 -> 175 | N16: =N$15*L16 -> 25
A17: Energieverbruik koeleenheid/uur | B17: =IF(Koeling=Config!$A$11,INDEX(EnergieverbruikEnOnderhoudPerType[[#All],[Koelen DV '[L/uur']]],MATCH('M1-PowerSupply'!$C$3,EnergieverbruikEnOnderhoudPerType[[#All],[Type ID]],0)),0) -> 0 | C17: =IF(Koeling=Config!$A$11,INDEX(EnergieverbruikEnOnderhoudPerType[[#All],[Koelen EV '[kWh/uur']]],MATCH('M1-PowerSupply'!$C$3,EnergieverbruikEnOnderhoudPerType[[#All],[Type ID]],0)),0) -> 0 | D17: =IF(Koeling=Config!$A$11,INDEX(EnergieverbruikEnOnderhoudPerType[[#All],[Koelen FC '[kg H2/uur']]],MATCH('M1-PowerSupply'!$C$3,EnergieverbruikEnOnderhoudPerType[[#All],[Type ID]],0)),0) -> 0 | E17: =IF(Koeling=Config!$A$11,INDEX(EnergieverbruikEnOnderhoudPerType[[#All],[Koelen H2ICE '[kg H2/uur']]],MATCH('M1-PowerSupply'!$C$3,EnergieverbruikEnOnderhoudPerType[[#All],[Type ID]],0)),0) -> 0 | I17: 2 | J17: =INDEX(FCEV_Variants[#All],MATCH('M1-PowerSupply'!$C$3,FCEV_Variants[[#All],[Type ID]],0),4) -> 180 | L17: 1.5 | M17: =M$15*L17 -> 210 | N17: =N$15*L17 -> 30
A18: Energieverbruik voertuig / dag | B18: =B$16*$B$10+($B$11*INDEX(InzetVoertuigPar[[#All],[Waarde]],MATCH("Aandeel koelunit",InzetVoertuigPar[[#All],[Variabele]],0))*'M1-PowerSupply'!B$17) -> 76.8432839 | C18: =C$16*$B$10+($B$11*INDEX(InzetVoertuigPar[[#All],[Waarde]],MATCH("Aandeel koelunit",InzetVoertuigPar[[#All],[Variabele]],0))*'M1-PowerSupply'!C$17) -> 361.6154537 | D18: =D$16*$B$10+($B$11*INDEX(InzetVoertuigPar[[#All],[Waarde]],MATCH("Aandeel koelunit",InzetVoertuigPar[[#All],[Variabele]],0))*'M1-PowerSupply'!D$17) -> 23.91636598 | E18: =E$16*$B$10+($B$11*INDEX(InzetVoertuigPar[[#All],[Waarde]],MATCH("Aandeel koelunit",InzetVoertuigPar[[#All],[Variabele]],0))*'M1-PowerSupply'!E$17) -> 0 | I18: 1 | J18: =INDEX(FCEV_Variants[#All],MATCH('M1-PowerSupply'!$C$3,FCEV_Variants[[#All],[Type ID]],0),3) -> 160
A19: [unit] | B19: [liters] | C19: [kWh] | D19: [kg H2] | E19: [kg H2]
A21: Gewenste restcapaciteit batterij | C21: =INDEX(InzetVoertuigPar[[#All],[Waarde]],MATCH("Gewenste restcapaciteit batterij",InzetVoertuigPar[[#All],[Variabele]],0)) -> 0.2
A22: Aanbevolen batterijcapaciteit [kWh] | C22: =IF(C18/(1-C21)>$J$15,$J$15,INDEX($J$15:$J$18,MATCH(C18/(1-C21),$J$15:$J$18,-1))) -> 260
A25: Berekening benodigde eigen laadinfra voor EV voertuig
A26: Tijd om 's nachts op te laden [uur] | B26: =IF(24-B11>=8,8,MAX(0,24-B11)) -> 8
A27: Grenswaarde opladen batterij | B27: =1-INDEX(InzetVoertuigPar[[#All],[Waarde]],MATCH("Gewenste restcapaciteit batterij",InzetVoertuigPar[[#All],[Variabele]],0)) -> 0.8 | C27: voor een lange levensduur van een batterij te hebben is het noodzaak deze nooit 100% op te laden (of te ontladen)
A28: Gebruikte batterij | B28: ='Input-Output Module'!$E$43 -> 260 | C28: Als er geen gebruiker input is, wordt berekende waarde overgenomen. Anders gebruikersinput
A29: Benodigde energie | B29: =MIN(B28*B27,C18) -> 208
A30: Benodigde laadcapaciteit [kW/u] | B30: =B29/B26 -> 26
A31: Aanbevolen systeem | B31: =IF(B30>=MAX(LaadinfraPrivaat[[#All],[Power (kW)]]),MAX(LaadinfraPrivaat[[#All],[Power (kW)]]),INDEX(LaadinfraPrivaat[[#All],[Power (kW)]],MATCH(B30,LaadinfraPrivaat[[#All],[Power (kW)]],-1))) -> 50 | C31: =INDEX(LaadinfraPrivaat[[#All],[Power]],MATCH('M1-PowerSupply'!$B$31,LaadinfraPrivaat[[#All],[Power (kW)]],0)) -> 50 kW
A32: Gebruikt systeem [kW] | B32: =INDEX(LaadinfraPrivaat[[#All],[Power (kW)]],MATCH('M1-PowerSupply'!$C$32,LaadinfraPrivaat[[#All],[Power]],0)) -> 50 | C32: ='Input-Output Module'!D58 -> 50 kW | D32: Als er geen gebruiker input is, wordt berekende waarde overgenomen. Anders gebruikersinput
A34: Max depotladen | B34: =MIN(B29,B32*B26) -> 208
A35: Rest depot laden | B35: =B29-B34 -> 0
A37: Berekening benodigde externe laadinfra voor EV voertuig
A38: Benodigde externe energie | B38: =C18-B34 -> 153.6154537
A39: Tijd voor opladen | B39: =INDEX(InzetVoertuigPar[[#All],[Waarde]],MATCH("Max. tijd per dag opladen extern",InzetVoertuigPar[[#All],[Variabele]],0)) -> 1
A40: max aantal sessies | B40: =INDEX(InzetVoertuigPar[[#All],[Waarde]],MATCH("Max. # keer opladen extern / dag",InzetVoertuigPar[[#All],[Variabele]],0)) -> 1
A41: Min. benodigde laadcapaciteit [kW/u] | B41: =B38/(B39*B40) -> 153.6154537
A42: Aanbevolen systeem [kW] | B42: =IF(B41>=MAX(LaadinfraPubliek[[#All],[Power (kW)]]),MAX(LaadinfraPubliek[[#All],[Power (kW)]]),INDEX(LaadinfraPubliek[[#All],[Power (kW)]],MATCH('M1-PowerSupply'!$B$41,LaadinfraPubliek[[#All],[Power (kW)]],-1))) -> 350 | C42: =INDEX(LaadinfraPubliek[[#All],[Charging type]],MATCH('M1-PowerSupply'!$B$42,LaadinfraPubliek[[#All],[Power (kW)]],0)) -> HPC350
A43: Maximale hoeveelheid energie extern op te laden | B43: =B42*B40*B39 -> 350
A44: Benodigd aantal uren voor laden | B44: =B38/B42 -> 0.4389012962
A45: Extern geladen energie | B45: =MIN(B44*B42,B43) -> 153.6154537
A47: Check validiteit
A48: Extern opladen duur | B48: =IF(B38>=B43,FALSE,TRUE) -> TRUE | C48: Kan met de externe laadinfra benodigde energie binnen max tijd voor opladen geleverd worden?
A49: Extern opladen capaciteit | B49: =IF(B38>=B28*B27*B40,FALSE,TRUE) -> TRUE | C49: Kan met batterijcapaciteit het aantal dagelijkse kms gereden worden met max aantal oplaadsessies per dag?
A51: Scenario valide? | B51: =IF(AND(B48,B49),TRUE,FALSE) -> TRUE | C51: Uitgangspunt is dat men zoveel mogelijk met depotladen probeert te laden. Als meer energie nodig is, gebeurt dat via extern laden Past dat binnen de uitgangspunten? Dan is er sprake van een valide scenario. Anders niet.

Sheet M2-Subsidie
A2: Samenvatting gegevens
A3: Voertuigtype | B3: =Calculatie!$B$3 -> Grote bakwagen | F3: Parameters
A4: Voertuigtype ID | B4: =Calculatie!$C$3 -> 3 | F4: Maximale steun per categorie | K4: Percentage en investering per jaar
A5: Voertuig categorie | B5: =INDEX(AanzetCAT[#All],$B$4+1,2) -> N3 Bakwagen (lvm > 18t) | F5: AanZET categorie | G5: Omvang bedrijf | H5: Max. steun [%] | I5: Max. steun [€] | K5: Jaartal | L5: MIA % | M5: Min. Investering
A6: Rechtsvorm en belastingpercentage | B6: =INDEX(Belastinggegevens[[#All],[Belastingsklasse]],MATCH(Calculatie!$B$7,Keuzevelden[[#All],[Rechtsvorm en belastingpercentage]],0)) -> BV of NV met 19% belasting | F6: N2 | G6: Middelgroot | H6: 0.12 | I6: 14700 | K6: 2021 | L6: 0.36 | M6: 2500
A7: Basisjaar prognose | B7: =MIN(YEAR(NOW()),MAX(MIAperJaar[[#All],[Jaartal]])) -> 2023 | F7: N2 | G7: Klein | H7: 0.148 | I7: 18800 | K7: 2022 | L7: 0.45 | M7: 2500
A8: Grootte van bedrijf | B8: =INDEX(MaxStaatsSteun[[#All],[Omvang bedrijf]],MATCH(Calculatie!$B$8,Keuzevelden[[#All],[Grootte van bedrijf]],0)) -> Groot | F8: N2 | G8: Groot | H8: 0.061 | I8: 7500 | K8: 2023 | L8: 0.36 | M8: 2500
A9: Minimale investering | B9: =INDEX(MIAperJaar[[#All],[Min. Investering]],MATCH($B$7,MIAperJaar[[#All],[Jaartal]],0)) -> 2500 | F9: N3 Bakwagen (lvm <= 18t) | G9: Middelgroot | H9: 0.2 | I9: 60500
F10: N3 Bakwagen (lvm <= 18t) | G10: Klein | H10: 0.286 | I10: 86600
A11: Algemene subsidie gegevens | B11: EV | C11: FC | D11: H2ICE | F11: N3 Bakwagen (lvm <= 18t) | G11: Groot | H11: 0.103 | I11: 31100
A12: Investering voertuig (bruto) | B12: ='Input-Output Module'!$E$48 -> 287265 | C12: ='Input-Output Module'!$F$48 -> 449564.4 | D12: ='Input-Output Module'!$G$48 -> 0 | F12: N3 Bakwagen (lvm > 18t) | G12: Middelgroot | H12: 0.21 | I12: 83200
A13: Meerprijs t.o.v. Dieselvoertuig | B13: =IF(B12-'Input-Output Module'!$D$48>0,B12-'Input-Output Module'!$D$48,0) -> 136500 | C13: =IF(C12-'Input-Output Module'!$D$48>0,C12-'Input-Output Module'!$D$48,0) -> 298799.4 | D13: =IF(D12-'Input-Output Module'!$D$48>0,D12-'Input-Output Module'!$D$48,0) -> 0 | F13: N3 Bakwagen (lvm > 18t) | G13: Klein | H13: 0.29 | I13: 115200
A14: Maximale steun op grond van EU-staatssteunkalender | B14: =INDEX(MaxStaatsSteun[[#All],[Maximale steun (% van meerprijs)]],MATCH($B$8,MaxStaatsSteun[[#All],[Omvang bedrijf]],0))*B13 -> 54600 | C14: =INDEX(MaxStaatsSteun[[#All],[Maximale steun (% van meerprijs)]],MATCH($B$8,MaxStaatsSteun[[#All],[Omvang bedrijf]],0))*C13 -> 119519.76 | D14: =INDEX(MaxStaatsSteun[[#All],[Maximale steun (% van meerprijs)]],MATCH($B$8,MaxStaatsSteun[[#All],[Omvang bedrijf]],0))*D13 -> 0 | F14: N3 Bakwagen (lvm > 18t) | G14: Groot | H14: 0.111 | I14: 43900
A15: AanZET-subsidie | B15: ='Input-Output Module'!$E$49 -> Nee | C15: ='Input-Output Module'!$F$49 -> Nee | D15: ='Input-Output Module'!$G$49 -> Nee | F15: N3 Trekker | G15: Middelgroot | H15: 0.21 | I15: 83200
A16: MIA-subsidie | B16: ='Input-Output Module'!$E$50 -> Ja | C16: ='Input-Output Module'!$F$50 -> Ja | D16: ='Input-Output Module'!$G$50 -> Ja | F16: N3 Trekker | G16: Klein | H16: 0.29 | I16: 115200
A17: MIA-subsidie laadpaal | B17: ='Input-Output Module'!$D$61 -> Ja | F17: N3 Trekker | G17: Groot | H17: 0.111 | I17: 43900
A19: AanZET subsidie | F19: Maximale steun op grond van EU-staatssteunkalender
A20: Maximale steun | B20: =IF($B$15=Config!$A$11, MIN( 'M2-Subsidie'!$B$12*SUMIFS(MaxSteun[[#All],[Max. steun '[%']]],MaxSteun[[#All],[AanZET categorie]],'M2-Subsidie'!$B$5,MaxSteun[[#All],[Omvang bedrijf]],'M2-Subsidie'!$B$8), SUMIFS(MaxSteun[[#All],[Max. steun '[€']]],MaxSteun[[#All],[AanZET categorie]],'M2-Subsidie'!$B$5,MaxSteun[[#All],[Omvang bedrijf]],'M2-Subsidie'!$B$8), B$14),0) -> 0 | C20: =IF($C$15=Config!$A$11, MIN( 'M2-Subsidie'!$C$12*SUMIFS(MaxSteun[[#All],[Max. steun '[%']]],MaxSteun[[#All],[AanZET categorie]],'M2-Subsidie'!$B$5,MaxSteun[[#All],[Omvang bedrijf]],'M2-Subsidie'!$B$8), SUMIFS(MaxSteun[[#All],[Max. steun '[€']]],MaxSteun[[#All],[AanZET categorie]],'M2-Subsidie'!$B$5,MaxSteun[[#All],[Omvang bedrijf]],'M2-Subsidie'!$B$8), C$14),0) -> 0 | D20: =IF($D$15=Config!$A$11, MIN( 'M2-Subsidie'!$D$12*SUMIFS(MaxSteun[[#All],[Max. steun '[%']]],MaxSteun[[#All],[AanZET categorie]],'M2-Subsidie'!$B$5,MaxSteun[[#All],[Omvang bedrijf]],'M2-Subsidie'!$B$8), SUMIFS(MaxSteun[[#All],[Max. steun '[€']]],MaxSteun[[#All],[AanZET categorie]],'M2-Subsidie'!$B$5,MaxSteun[[#All],[Omvang bedrijf]],'M2-Subsidie'!$B$8), D$14),0) -> 0 | F20: Omvang bedrijf | G20: Maximale steun (% van meerprijs) | H20: Toelichting
F21: Groot | G21: 0.4 | H21: >250 fte, >€50 mil omzet
A22: MIA (Milieu Investerings Aftrek) | F22: Middelgroot | G22: 0.5 | H22: <250 fte, <€50 mil omzet
A23: Belastingpercentage | B23: =INDEX(Belastinggegevens[[#All],[Procent]],MATCH($B$6,Belastinggegevens[[#All],[Belastingsklasse]],0)) -> 0.19 | C23: =INDEX(Belastinggegevens[[#All],[Procent]],MATCH($B$6,Belastinggegevens[[#All],[Belastingsklasse]],0)) -> 0.19 | D23: =INDEX(Belastinggegevens[[#All],[Procent]],MATCH($B$6,Belastinggegevens[[#All],[Belastingsklasse]],0)) -> 0.19 | F23: Klein | G23: 0.6 | H23: <50 fte, <€10 mil omzet
A24: MIA percentage | B24: =IF($B$16=Config!$A$11, INDEX(MIAperJaar[[#All],[MIA %]],MATCH($B$7,MIAperJaar[[#All],[Jaartal]],0)), 0) -> 0.36 | C24: =IF($C$16=Config!$A$11, INDEX(MIAperJaar[[#All],[MIA %]],MATCH($B$7,MIAperJaar[[#All],[Jaartal]],0)), 0) -> 0.36 | D24: =IF($D$16=Config!$A$11, INDEX(MIAperJaar[[#All],[MIA %]],MATCH($B$7,MIAperJaar[[#All],[Jaartal]],0)), 0) -> 0.36
A25: Fictieve fiscale winst | B25: =INDEX(Belastinggegevens[[#All],[Gebruikte fiscale winst voor berekening]],MATCH($B$6,Belastinggegevens[[#All],[Belastingsklasse]],0)) -> 200000 | C25: =INDEX(Belastinggegevens[[#All],[Gebruikte fiscale winst voor berekening]],MATCH($B$6,Belastinggegevens[[#All],[Belastingsklasse]],0)) -> 200000 | D25: =INDEX(Belastinggegevens[[#All],[Gebruikte fiscale winst voor berekening]],MATCH($B$6,Belastinggegevens[[#All],[Belastingsklasse]],0)) -> 200000 | F25: AanZET categorie verdeling
A26: Aftrekpost | B26: =IF(B12>=$B$9,(B12-B20)*B24,0) -> 103415.4 | C26: =IF(C12>=$B$9,(C12-C20)*C24,0) -> 161843.184 | D26: =IF(D12>=$B$9,(D12-D20)*D24,0) -> 0 | F26: Voertuigtype | G26: AanZET categorie
A27: Fiscaal voordeel MIA | B27: =(B23*B25)-((B25-B26)*B23) -> 19648.926 | C27: =(C23*C25)-((C25-C26)*C23) -> 30750.20496 | D27: =(D23*D25)-((D25-D26)*D23) -> 0 | F27: Kleine bakwagen | G27: N2
A28: MIA (Milieu Investerings Aftrek) Laadpaal | F28: Medium bakwagen | G28: N3 Bakwagen (lvm <= 18t)
A29: Investering Laadpaal | B29: ='Input-Output Module'!$D$59+'Input-Output Module'!$D$60 -> 32104.035 | F29: Grote bakwagen | G29: N3 Bakwagen (lvm > 18t)
A30: MIA percentage | B30: =IF($B$17=Config!$A$11, INDEX(MIAperJaar[[#All],[MIA %]],MATCH($B$7,MIAperJaar[[#All],[Jaartal]],0)), 0) -> 0.36 | F30: Lichte trekker z/opl | G30: N3 Trekker
A31: Aftrekpost | B31: =IF(B29>=B9,B29*B30,0) -> 11557.4526 | F31: Zware trekker z/opl | G31: N3 Trekker
A32: Fiscaal voordeel MIA | B32: =(B23*B25)-((B25-B31)*B23) -> 2195.915994
F33: Belastinggegevens
A34: Uiteindelijke subsidie | F34: Belastingsklasse | G34: Procent | H34: Bovengrens Fiscale winst | I34: Gebruikte fiscale winst voor berekening
A35: AanZET | B35: =B20 -> 0 | C35: =C20 -> 0 | D35: =D20 -> 0 | F35: BV of NV met 19% belasting | G35: 0.19 | H35: 200000 | I35: 200000
A36: MIA | B36: =IF(B27<=(B14-B35),B27,IF(B14-B35<=0,0,B14-B35)) -> 19648.926 | C36: =IF(C27<=(C14-C35),C27,IF(C14-C35<=0,0,C14-C35)) -> 30750.20496 | D36: =IF(D27<=(D14-D35),D27,IF(D14-D35<=0,0,D14-D35)) -> 0 | F36: BV of NV met 25,8% belasting | G36: 0.258 | I36: 400000
A37: MIA Laadpaal | B37: =B32 -> 2195.915994 | F37: Eenmanszaak met 36,93% belasting | G37: 0.3693 | H37: 73031 | I37: 73031
A38: Totaal | B38: =SUM(B35:B37) -> 21844.84199 | C38: =SUM(C35:C37) -> 30750.20496 | D38: =SUM(D35:D37) -> 0 | F38: Eenmanszaak met 49,5% belasting | G38: 0.495 | I38: 146062
B40: Als de totale hoeveelheid aan subsidies kleiner is dat de maximale steun gebeurt hier niks nieuws
B41: Als dat wel het geval is, wordt eerst de maximale subsidie aan AanZET toegekend en dan MIA
B42: Voor laadpalen is de aanname gemaakt dat de aanschaf van een Laadpaal los ingediend wordt en dus niet meetelt voor het maximum per project

Sheet Invoer en categorieën
B2: Voertuigen en kenmerken | O2: Opties keuzevelden en defaultwaarden
B3: Basisjaar financiële cijfers: | C3: 2023 | D3: (relevant voor indexatie)
B4: Voertuig | C4: Voertuig ID | D4: Type | E4: Type ID | F4: Casco kosten voertuig (DV) | G4: H2ICE Casco | H4: Aanschaf koelsysteem | I4: Kilometrage | J4: Productive uren per jaar | K4: Afschrijftermijn | L4: Uurloon | O4: Optie | P4: Grijze/groene elektriciciteit | Q4: Grijze/groene waterstof | R4: Rechtsvorm en belastingpercentage | S4: Grootte van bedrijf
B5: =Config!A37 -> Kleine bakwagen (lvm ca. 6 ton) | C5: 1 | D5: =Config!A47 -> Kleine bakwagen | E5: 1 | F5: 81937.5 | G5: 0 | H5: 17500 | I5: 35000 | J5: 2600 | K5: 7 | L5: 31.48 | O5: keuze 1 | P5: =Config!$A$15 -> Grijs | Q5: =Config!$A$15 -> Grijs | R5: =Config!$A$20 -> BV of NV met 19% belasting | S5: =Config!$A$26 -> Groot
B6: =Config!A38 -> Kleine bakwagen/ Verhuiswagen | C6: 2 | D6: =Config!A47 -> Kleine bakwagen | E6: 1 | F6: 66120 | G6: 0 | H6: 0 | I6: 35000 | J6: 1600 | K6: 5 | L6: 24.7 | O6: keuze 2 | P6: =Config!$A$16 -> Groen | Q6: =Config!$A$17 -> Blauw | R6: =Config!$A$21 -> BV of NV met 25,8% belasting | S6: =Config!$A$25 -> Middelgroot
B7: =Config!A39 -> Medium bakwagen (lvm ca. 9 ton) | C7: 3 | D7: =Config!A48 -> Medium bakwagen | E7: 2 | F7: 116351.25 | G7: 0 | H7: 20000 | I7: 70000 | J7: 2600 | K7: 7 | L7: 31.48 | O7: keuze 3 | Q7: =Config!$A$18 -> Electrolyse (netstroom) | R7: =Config!$A$22 -> Eenmanszaak met 36,93% belasting | S7: =Config!$A$24 -> Klein
B8: =Config!A40 -> Medium bakwagen/ Verhuiswagen | C8: 4 | D8: =Config!A48 -> Medium bakwagen | E8: 2 | F8: 129960 | G8: 0 | H8: 0 | I8: 30000 | J8: 1800 | K8: 8 | L8: 29.5 | O8: keuze 4 | Q8: =Config!$A$19 -> Electrolyse (hernieuwbare energie) | R8: =Config!$A$23 -> Eenmanszaak met 49,5% belasting
B9: =Config!A41 -> Grote bakwagen (lvm > 16 ton) | C9: 5 | D9: =Config!A49 -> Grote bakwagen | E9: 3 | F9: 150765 | G9: 0 | H9: 22500 | I9: 70000 | J9: 2600 | K9: 7 | L9: 31.48 | O9: keuze 5
B10: =Config!A42 -> Grote bakwagen/ Verhuiswagen | C10: 6 | D10: =Config!A49 -> Grote bakwagen | E10: 3 | F10: 150480 | G10: 0 | H10: 0 | I10: 47000 | J10: 2000 | K10: 11 | L10: 28.9 | O10: keuze 6
B11: =Config!A43 -> Grote bakwagen/ Bouwvervoer | C11: 7 | D11: =Config!A49 -> Grote bakwagen | E11: 3 | F11: 245616 | G11: 0 | H11: 0 | I11: 42000 | J11: 2600 | K11: 7 | L11: 31.48 | O11: keuze 7
B12: =Config!A44 -> Lichte trekker z/opl (GVW < 40 ton) | C12: 8 | D12: =Config!A50 -> Lichte trekker z/opl | E12: 4 | F12: 124872.75 | G12: 0 | H12: 0 | I12: 100000 | J12: 2600 | K12: 7 | L12: 31.48 | O12: keuze 8
B13: =Config!A45 -> Zware trekker z/opl (GVW > 40 ton) | C13: 9 | D13: =Config!A51 -> Zware trekker z/opl | E13: 5 | F13: 144210 | G13: 171421 | H13: 0 | I13: 100000 | J13: 2600 | K13: 7 | L13: 31.48 | O13: keuze 9
B14: =Config!A46 -> Zware trekker z/opl/ Containertrucking | C14: 10 | D14: =Config!A51 -> Zware trekker z/opl | E14: 5 | F14: 115000 | G14: 142211 | H14: 0 | I14: 105000 | J14: 2600 | K14: 7 | L14: 31.48 | O14: keuze 10
O15: Defaultwaarde | P15: =P6 -> Groen | Q15: =Q8 -> Electrolyse (hernieuwbare energie) | R15: =R5 -> BV of NV met 19% belasting | S15: =S5 -> Groot
B18: Verschillende operationele kostenparameters per voertuigtype
B19: Basisjaar financiële cijfers: | C19: 2023
B20: Type ID | C20: Type | D20: PM_wear from tires | E20: Bandenkosten (€/km) | F20: Versch. voertuigkosten | G20: Speciale transportkosten | H20: Onderhoud koeling | I20: Eurovignet | J20: Tolheffing | K20: Wegenbelasting
B21: 1 | C21: Kleine bakwagen | D21: 0.08120688069 | E21: 0.023121345 | F21: 73.79136 | G21: 410.75625 | H21: 0.3392824745 | I21: 750 | J21: 0 | K21: 315.9
B22: 2 | C22: Medium bakwagen | D22: 0.08120688069 | E22: 0.0227691285 | F22: 73.79136 | G22: 399.10125 | H22: 0.393976411 | I22: 750 | J22: 0 | K22: 315.9
B23: 3 | C23: Grote bakwagen | D23: 0.08120688069 | E23: 0.022416912 | F23: 73.79136 | G23: 399.10125 | H23: 0.4486703475 | I23: 750 | J23: 0 | K23: 315.9
B24: 4 | C24: Lichte trekker z/opl | D24: 0.07472008133 | E24: 0.03444994 | F24: 73.79136 | G24: 996.8222 | H24: 0.5650192117 | I24: 1250 | J24: 0 | K24: 851.61
B25: 5 | C25: Zware trekker z/opl | D25: 0.06823328198 | E25: 0.046482968 | F25: 73.79136 | G25: 996.8222 | H25: 0.681368076 | I25: 1250 | J25: 0 | K25: 851.61
B28: Energieverbruik en onderhoudskosten per voertuigtype en aandrijving | S28: Prijzen van accus/power/tank
B29: Basisjaar financiële cijfers: | C29: 2023 | S29: Basisjaar financiële cijfers: | T29: 2023
B30: Type ID | C30: Type | D30: Rijden DV [L/km] | E30: Rijden EV [kWh/km] | F30: Rijden FC [kg H2/km] | G30: Koelen DV [L/uur] | H30: Koelen EV [kWh/uur] | I30: Koelen FC [kg H2/uur] | J30: Reparaties DV [€/jaar] | K30: Reparaties EV [€/jaar] | L30: Reparaties FC [€/jaar] | M30: Onderhoud DV [€/km] | N30: Onderhoud EV [€/km] | O30: Onderhoud FC [€/km] | P30: Rijden H2ICE [kg H2 /km] | Q30: Koelen H2ICE [kg H2/uur] | S30: Component | T30: prijs/unit
B31: 1 | C31: Kleine bakwagen | D31: 0.102327491 | E31: 0.4815411342 | F31: 0.03184795861 | G31: 1 | H31: 3.92 | I31: 0.2592592593 | J31: 500 | K31: 500 | L31: 1500 | M31: 0.0523645 | N31: 0.02618225 | O31: 0.07854675 | S31: Battery (per kWh) | T31: 525
B32: 2 | C32: Medium bakwagen | D32: 0.2013626294 | E32: 0.9475888443 | F32: 0.06267121986 | G32: 1.5 | H32: 5.88 | I32: 0.3888888889 | J32: 500 | K32: 500 | L32: 1500 | M32: 0.05759915 | N32: 0.028799575 | O32: 0.086398725 | S32: Fuel cell system (per kW) | T32: 1535
B33: 3 | C33: Grote bakwagen | D33: 0.2854179116 | E33: 1.343143114 | F33: 0.08883221651 | G33: 2.5 | H33: 9.8 | I33: 0.6481481481 | J33: 1000 | K33: 1000 | L33: 3000 | M33: 0.0628338 | N33: 0.0314169 | O33: 0.0942507 | S33: H2 storage (per kg) | T33: 1275
B34: 4 | C34: Lichte trekker z/opl | D34: 0.2956650564 | E34: 1.391364971 | F34: 0.0920214928 | J34: 1500 | K34: 1500 | L34: 5000 | M34: 0.0732957 | N34: 0.03664785 | O34: 0.10994355 | S34: Fuel cell production costs (%) | T34: 1.41
B35: 5 | C35: Zware trekker z/opl | D35: 0.4432427956 | E35: 1.66 | F35: 0.10978836 | J35: 1500 | K35: 1500 | L35: 5000 | M35: 0.0837576 | N35: 0.0418788 | O35: 0.1256364 | P35: 0.143
B38: EV/FC varianten: accupakketten, power en tank
B39: Basisjaar financiële cijfers: | C39: 2023
B40: Type ID | C40: Type | D40: EV accu 1 [kWh] | E40: EV accu 2 [kWh] | F40: EV accu 3 [kWh] | G40: EV accu 4 [kWh] | H40: FC accu | I40: FC power | J40: FC H2 tank | K40: H2ICE H2 tank
B41: 1 | C41: Kleine bakwagen | D41: 80 | E41: 120 | F41: 160 | G41: 200 | H41: 70 | I41: 30 | J41: 15 | K41: 0
B42: 2 | C42: Medium bakwagen | D42: 120 | E42: 160 | F42: 180 | G42: 240 | H42: 150 | I42: 40 | J42: 15 | K42: 0
B43: 3 | C43: Grote bakwagen | D43: 160 | E43: 180 | F43: 200 | G43: 260 | H43: 140 | I43: 45 | J43: 20 | K43: 0
B44: 4 | C44: Lichte trekker z/opl | D44: 180 | E44: 220 | F44: 260 | G44: 340 | H44: 140 | I44: 60 | J44: 30 | K44: 0
B45: 5 | C45: Zware trekker z/opl | D45: 300 | E45: 400 | F45: 440 | G45: 540 | H45: 200 | I45: 80 | J45: 50 | K45: 84
B48: Eigenschappen private laadinfra
B49: Basisjaar financiële cijfers: | C49: 2023
B50: Index | C50: Charging type | D50: Power | E50: Land type | F50: Power (kW) | G50: Purchase & installation (€) | H50: Purchase (€) | I50: Installation costs (€) | J50: Operational costs annual (€) | K50: Afschrijftermijn | L50: Graaf werk | M50: Locatiebepaling, enginering, proj mgt | N50: Aansluitkosten netbeheerder (!) | O50: Periodieke kosten netaansluiting (!) | Q50: Piekvermogen | R50: Installaties per kW piekvermogen
B51: 5 | C51: HPC350 | D51: 350 kW | E51: Privaat | F51: 350 | G51: =INDEX(Laadpleinkosten!$C$29:$H$29,1,MATCH(LaadinfraPrivaat[[#This Row],[Power]],Laadpleinkosten!$C$21:$H$21,0)) -> 208481.67 | H51: =INDEX(Laadpleinkosten!$C$24:$H$24,1,MATCH(LaadinfraPrivaat[[#This Row],[Power]],Laadpleinkosten!$C$21:$H$21,0)) -> 135056.25 | I51: =LaadinfraPrivaat[[#This Row],[Purchase & installation (€) ]]-LaadinfraPrivaat[[#This Row],[Purchase (€)]] -> 73425.42 | J51: =INDEX(Laadpleinkosten!$C$39:$H$39,1,MATCH(LaadinfraPrivaat[[#This Row],[Power]],Laadpleinkosten!$C$21:$H$21,0)) -> 18564.71321 | K51: 10 | L51: =INDEX(Laadpleinkosten!$C$24:$H$31,MATCH(L$50,Laadpleinkosten!$A$24:$A$31,0),MATCH(LaadinfraPrivaat[[#This Row],[Charging type]],Laadpleinkosten!$C$20:$H$20,0)) -> 2894.4 | M51: =INDEX(Laadpleinkosten!$C$24:$H$31,MATCH(M$50,Laadpleinkosten!$A$24:$A$31,0),MATCH(LaadinfraPrivaat[[#This Row],[Charging type]],Laadpleinkosten!$C$20:$H$20,0)) -> 5307.12 | N51: =INDEX(Laadpleinkosten!$C$24:$H$31,MATCH(N$50,Laadpleinkosten!$A$24:$A$31,0),MATCH(LaadinfraPrivaat[[#This Row],[Charging type]],Laadpleinkosten!$C$20:$H$20,0)) -> 3307.5 | O51: =INDEX(Laadpleinkosten!$C$24:$H$34,MATCH(O$50,Laadpleinkosten!$A$24:$A$34,0),MATCH(LaadinfraPrivaat[[#This Row],[Charging type]],Laadpleinkosten!$C$20:$H$20,0)) -> 5932.5 | Q51: Tot 2MW | R51: =350*40% -> 140
B52: 4 | C52: HPC150 | D52: 150 kW | E52: Privaat | F52: 150 | G52: =INDEX(Laadpleinkosten!$C$29:$H$29,1,MATCH(LaadinfraPrivaat[[#This Row],[Power]],Laadpleinkosten!$C$21:$H$21,0)) -> 93217.77 | H52: =INDEX(Laadpleinkosten!$C$24:$H$24,1,MATCH(LaadinfraPrivaat[[#This Row],[Power]],Laadpleinkosten!$C$21:$H$21,0)) -> 57881.25 | I52: =LaadinfraPrivaat[[#This Row],[Purchase & installation (€) ]]-LaadinfraPrivaat[[#This Row],[Purchase (€)]] -> 35336.52 | J52: =INDEX(Laadpleinkosten!$C$39:$H$39,1,MATCH(LaadinfraPrivaat[[#This Row],[Power]],Laadpleinkosten!$C$21:$H$21,0)) -> 8506.852804 | K52: 10 | L52: =INDEX(Laadpleinkosten!$C$24:$H$31,MATCH(L$50,Laadpleinkosten!$A$24:$A$31,0),MATCH(LaadinfraPrivaat[[#This Row],[Charging type]],Laadpleinkosten!$C$20:$H$20,0)) -> 2170.8 | M52: =INDEX(Laadpleinkosten!$C$24:$H$31,MATCH(M$50,Laadpleinkosten!$A$24:$A$31,0),MATCH(LaadinfraPrivaat[[#This Row],[Charging type]],Laadpleinkosten!$C$20:$H$20,0)) -> 5307.12 | N52: =INDEX(Laadpleinkosten!$C$24:$H$31,MATCH(N$50,Laadpleinkosten!$A$24:$A$31,0),MATCH(LaadinfraPrivaat[[#This Row],[Charging type]],Laadpleinkosten!$C$20:$H$20,0)) -> 1323 | O52: =INDEX(Laadpleinkosten!$C$24:$H$34,MATCH(O$50,Laadpleinkosten!$A$24:$A$34,0),MATCH(LaadinfraPrivaat[[#This Row],[Charging type]],Laadpleinkosten!$C$20:$H$20,0)) -> 2966.25 | Q52: Meer dan 2MW | R52: =200*40% -> 80
B53: 3 | C53: FC50 | D53: 50 kW | E53: Privaat | F53: 50 | G53: =INDEX(Laadpleinkosten!$C$29:$H$29,1,MATCH(LaadinfraPrivaat[[#This Row],[Power]],Laadpleinkosten!$C$21:$H$21,0)) -> 32104.035 | H53: =INDEX(Laadpleinkosten!$C$24:$H$24,1,MATCH(LaadinfraPrivaat[[#This Row],[Power]],Laadpleinkosten!$C$21:$H$21,0)) -> 19293.75 | I53: =LaadinfraPrivaat[[#This Row],[Purchase & installation (€) ]]-LaadinfraPrivaat[[#This Row],[Purchase (€)]] -> 12810.285 | J53: =INDEX(Laadpleinkosten!$C$39:$H$39,1,MATCH(LaadinfraPrivaat[[#This Row],[Power]],Laadpleinkosten!$C$21:$H$21,0)) -> 4367.797601 | K53: 10 | L53: =INDEX(Laadpleinkosten!$C$24:$H$31,MATCH(L$50,Laadpleinkosten!$A$24:$A$31,0),MATCH(LaadinfraPrivaat[[#This Row],[Charging type]],Laadpleinkosten!$C$20:$H$20,0)) -> 1447.2 | M53: =INDEX(Laadpleinkosten!$C$24:$H$31,MATCH(M$50,Laadpleinkosten!$A$24:$A$31,0),MATCH(LaadinfraPrivaat[[#This Row],[Charging type]],Laadpleinkosten!$C$20:$H$20,0)) -> 2021.76 | N53: =INDEX(Laadpleinkosten!$C$24:$H$31,MATCH(N$50,Laadpleinkosten!$A$24:$A$31,0),MATCH(LaadinfraPrivaat[[#This Row],[Charging type]],Laadpleinkosten!$C$20:$H$20,0)) -> 496.125 | O53: =INDEX(Laadpleinkosten!$C$24:$H$34,MATCH(O$50,Laadpleinkosten!$A$24:$A$34,0),MATCH(LaadinfraPrivaat[[#This Row],[Charging type]],Laadpleinkosten!$C$20:$H$20,0)) -> 2373
B54: 2 | C54: AC22 | D54: 22 kW | E54: Privaat | F54: 22 | G54: =INDEX(Laadpleinkosten!$C$29:$H$29,1,MATCH(LaadinfraPrivaat[[#This Row],[Power]],Laadpleinkosten!$C$21:$H$21,0)) -> 3639.06 | H54: =INDEX(Laadpleinkosten!$C$24:$H$24,1,MATCH(LaadinfraPrivaat[[#This Row],[Power]],Laadpleinkosten!$C$21:$H$21,0)) -> 2315.25 | I54: =LaadinfraPrivaat[[#This Row],[Purchase & installation (€) ]]-LaadinfraPrivaat[[#This Row],[Purchase (€)]] -> 1323.81 | J54: =INDEX(Laadpleinkosten!$C$39:$H$39,1,MATCH(LaadinfraPrivaat[[#This Row],[Power]],Laadpleinkosten!$C$21:$H$21,0)) -> 1571.883312 | K54: 10 | L54: =INDEX(Laadpleinkosten!$C$24:$H$31,MATCH(L$50,Laadpleinkosten!$A$24:$A$31,0),MATCH(LaadinfraPrivaat[[#This Row],[Charging type]],Laadpleinkosten!$C$20:$H$20,0)) -> 723.6 | M54: =INDEX(Laadpleinkosten!$C$24:$H$31,MATCH(M$50,Laadpleinkosten!$A$24:$A$31,0),MATCH(LaadinfraPrivaat[[#This Row],[Charging type]],Laadpleinkosten!$C$20:$H$20,0)) -> 467.532 | N54: =INDEX(Laadpleinkosten!$C$24:$H$31,MATCH(N$50,Laadpleinkosten!$A$24:$A$31,0),MATCH(LaadinfraPrivaat[[#This Row],[Charging type]],Laadpleinkosten!$C$20:$H$20,0)) -> 0 | O54: =INDEX(Laadpleinkosten!$C$24:$H$34,MATCH(O$50,Laadpleinkosten!$A$24:$A$34,0),MATCH(LaadinfraPrivaat[[#This Row],[Charging type]],Laadpleinkosten!$C$20:$H$20,0)) -> 1067.85
B55: 1 | C55: AC11 | D55: 11 kW | E55: Privaat | F55: 11 | G55: =INDEX(Laadpleinkosten!$C$29:$H$29,1,MATCH(LaadinfraPrivaat[[#This Row],[Power]],Laadpleinkosten!$C$21:$H$21,0)) -> 3289.356 | H55: =INDEX(Laadpleinkosten!$C$24:$H$24,1,MATCH(LaadinfraPrivaat[[#This Row],[Power]],Laadpleinkosten!$C$21:$H$21,0)) -> 1984.5 | I55: =LaadinfraPrivaat[[#This Row],[Purchase & installation (€) ]]-LaadinfraPrivaat[[#This Row],[Purchase (€)]] -> 1304.856 | J55: =INDEX(Laadpleinkosten!$C$39:$H$39,1,MATCH(LaadinfraPrivaat[[#This Row],[Power]],Laadpleinkosten!$C$21:$H$21,0)) -> 494.0316961 | K55: 10 | L55: =INDEX(Laadpleinkosten!$C$24:$H$31,MATCH(L$50,Laadpleinkosten!$A$24:$A$31,0),MATCH(LaadinfraPrivaat[[#This Row],[Charging type]],Laadpleinkosten!$C$20:$H$20,0)) -> 723.6 | M55: =INDEX(Laadpleinkosten!$C$24:$H$31,MATCH(M$50,Laadpleinkosten!$A$24:$A$31,0),MATCH(LaadinfraPrivaat[[#This Row],[Charging type]],Laadpleinkosten!$C$20:$H$20,0)) -> 467.532 | N55: =INDEX(Laadpleinkosten!$C$24:$H$31,MATCH(N$50,Laadpleinkosten!$A$24:$A$31,0),MATCH(LaadinfraPrivaat[[#This Row],[Charging type]],Laadpleinkosten!$C$20:$H$20,0)) -> 0 | O55: =INDEX(Laadpleinkosten!$C$24:$H$34,MATCH(O$50,Laadpleinkosten!$A$24:$A$34,0),MATCH(LaadinfraPrivaat[[#This Row],[Charging type]],Laadpleinkosten!$C$20:$H$20,0)) -> 265.776
B58: Eigenschappen publieke laadinfra
B59: Basisjaar financiële cijfers: | C59: 2023 | G59: Momenteel niet in gebruik | H59: Momenteel niet in gebruik
B60: Index | C60: Charging type | D60: Power | E60: Land type | F60: Power (kW) | G60: Depth of discharge (%) | H60: Efficiency (%) | I60: External energy costs (€)
B61: 5 | C61: HPC350 | D61: 350 kW | E61: Publiek | F61: 350 | G61: 0.7 | H61: 0.887 | I61: 0.5
B62: 4 | C62: HPC150 | D62: 150 kW | E62: Publiek | F62: 150 | G62: 0.7 | H62: 0.887 | I62: 0.45
B63: 3 | C63: FC50 | D63: 50 kW | E63: Publiek | F63: 50 | G63: 0.7 | H63: 0.887 | I63: 0.35
B64: 2 | C64: AC20 | D64: 20 kW | E64: Publiek | F64: 20 | G64: 0.8 | H64: 0.902 | I64: 0.3
B65: 1 | C65: AC10 | D65: 10 kW | E65: Publiek | F65: 10 | G65: 0.8 | H65: 0.902 | I65: 0.3
B68: Uitstoot factoren
B69: Fuel category ID | C69: Fuel type / Vehicle type | D69: Type ID | E69: Unit | F69: CO2-eq (kg per unit) | G69: PM10 combustion (g per unit) | H69: NOx (g per unit)
B70: DV | C70: Kleine bakwagen | D70: 1 | E70: L | F70: 3.239163899 | G70: 0.04053939977 | H70: 38.2590958 | I70: DV NOx | J70: based on Euro III standards -> to calculate AdBlue
B71: DV | C71: Medium bakwagen | D71: 2 | E71: L | F71: 3.239163899 | G71: 0.04077897973 | H71: 27.55146618 | I71: PM | J71: based on Euro VI standards
B72: DV | C72: Grote bakwagen | D72: 3 | E72: L | F72: 3.239163899 | G72: 0.03862735713 | H72: 29.41422173
B73: DV | C73: Lichte trekker z/opl | D73: 4 | E73: L | F73: 3.239163899 | G73: 0.04419128514 | H73: 28.53363089
B74: DV | C74: Zware trekker z/opl | D74: 5 | E74: L | F74: 3.239163899 | G74: 0.02877760859 | H74: 28.53363089
B75: EV | C75: Grijs | D75: =Config!$A$15 -> Grijs | E75: kWh | F75: 0.369 | G75: 0 | H75: 0
B76: EV | C76: Groen | D76: =Config!$A$16 -> Groen | E76: kWh | F76: 0 | G76: 0 | H76: 0
B77: FC | C77: Grijs | D77: =Config!$A$15 -> Grijs | E77: kg H2 | F77: 11.02 | G77: 0 | H77: 0
B78: FC | C78: Blauw | D78: =Config!$A$17 -> Blauw | E78: kg H2 | F78: 4.24 | G78: 0 | H78: 0
B79: FC | C79: Electrolyse (netstroom) | D79: =Config!$A$18 -> Electrolyse (netstroom) | E79: kg H2 | F79: 20.88 | G79: 0 | H79: 0
B80: FC | C80: Electrolyse (hernieuwbare energie) | D80: =Config!$A$19 -> Electrolyse (hernieuwbare energie) | E80: kg H2 | F80: 0 | G80: 0 | H80: 0

Sheet Parameters
B2: Energieprijzen | H2: HERNIEUWBARE ENERGIE-EENHEDEN (HEB's)
B3: Item | C3: Variabele | D3: Waarde | E3: toelichting | H3: Variabele | I3: Waarde | J3: toelichting
B4: Dieselprijs | C4: Literprijs | D4: 1.03 | E4: Kale prijs diesel per liter | H4: Multiplier EV | I4: 4
B5: Dieselprijs | C5: Accijns | D5: 0.5162 | E5: Accijns diesel per liter | H5: Multiplier FC | I5: 2.5
B6: Elektriciteitsprijs | C6: kWh | D6: 0.1220728926 | E6: inkoopprijs stroom per kWh | H6: Aandeel groene energie 'grijze' stroom | I6: 0.264
B7: Waterstofprijs | C7: =Config!$A$15 -> Grijs | D7: 7.56 | E7: Inkoopprijs grijze waterstof per liter | H7: Waarde HBE | I7: 12
B8: Waterstofprijs | C8: =Config!$A$17 -> Blauw | D8: 8.06 | E8: Inkoopprijs blauwe waterstof per liter | H8: Energiewaarde (MJ) per kg H2 | I8: 120.1
B9: Waterstofprijs | C9: =Config!$A$18 -> Electrolyse (netstroom) | D9: 10 | E9: Inkoopprijs waterstof per liter | H9: Vaste kosten registratie (per jaar) | I9: 2000
B10: Waterstofprijs | C10: =Config!$A$19 -> Electrolyse (hernieuwbare energie) | D10: 19 | E10: Inkoopprijs waterstof per liter
H12: Estimated value of vehicle according to age
B13: INZETGEGEVENS VOERTUIG SYSTEM | H13: Age | I13: Percentage of value of new vehicle price (%)
B14: Variabele | C14: Waarde | D14: toelichting | H14: 0 | I14: 1
B15: Productieve dagen per jaar | C15: 260 | H15: 1 | I15: 0.81
B16: Max. tijd per dag opladen extern | C16: 1 | H16: 2 | I16: 0.66
B17: Max. # keer opladen extern / dag | C17: 1 | H17: 3 | I17: 0.53
B18: Aandeel koelunit | C18: 0.5 | H18: 4 | I18: 0.43
B19: Gewenste restcapaciteit batterij | C19: 0.2 | H19: 5 | I19: 0.35
B20: Aandeel snelweg kilometers | C20: 0.75 | D20: Gemiddeld aandeel op snelweg voor tolheffing | H20: 6 | I20: 0.29
B21: Efficiëntie van transmissie overdracht (EV) | C21: 1 | H21: 7 | I21: 0.23
B22: Efficiëntie van transmissie overdracht (DV) | C22: 1 | H22: 8 | I22: 0.19
B23: Efficiëntie van transmissie overdracht (FC) | C23: 1 | H23: 9 | I23: 0.15
B24: NOx standaard (Euro VI) | C24: 0.46 | H24: 10 | I24: 0.12
B25: Efficiëntie van transmissie overdracht (H2ICE) | C25: 1 | H25: >10 | I25: 0.1
B28: Financiële parameters
B29: Item | C29: Variabele | D29: Waarde | E29: toelichting | H29: Jaarlijkse veranderingen
B30: Financiering | C30: Rente | D30: 0.042259815 | E30: % | H30: Variabele | I30: Waarde | J30: toelichting
B31: Financiering | C31: Verzekering | D31: 0.0339873894 | E31: % | H31: Dieselprijs | I31: 0.01
B32: Chauffeurskosten | C32: Verblijfkostenvergoeding | D32: 0.97 | E32: €/uur | H32: Eigen energiekosten | I32: 0.01
B33: Chauffeurskosten | C33: Overige chauffeurskosten | D33: 0.54 | E33: €/uur | H33: Energiekosten extern opladen | I33: 0.01
B34: Overhead | C34: Loon incl. sociale lasten | D34: 0.084 | E34: % | H34: Waterstof | I34: 0
B35: Overhead | C35: Huisvesting | D35: 0.026 | E35: %
B36: Overhead | C36: Overig overhead | D36: 0.05 | E36: %
H39: Parameters stationaire batterij
H40: Item | I40: Variabele | J40: Waarde | K40: toelichting
H41: Gebruik | I41: =Config!$A$60 -> Afschrijftermijn [jaar] | J41: 15 | K41: jaar
B42: AdBlue | H42: Gebruik | I42: =Config!$A$61 -> Prijs per kWh | J42: 550 | K42: euro/kWh
B43: Variabele | C43: Waarde | D43: toelichting | H43: Gebruik | I43: =Config!$A$62 -> Capaciteit batterij (kWh) | J43: 1000 | K43: kWh. Gebruiker mag tussen 400 en 1500 invullen
B44: NOx standaard (Euro VI) | C44: 0.46 | H44: Gebruik | I44: =Config!$A$63 -> Max. ontlading batterij | J44: 0.8 | K44: Maximale ontlading batterij
B45: Adblue gebruik | C45: 0.0008324498656 | D45: benodigd aantal L per g NOx reductie | H45: Gebruik | I45: =Config!$A$64 -> Sessies per week | J45: 5 | K45: aantal keer per week dat voertuig hiermee geladen wordt
B46: Kosten Adblue | C46: 0.7562 | D46: per L | H46: Gebruik | I46: =Config!$A$66 -> Fractie eigen opwek | J46: 0.5 | K46: Welk deel van energie voor opladen batterij komt van eigen opwek
H47: OPEX | I47: =Config!$A$65 -> Eigen opwek | J47: 0.06 | K47: euro/kWh
H48: CAPEX | I48: =Config!$A$67 -> Afleveringsskosten | J48: 1500 | K48: euro
H49: CAPEX | I49: =Config!$A$68 -> Plaatsingskosten | J49: 5000 | K49: euro
H50: CAPEX | I50: =Config!$A$69 -> Extra opties | J50: 0 | K50: euro
H51: OPEX | I51: =Config!$A$70 -> Onderhoudscontract | J51: 5400 | K51: euro/jaar
H52: OPEX | I52: =Config!$A$71 -> Energiemanagement software | J52: 7500 | K52: euro/jaar
H53: OPEX | I53: =Config!$A$72 -> Monitoring | J53: 15000 | K53: euro/jaar
H54: Marge | I54: Marge | J54: 0.1 | K54: Bij welke marge (kosten/kWh laadplein tov batterij) wordt melding getoond dat stationaire batterij interessant zou kunnen zijn.

Sheet Laadpleinkosten
A1: Basis
A2: TCO-ZET-Vracht
A3: Index | B3: Charging type | C3: Power | D3: Land type | E3: Column1 | F3: Power (kW) | G3: Depth of discharge (%) | H3: Efficiency (%) | I3: Column2 | J3: Column3 | K3: Installation costs (€) | L3: Operational costs annual (€) | M3: Own energy costs (€) | N3: External energy costs (€)
A4: 1 | B4: AC3,7 | C4: 3,7 kW | D4: Privaat | F4: 3.7 | G4: 0.8 | H4: 0.858 | K4: 270 | L4: 25 | M4: 0.205 | N4: =Charging_system_table1114[[#This Row],[Own energy costs (€)]] -> 0.205
A5: 2 | B5: AC10 | C5: 10 kW | D5: Publiek | F5: 10 | G5: 0.8 | H5: 0.902 | K5: 1620 | L5: 600 | N5: 0.3076
A6: 3 | B6: AC20 | C6: 20 kW | D6: Publiek | F6: 20 | G6: 0.8 | H6: 0.902 | K6: 1620 | L6: 1295 | N6: 0.4466
A7: 4 | B7: AC20 | C7: 20 kW | D7: Privaat | F7: 20 | G7: 0.8 | H7: 0.902 | K7: 620 | L7: 165 | M7: 0.13 | N7: =Charging_system_table1114[[#This Row],[Own energy costs (€)]] -> 0.13
A8: 5 | B8: FC50 | C8: 50 kW | D8: Publiek | F8: 50 | G8: 0.7 | H8: 0.887 | K8: 6500 | L8: 3687.5 | N8: 0.2631444444
A9: 6 | B9: FC50 | C9: 50 kW | D9: Privaat | F9: 50 | G9: 0.7 | H9: 0.887 | K9: 4000 | L9: 2812.5 | M9: 0.12 | N9: =Charging_system_table1114[[#This Row],[Own energy costs (€)]] -> 0.12
A10: 7 | B10: HPC150 | C10: 150 kW | D10: Publiek | F10: 150 | G10: 0.7 | H10: 0.887 | K10: 11625 | L10: 7962.5 | N10: 0.2587
A11: 8 | B11: HPC150 | C11: 150 kW | D11: Privaat | F11: 150 | G11: 0.7 | H11: 0.887 | K11: 11000 | L11: 3300 | M11: 0.08 | N11: =Charging_system_table1114[[#This Row],[Own energy costs (€)]] -> 0.08
A12: 9 | B12: HPC350 | C12: 350 kW | D12: Publiek | F12: 350 | G12: 0.7 | H12: 0.887 | K12: 31250 | L12: 19450 | N12: 0.2993944444
A13: 10 | B13: HPC350 | C13: 350 kW | D13: Privaat | F13: 350 | G13: 0.7 | H13: 0.887 | K13: 28000 | L13: 8400 | M13: 0.08 | N13: =Charging_system_table1114[[#This Row],[Own energy costs (€)]] -> 0.08
D15: Inputgegevens
D16: Berekende gegevens | G16: 399.6
A17: Overzicht aannames TCO/kWh prijs op diverse laadpalen
A18: Alle bedragen excl. BTW
B19: 2022-05-31
C20: AC3,7 | D20: AC11 | E20: AC22 | F20: FC50 | G20: HPC150 | H20: HPC350
C21: 3,7 kW | D21: 11 kW | E21: 22 kW | F21: 50 kW | G21: 150 kW | H21: 350 kW
C22: privaat | D22: privaat | E22: privaat | F22: privaat | G22: privaat | H22: privaat | I22: index 2022 | J22: index 2023
A23: CAPEX, Plaatsing | C23: 1x16A | D23: 3x16A | E23: 3x32A
A24: Inkoopprijs paal | B24: eenmalig | C24: =C91*$I24*$J24 -> 771.75 | D24: =D91*$I24*$J24 -> 1984.5 | E24: 2315.25 | F24: 19293.75 | G24: 57881.25 | H24: 135056.25 | I24: 1.05 | J24: 1.05 | P24: Purchase price pile
A25: Locatiebepaling, enginering, proj mgt | B25: eenmalig | C25: =C92*$I25*$J25 -> 341.172 | D25: 467.532 | E25: 467.532 | F25: 2021.76 | G25: 5307.12 | H25: 5307.12 | I25: 1.08 | J25: 1.17 | K25: (1) | P25: Site identification, enginering, proj mgt
A26: Civiele werken/plaatsing | B26: eenmalig | C26: =C93*$I26*$J26 -> 44.226 | D26: 113.724 | E26: 132.678 | F26: =F93*$I26*$J26 -> 8845.2 | G26: 26535.6 | H26: 61916.4 | I26: 1.08 | J26: 1.17 | K26: (1) | P26: Civil works / placement
A27: Graaf werk | B27: eenmalig | C27: =TRANSPOSE($G$74:$G$79)*$B$83 -> 723.6 | D27: 723.6 | E27: 723.6 | F27: 1447.2 | G27: 2170.8 | H27: 2894.4 | P27: Excavation work
A28: Aansluitkosten netbeheerder (!) | B28: eenmalig | C28: =C95*$I28*$J28 -> 0 | D28: =D95*$I28*$J28 -> 0 | E28: 0 | F28: 496.125 | G28: 1323 | H28: 3307.5 | I28: 1.05 | J28: 1.05 | P28: Connection costs network manager (!)
A29: Totaal | B29: eenmalig | C29: =SUM(C24:C28) -> 1880.748 | D29: 3289.356 | E29: 3639.06 | F29: 32104.035 | G29: 93217.77 | H29: 208481.67 | P29: Total
A30: Afschrijvingstermijn | B30: jaar | C30: =$B$81 -> 10 | D30: =$B81 -> 10 | E30: 10 | F30: 10 | G30: 10 | H30: 10 | P30: Depreciation period
A31: Totaal | B31: per jaar | C31: =C29/C30 -> 188.0748 | D31: 328.9356 | E31: 363.906 | F31: 3210.4035 | G31: 9321.777 | H31: 20848.167 | P31: Total
C32: AC3,7 | D32: AC11 | E32: AC22 | F32: FC50 | G32: HPC150 | H32: HPC350
A33: OPEX, Operationele kosten
A34: Periodieke kosten netaansluiting (!) | B34: per jaar | C34: =C101*$I34*$J34 -> 0 | D34: =D101*$I34*$J34 -> 265.776 | E34: 1067.85 | F34: =F101*$I34*$J34 -> 2373 | G34: 2966.25 | H34: 5932.5 | I34: 1.05 | J34: 1.13 | K34: (1) | P34: Periodic grid connection costs (!)
A35: Communicatiekosten | B35: per jaar | C35: =C102*$I35*$J35 -> 11.025 | D35: 52.92 | E35: 77.175 | F35: 77.175 | G35: 77.175 | H35: =H102*$I35*$J35 -> 77.175 | I35: 1.05 | J35: 1.05 | P35: Communication costs
A36: Verzekeringspremie (schade) | B36: per jaar | C36: 31.22610406 | D36: 80.29569615 | E36: 93.67831217 | F36: 780.6526014 | G36: 2341.957804 | H36: 5464.56821 | I36: 1.07 | J36: 1.042259815 | P36: Insurance premium (damage)
A37: Onderhoud/reparatie | B37: per jaar | C37: =C104*$I37*$J37 -> 22.68 | D37: 22.68 | E37: 260.82 | F37: 992.25 | G37: 2976.75 | H37: 6945.75 | I37: 1.05 | J37: 1.08 | K37: (2) | P37: Maintenance/repair
A38: Service bij gebruikersproblemen | B38: per jaar | C38: =C105*$I38*$J38 -> 72.36 | D38: 72.36 | E38: 72.36 | F38: 144.72 | G38: 144.72 | H38: 144.72 | I38: 1.08 | J38: =D83 -> 1.34 | P38: Service in case of user problems
A39: Totaal | B39: per jaar | C39: =SUM(C34:C38) -> 137.2911041 | D39: =SUM(D34:D38) -> 494.0316961 | E39: 1571.883312 | F39: 4367.797601 | G39: 8506.852804 | H39: 18564.71321 | P39: Total
C40: AC3,7 | D40: AC11 | E40: AC22 | F40: FC50 | G40: HPC150 | H40: HPC350
A41: OPEX, Energiekosten
A42: Vergoeding leverancier (inkoop) | B42: €/kWh | C42: =$D$66 -> 0.08265289256 | D42: =$D66 -> 0.08265289256 | E42: =$D66 -> 0.08265289256 | F42: =$D66 -> 0.08265289256 | G42: =$D66 -> 0.08265289256 | H42: =$D66 -> 0.08265289256 | I42: 2022 | J42: 2023
A43: Energiebelasting | B43: €/kWh | C43: =$C66 -> 0.03942 | D43: =$C66 -> 0.03942 | E43: 0.03942 | F43: 0.03942 | G43: 0.03942 | H43: 0.03942 | I43: 2022 | J43: 2023
A44: Totaal | B44: €/kWh | C44: =SUM(C42:C43) -> 0.1220728926 | D44: 0.1220728926 | E44: 0.1220728926 | F44: 0.1220728926 | G44: 0.1220728926 | H44: 0.1220728926 | M44: (1)
M45: Zie file "aansluitkosten aanleg en periodiek"
A46: Totale kosten | B46: "vast" per jaar | C46: =C31+C39 -> 325.3659041 | D46: 822.9672961 | E46: 1935.789312 | F46: 7578.201101 | G46: 17828.6298 | H46: 39412.88021
A47: Energiekosten medium | B47: "variabel"per kWh | C47: =C44 -> 0.1220728926 | D47: =D44 -> 0.1220728926 | E47: =E44 -> 0.1220728926 | F47: =F44 -> 0.1220728926 | G47: =G44 -> 0.1220728926 | H47: =H44 -> 0.1220728926 | M47: (2)
A49: Calculatie voor één voertuig
C50: AC3,7 | D50: AC11 | E50: AC22 | F50: AC22 | G50: FC50 | H50: FC50
A51: Laadhoeveelheid per jaar (kWh/jaar)
A52: laag scenario (suboptimaal gebruik laadinfra) | B52: kWh/jaar | C52: 3000 | D52: =(C52+F52)/2 -> 7500 | E52: 4000 | F52: 12000 | G52: 30000 | H52: 35000
A53: medium | B53: kWh/jaar | C53: 7500 | D53: =(C53+F53)/2 -> 18750 | E53: 5000 | F53: 30000 | G53: 45000 | H53: 87500
A54: hoog (optimala gebruik laadinfra) | B54: kWh/jaar | C54: 12000 | D54: =(C54+F54)/2 -> 30000 | E54: 6000 | F54: 48000 | G54: 60000 | H54: 140000
A58: Laadkosten (euro/kWh) | C58: AC3,7 | D58: AC11 | E58: AC22 | F58: AC22 | G58: FC50 | H58: FC50
A60: laag scenario (suboptimaal gebruik laadinfra) | C60: =C$46/C52+C$47 -> 0.2305281939 | D60: =D$46/D52+D$47 -> 0.2318018654 | E60: 0.53045 | F60: =#REF!/F52+#REF! ->  | G60: 0.3391166667 | H60: =#REF!/H52+#REF! -> 
A61: medium | C61: =C$46/C53+C$47 -> 0.1654550131 | D61: =D$46/D53+D$47 -> 0.1659644817 | E61: 0.4466 | F61: =#REF!/F53+#REF! ->  | G61: 0.2631444444 | H61: =#REF!/H53+#REF! -> 
A62: hoog (optimala gebruik laadinfra) | C62: 0.1491867179 | D62: =D$46/D54+D$47 -> 0.1495051358 | E62: 0.3907 | F62: =#REF!/F54+#REF! ->  | G62: 0.2251583333 | H62: =#REF!/H54+#REF! -> 
B64: staffel | C64: e-belast+ODE | D64: Kale prijs | E64: Totaal | M64: Algemene loonkostenontwikkeling
A65: zone 2 | B65: 10-50 MWh | C65: 0.10046 | D65: 0.08265289256 | E65: =SUM(C65:D65) -> 0.1831128926 | F65: 2023 | G65: 45041
A66: zone 3 | B66: 50-10.000 MWh | C66: 0.03942 | D66: 0.08265289256 | E66: =SUM(C66:D66) -> 0.1220728926 | F66: 2023 | G66: 45041
A68: https://www.belastingdienst.nl/wps/wcm/connect/bldcontentnl/belastingdienst/zakelijk/overige_belastingen/belastingen_op_milieugrondslag/tarieven_milieubelastingen/tabellen_tarieven_milieubelastingen
A70: https://zakelijkeenergietarieven.nl/grootverbruik-energie/
E72: norm | G72: bij aanleg
B73: kW | C73: dagen | D73: uur/dag | E73: maxcap | G73: meters grondwerk
A74: capaciteit | B74: 3.7 | C74: 250 | D74: 12 | E74: =B74*C74*D74 -> 11100 | F74: kWh | G74: 5 | H74: meter
B75: 11 | C75: 250 | D75: 10 | E75: =B75*C75*D75 -> 27500 | F75: kWh | G75: 5 | H75: meter
B76: 22 | C76: 200 | D76: 10 | E76: =B76*C76*D76 -> 44000 | F76: kWh | G76: 5 | H76: meter
B77: 50 | C77: 250 | D77: 10 | E77: =B77*C77*D77 -> 125000 | F77: kWh | G77: 10 | H77: meter
B78: 150 | C78: 200 | D78: 8 | E78: 240000 | F78: kWh | G78: 15 | H78: meter
B79: 350 | C79: 200 | D79: 8 | E79: =B79*C79*D79 -> 560000 | F79: kWh | G79: 20 | H79: meter
A81: afschrijvingstermijn (jaar) | B81: 10 | C81: index
C82: 2022 | D82: 2023
A83: Kost per meter grondwerk | B83: =B84*C83*D83 -> 144.72 | C83: 1.08 | D83: 1.34 | E83: (1)
A84: 2021 (basis) | B84: 100
C87: AC3,7 | D87: AC11 | E87: AC22 | F87: FC50 | G87: HPC150 | H87: HPC350
C88: 3,7 kW | D88: 11 kW | E88: 22 kW | F88: 50 kW | G88: 150 kW | H88: 350 kW
C89: privaat | D89: privaat | E89: privaat | F89: privaat | G89: privaat | H89: privaat | I89: index 2022
A90: CAPEX, Plaatsing | C90: 1x16A | D90: 3x16A | E90: 3x32A
A91: Inkoopprijs paal | B91: eenmalig | C91: 700 | D91: 1800 | E91: 2100 | F91: 17500 | G91: 52500 | H91: 122500 | I91: 105
A92: Locatiebepaling, enginering, proj mgt | B92: eenmalig | C92: 270 | D92: 370 | E92: 370 | F92: 1600 | G92: 4200 | H92: 4200 | I92: 108
A93: Civiele werken/plaatsing | B93: eenmalig | C93: 35 | D93: 90 | E93: 105 | F93: 7000 | G93: 21000 | H93: 49000 | I93: 108
A94: Graaf werk | B94: eenmalig | C94: =TRANSPOSE($G$74:$G$79)*$B$83 -> 723.6 | D94: 723.6 | E94: 723.6 | F94: 1447.2 | G94: 2170.8 | H94: 2894.4 | I94: 108
A95: Aansluitkosten netbeheerder (!) | B95: eenmalig | C95: 0 | D95: 0 | E95: 0 | F95: 450 | G95: 1200 | H95: 3000 | I95: 105
A96: Totaal | B96: eenmalig | C96: =SUM(C91:C95) -> 1728.6 | D96: =SUM(D91:D95) -> 2983.6 | E96: 3298.6 | F96: 27997.2 | G96: 81070.8 | H96: 181594.4
A97: Afschrijvingstermijn | B97: jaar | C97: =$B$81 -> 10 | D97: 10 | E97: 10 | F97: 10 | G97: 10 | H97: 10 | I97: 100
A98: Totaal | B98: per jaar | C98: =C96/C97 -> 172.86 | D98: =D96/D97 -> 298.36 | E98: 329.86 | F98: 2799.72 | G98: 8107.08 | H98: 18159.44
C99: AC3,7 | D99: AC11 | E99: AC22 | F99: FC50 | G99: HPC150 | H99: HPC350
A100: OPEX, Operationele kosten
A101: Periodieke kosten netaansluiting (!) | B101: per jaar | C101: 0 | D101: 224 | E101: 900 | F101: 2000 | G101: 2500 | H101: 5000 | I101: 105
A102: Communicatiekosten | B102: per jaar | C102: 10 | D102: 48 | E102: 70 | F102: 70 | G102: 70 | H102: 70 | I102: 105
A103: Verzekeringspremie (schade) | B103: per jaar | C103: =C91*0.04 -> 28 | D103: =D91*0.04 -> 72 | E103: 84 | F103: 700 | G103: 2100 | H103: 4900 | I103: 107
A104: Onderhoud/reparatie | B104: per jaar | C104: 20 | D104: 20 | E104: 230 | F104: =F91*0.05 -> 875 | G104: =G91*0.05 -> 2625 | H104: 6125 | I104: 105
A105: Service bij gebruikersproblemen | B105: per jaar | C105: 50 | D105: 50 | E105: 50 | F105: 100 | G105: 100 | H105: 100 | I105: 108
A106: Totaal | B106: per jaar | C106: =SUM(C101:C105) -> 108 | D106: =SUM(D101:D105) -> 414 | E106: 1334 | F106: 3745 | G106: 7395 | H106: 16195
C107: AC3,7 | D107: AC11 | E107: AC22 | F107: FC50 | G107: HPC150 | H107: HPC350
A108: OPEX, Energiekosten
A109: Vergoeding leverancier (inkoop) | B109: €/kWh | C109: =$E$119 -> 0.0887 | D109: =$E$119 -> 0.0887 | E109: 0.0887 | F109: 0.0887 | G109: 0.0887 | H109: 0.0887 | I109: 2022
A110: Energiebelasting | B110: €/kWh | C110: =$D$119+$C$119 -> 0.03479 | D110: =$D$119+$C$119 -> 0.03479 | E110: 0.03479 | F110: 0.03479 | G110: 0.03479 | H110: 0.03479 | I110: 2022
A111: Totaal | B111: €/kWh | C111: =SUM(C109:C110) -> 0.12349 | D111: 0.12349 | E111: 0.12349 | F111: 0.12349 | G111: 0.12349 | H111: 0.12349
A113: Totale kosten | B113: "vast" per jaar | C113: =C98+C106 -> 280.86 | D113: 712.36 | E113: 1663.86 | F113: 6544.72 | G113: 15502.08 | H113: 34354.44
A114: Energiekosten medium | B114: "variabel"per kWh | C114: =C111 -> 0.12349 | D114: =D111 -> 0.12349 | E114: =E111 -> 0.12349 | F114: =F111 -> 0.12349 | G114: =G111 -> 0.12349 | H114: =H111 -> 0.12349
B117: staffel | C117: e-belast | D117: ODE | E117: Kale prijs | F117: Totaal
A118: zone 2 | B118: 10-50 MWh | C118: 0.04361 | D118: 0.0418 | E118: 0.0887 | F118: 0.17411 | G118: 2021
A119: zone 3 | B119: 50-10.000 MWh | C119: 0.01189 | D119: 0.0229 | E119: 0.0887 | F119: 0.12349 | G119: 2021

Sheet Config
A1: Versie | B1: 6.2
A9: Invoervelden | I9: Formatteren subsidie-waarden
A10: Lan | B10: Dutch | C10: English | J10: EV | K10: FC | L10: h2ICE
A11: =IF('Read Me'!$C$3="Nederlands",B11, IF('Read Me'!$C$3="English",C11,C11)) -> Ja | B11: Ja | C11: Yes | I11: AanZET-subsidie | J11: =TEXT('M2-Subsidie'!B35,"€#.##0,00") -> €0,00 | K11: =TEXT('M2-Subsidie'!C35,"€#.##0,00") -> €0,00 | L11: =TEXT('M2-Subsidie'!D35,"€#.##0,00") -> €0,00
A12: =IF('Read Me'!$C$3="Nederlands",B12, IF('Read Me'!$C$3="English",C12,C12)) -> Nee | B12: Nee | C12: No | I12: MIA-subsidie | J12: =TEXT('M2-Subsidie'!B36,"€#.##0,00") -> €19.648,93 | K12: =TEXT('M2-Subsidie'!C36,"€#.##0,00") -> €30.750,20 | L12: =TEXT('M2-Subsidie'!D36,"€#.##0,00") -> €0,00
A13: =IF('Read Me'!$C$3="Nederlands",B13, IF('Read Me'!$C$3="English",C13,C13)) -> Koeling | B13: Koeling | C13: Cooling | I13: MIA-subsidie laadpaal | J13: =TEXT('M2-Subsidie'!B37,"€#.##0,00") -> €2.195,92
A14: =IF('Read Me'!$C$3="Nederlands",B14, IF('Read Me'!$C$3="English",C14,C14)) -> Kan het voertuig koelen? Een koeling is enkel relevant voor bakwagens. Voor trekkers worden daarom geen (energie)kosten voor koeling meegenomen. | B14: Kan het voertuig koelen? Een koeling is enkel relevant voor bakwagens. Voor trekkers worden daarom geen (energie)kosten voor koeling meegenomen. | C14: Is the vehicle able to cool? A cooling unit is only relevant for trucks. For tractors no (energy)costs for cooling are taken into account.
A15: =IF('Read Me'!$C$3="Nederlands",B15, IF('Read Me'!$C$3="English",C15,C15)) -> Grijs | B15: Grijs | C15: Gray
A16: =IF('Read Me'!$C$3="Nederlands",B16, IF('Read Me'!$C$3="English",C16,C16)) -> Groen | B16: Groen | C16: Green
A17: =IF('Read Me'!$C$3="Nederlands",B17, IF('Read Me'!$C$3="English",C17,C17)) -> Blauw | B17: Blauw | C17: Blue
A18: =IF('Read Me'!$C$3="Nederlands",B18, IF('Read Me'!$C$3="English",C18,C18)) -> Electrolyse (netstroom) | B18: Electrolyse (netstroom) | C18: Electrolysis (grid-average)
A19: =IF('Read Me'!$C$3="Nederlands",B19, IF('Read Me'!$C$3="English",C19,C19)) -> Electrolyse (hernieuwbare energie) | B19: Electrolyse (hernieuwbare energie) | C19: Electrolysis (renewable energy)
A20: =IF('Read Me'!$C$3="Nederlands",B20, IF('Read Me'!$C$3="English",C20,C20)) -> BV of NV met 19% belasting | B20: BV of NV met 19% belasting | C20: BV or NV with 19% tax
A21: =IF('Read Me'!$C$3="Nederlands",B21, IF('Read Me'!$C$3="English",C21,C21)) -> BV of NV met 25,8% belasting | B21: BV of NV met 25,8% belasting | C21: BV or NV with 25.8% tax
A22: =IF('Read Me'!$C$3="Nederlands",B22, IF('Read Me'!$C$3="English",C22,C22)) -> Eenmanszaak met 36,93% belasting | B22: Eenmanszaak met 36,93% belasting | C22: Sole proprietorship with 36,93% tax
A23: =IF('Read Me'!$C$3="Nederlands",B23, IF('Read Me'!$C$3="English",C23,C23)) -> Eenmanszaak met 49,5% belasting | B23: Eenmanszaak met 49,5% belasting | C23: Sole proprietorship with 49.5% tax
A24: =IF('Read Me'!$C$3="Nederlands",B24, IF('Read Me'!$C$3="English",C24,C24)) -> Klein | B24: Klein | C24: Small
A25: =IF('Read Me'!$C$3="Nederlands",B25, IF('Read Me'!$C$3="English",C25,C25)) -> Middelgroot | B25: Middelgroot | C25: Medium
A26: =IF('Read Me'!$C$3="Nederlands",B26, IF('Read Me'!$C$3="English",C26,C26)) -> Groot | B26: Groot | C26: Large
A27: =IF('Read Me'!$C$3="Nederlands",B27, IF('Read Me'!$C$3="English",C27,C27)) -> Omvang bedrijf | B27: Omvang bedrijf | C27: Company size
A28: =IF('Read Me'!$C$3="Nederlands",B28, IF('Read Me'!$C$3="English",C28,C28)) -> Groot: >250 fte, >€50 mil omzet Middelgroot: <250 fte, <€50 mil omzet Klein: <50 fte, <€10 mil omzet | B28: Groot: >250 fte, >€50 mil omzet Middelgroot: <250 fte, <€50 mil omzet Klein: <50 fte, <€10 mil omzet | C28: Large: >250 fte, >€50 mil revenue Medium: <250 fte, <€50 mil revenue Small: <50 fte, <€10 mil revenue
A29: =IF('Read Me'!$C$3="Nederlands",B29, IF('Read Me'!$C$3="English",C29,C29)) -> Herstel invoervelden | B29: Herstel invoervelden | C29: Reset input
A30: =IF('Read Me'!$C$3="Nederlands",B30, IF('Read Me'!$C$3="English",C30,C30)) -> Toegepaste waarde: | B30: Toegepaste waarde: | C30: Applied value:
A31: =IF('Read Me'!$C$3="Nederlands",B31, IF('Read Me'!$C$3="English",C31,C31)) -> Enkele laadpaal | B31: Enkele laadpaal | C31: Single installation
A32: =IF('Read Me'!$C$3="Nederlands",B32, IF('Read Me'!$C$3="English",C32,C32)) -> Laadpleinmodel | B32: Laadpleinmodel | C32: Charging hub module
A33: =IF('Read Me'!$C$3="Nederlands",B33, IF('Read Me'!$C$3="English",C33,C33)) -> Let op: Na 2025 kunnen er maatregelen van kracht worden die de economische levensduur van dieselvoertuigen verkorten. | B33: Let op: Na 2025 kunnen er maatregelen van kracht worden die de economische levensduur van dieselvoertuigen verkorten. | C33: Please Note: After 2025, measures may take effect that shorten the economic life of diesel vehicles.
A34: =IF('Read Me'!$C$3="Nederlands",B34, IF('Read Me'!$C$3="English",C34,C34)) -> Let op: Het verdienen van HBE’s is aan strenge regels onderworpen. Er wordt 2.000 euro per jaar in rekening gebracht voor kosten die gemaakt moeten worden om HBE's te innen. | B34: Let op: Het verdienen van HBE’s is aan strenge regels onderworpen. Er wordt 2.000 euro per jaar in rekening gebracht voor kosten die gemaakt moeten worden om HBE's te innen. | C34: Please Note: Earning HBEs is subject to strict rules. There is a charge of 2,000 euros per year for costs incurred to collect HBEs.
A35: =IF('Read Me'!$C$3="Nederlands",B35, IF('Read Me'!$C$3="English",C35,C35)) -> Let op: Het budget van de AanZET-subsidie voor het jaar 2023 is reeds uitgeput. | B35: Let op: Het budget van de AanZET-subsidie voor het jaar 2023 is reeds uitgeput. | C35: Please Note: The AanZET grant budget for the year 2023 has already been exhausted.
A36: =IF('Read Me'!$C$3="Nederlands",B36, IF('Read Me'!$C$3="English",C36,C36)) -> De in het TCO-Vracht gebruikte default- c.q. standaardwaarden zijn met de grootste zorg verzameld. Het betreft echter gemiddelde cijfers, de werkelijke cijfers kunnen ofwel hoger dan wel lager zijn. Hoewel veel zorg is besteed aan de correctheid van de rekenregels en de gebruikte inputdata, is Panteia of de Topsector Logistiek niet aansprakelijk te houden voor de juistheid van de rekenresultaten. | B36: De in het TCO-Vracht gebruikte default- c.q. standaardwaarden zijn met de grootste zorg verzameld. Het betreft echter gemiddelde cijfers, de werkelijke cijfers kunnen ofwel hoger dan wel lager zijn. Hoewel veel zorg is besteed aan de correctheid van de rekenregels en de gebruikte inputdata, is Panteia of de Topsector Logistiek niet aansprakelijk te houden voor de juistheid van de rekenresultaten. | C36: The default values used in TCO Freight have been compiled with the greatest care. However, these are average figures; the actual figures may be either higher or lower. Although great care was taken to ensure the correctness of the calculation rules and the input data used, Panteia or Top Sector Logistics cannot be held liable for the correctness of the calculation results.
A37: =IF('Read Me'!$C$3="Nederlands",B37, IF('Read Me'!$C$3="English",C37,C37)) -> Kleine bakwagen (lvm ca. 6 ton) | B37: Kleine bakwagen (lvm ca. 6 ton) | C37: Small truck (load approx. 6 tonnes)
A38: =IF('Read Me'!$C$3="Nederlands",B38, IF('Read Me'!$C$3="English",C38,C38)) -> Kleine bakwagen/ Verhuiswagen | B38: Kleine bakwagen/ Verhuiswagen | C38: Small truck / moving van
A39: =IF('Read Me'!$C$3="Nederlands",B39, IF('Read Me'!$C$3="English",C39,C39)) -> Medium bakwagen (lvm ca. 9 ton) | B39: Medium bakwagen (lvm ca. 9 ton) | C39: Medium size truck (load approx. 9 tonnes)
A40: =IF('Read Me'!$C$3="Nederlands",B40, IF('Read Me'!$C$3="English",C40,C40)) -> Medium bakwagen/ Verhuiswagen | B40: Medium bakwagen/ Verhuiswagen | C40: Medium size truck / moving van
A41: =IF('Read Me'!$C$3="Nederlands",B41, IF('Read Me'!$C$3="English",C41,C41)) -> Grote bakwagen (lvm > 16 ton) | B41: Grote bakwagen (lvm > 16 ton) | C41: Large truck (load >16 tonnes)
A42: =IF('Read Me'!$C$3="Nederlands",B42, IF('Read Me'!$C$3="English",C42,C42)) -> Grote bakwagen/ Verhuiswagen | B42: Grote bakwagen/ Verhuiswagen | C42: Large truck / moving van | P42: Kleine bakwagen (lvm ca. 6 ton) | Q42: Small Truck (carr. cap. approx. 6 tons)
A43: =IF('Read Me'!$C$3="Nederlands",B43, IF('Read Me'!$C$3="English",C43,C43)) -> Grote bakwagen/ Bouwvervoer | B43: Grote bakwagen/ Bouwvervoer | C43: Large truck / Concstruction | P43: Medium bakwagen (lvm ca. 9 ton) | Q43: Medium size truck (c. cap. approx. 9 tons)
A44: =IF('Read Me'!$C$3="Nederlands",B44, IF('Read Me'!$C$3="English",C44,C44)) -> Lichte trekker z/opl (GVW < 40 ton) | B44: Lichte trekker z/opl (GVW < 40 ton) | C44: Light tractor (GVW <40 tonnes) | P44: Grote bakwagen (lvm > 16 ton) | Q44: Large truck (carr. cap. >16 tons)
A45: =IF('Read Me'!$C$3="Nederlands",B45, IF('Read Me'!$C$3="English",C45,C45)) -> Zware trekker z/opl (GVW > 40 ton) | B45: Zware trekker z/opl (GVW > 40 ton) | C45: Heavy duty tractor (GVW >40 tonnes) | P45: Lichte trekker z/opl (GVW <40 ton) | Q45: Light tractor (GVW <40 tons)
A46: =IF('Read Me'!$C$3="Nederlands",B46, IF('Read Me'!$C$3="English",C46,C46)) -> Zware trekker z/opl/ Containertrucking | B46: Zware trekker z/opl/ Containertrucking | C46: Heavy duty tractor / container transport | P46: Zware trekker z/opl (GVW >40 ton) | Q46: Heavy duty tractor (GVW >40 tons)
A47: =IF('Read Me'!$C$3="Nederlands",B47, IF('Read Me'!$C$3="English",C47,C47)) -> Kleine bakwagen | B47: Kleine bakwagen | C47: Small truck
A48: =IF('Read Me'!$C$3="Nederlands",B48, IF('Read Me'!$C$3="English",C48,C48)) -> Medium bakwagen | B48: Medium bakwagen | C48: Medium size truck
A49: =IF('Read Me'!$C$3="Nederlands",B49, IF('Read Me'!$C$3="English",C49,C49)) -> Grote bakwagen | B49: Grote bakwagen | C49: Large truck
A50: =IF('Read Me'!$C$3="Nederlands",B50, IF('Read Me'!$C$3="English",C50,C50)) -> Lichte trekker z/opl | B50: Lichte trekker z/opl | C50: Light tractor
A51: =IF('Read Me'!$C$3="Nederlands",B51, IF('Read Me'!$C$3="English",C51,C51)) -> Zware trekker z/opl | B51: Zware trekker z/opl | C51: Heavy duty tractor
A52: =IF('Read Me'!$C$3="Nederlands",B52, IF('Read Me'!$C$3="English",C52,C52)) -> Neem netverzwaring mee | B52: Neem netverzwaring mee | C52: Include upgrade mains connection
A53: =IF('Read Me'!$C$3="Nederlands",B53, IF('Read Me'!$C$3="English",C53,C53)) -> Neem netverzwaring niet mee | B53: Neem netverzwaring niet mee | C53: Don't include upgrade mains connection
A54: =IF('Read Me'!$C$3="Nederlands",B54, IF('Read Me'!$C$3="English",C54,C54)) -> Stap 1 Vul het verwachte aantal elektrische vrachtvoertuigen per type op uw vestiging in de huidige situatie en in de komende tien jaar (per 2 jaar). Houd hierbij rekening met het aantal voertuigen dat tegelijk zal opladen (waardoor tegelijkertijd een laadbehoefte ontstaat). Belangrijk: Het invullen van het totale wagenpark moet voor ieder jaar afzonderlijk gebeuren. Vul in de eerste kolom het huidige aantal e-voertuigen in dat u al heeft. | B54: Stap 1 Vul het verwachte aantal elektrische vrachtvoertuigen per type op uw vestiging in de huidige situatie en in de komende tien jaar (per 2 jaar). Houd hierbij rekening met het aantal voertuigen dat tegelijk zal opladen (waardoor tegelijkertijd een laadbehoefte ontstaat). Belangrijk: Het invullen van het totale wagenpark moet voor ieder jaar afzonderlijk gebeuren. Vul in de eerste kolom het huidige aantal e-voertuigen in dat u al heeft. | C54: Step 1 Fill in the expected amount of eletric vehicles per type on your location for the next ten years (per 2 years). Keep the number of vehicles that need to charge simultaneous in mind (hence with overlap in loading demand). Important: the cells need to be filled in for all years. Use the first column for your current amount of e-vehicles.
A55: =IF('Read Me'!$C$3="Nederlands",B55, IF('Read Me'!$C$3="English",C55,C55)) -> Stap 2 Geef het verwachte jaarkilometrage (per voertuigtype) van uw voertuigen op. Op basis hiervan is een gemiddelde per dag berekend. Als dit sterk afwijkt van uw maximale dagelijkse afstand, vul dan zelf deze waarde in (kolom [Maximum per dag]). Per voertuigtype is een inschatting gemaakt van het gemiddelde energieverbruik. Weet u het energieverbruik? Vul deze dan zelf in de kolom [Eigen input] in. | B55: Stap 2 Geef het verwachte jaarkilometrage (per voertuigtype) van uw voertuigen op. Op basis hiervan is een gemiddelde per dag berekend. Als dit sterk afwijkt van uw maximale dagelijkse afstand, vul dan zelf deze waarde in (kolom [Maximum per dag]). Per voertuigtype is een inschatting gemaakt van het gemiddelde energieverbruik. Weet u het energieverbruik? Vul deze dan zelf in de kolom [Eigen input] in. | C55: Step 2 Fill in the expected annual mileage (in kilometres) per vehicle type. Based on this mileage a daily average is calculated. If this daily average differs strongly from your daily maximum, please give this maximum in column [daily max]. Per vehicle type an estimation is made of the average energy use. If you know the exact energy use of your vehicle please fill in column [own input].
A56: =IF('Read Me'!$C$3="Nederlands",B56, IF('Read Me'!$C$3="English",C56,C56)) -> Stap 3 Vul per voertuigtype de hoeveel tijd (uren) in dat de vrachtwagens per dag kunnen opladen. Op basis van de benodigde energievraag wordt de kleinst mogelijke laadpaal berekend. U kunt deze vervangen met een eigen keuze. Let op: u kunt alleen een laadpaal met een hoger vermogen kiezen. | B56: Stap 3 Vul per voertuigtype de hoeveel tijd (uren) in dat de vrachtwagens per dag kunnen opladen. Op basis van de benodigde energievraag wordt de kleinst mogelijke laadpaal berekend. U kunt deze vervangen met een eigen keuze. Let op: u kunt alleen een laadpaal met een hoger vermogen kiezen. | C56: Step 3 State the number of hours that a vehicle is able to charge (on your own location) per day. Based on the needed energy and available charging time the least heavy charging infra is calculated and advised. You can override with your own choice, but you can only choose charging infra with an higher output.
A57: =IF('Read Me'!$C$3="Nederlands",B57, IF('Read Me'!$C$3="English",C57,C57)) -> Niet mogelijk | B57: Niet mogelijk | C57: Not possible
A58: =IF('Read Me'!$C$3="Nederlands",B58, IF('Read Me'!$C$3="English",C58,C58)) -> * Bovenstaand piekvermogen is van toepassing in het geval dat alle laadpalen gelijktijdig worden gebruikt. Let op dat wanneer deze piek groter is dan uw publieke aansluiting toestaat, de zekering van uw aansluiting op het publieke net springt! De piek kan verlaagd worden door de toepassing van een "smart charging grid". Daarnaast kan een aansluiting overwogen worden met een zonne- of windpark of een elektriciteitsopslag in batterijen. | B58: * Bovenstaand piekvermogen is van toepassing in het geval dat alle laadpalen gelijktijdig worden gebruikt. Let op dat wanneer deze piek groter is dan uw publieke aansluiting toestaat, de zekering van uw aansluiting op het publieke net springt! De piek kan verlaagd worden door de toepassing van een "smart charging grid". Daarnaast kan een aansluiting overwogen worden met een zonne- of windpark of een elektriciteitsopslag in batterijen. | C58: * The mentioned peak power is applicable when all charging stations are used simultaneously. Be aware that if peak power superceeds capacity of the mains, the fuses will pop! Peak power can be lowered by applying a "smart charging grid". Furthermore one can think of using solar- or windpower or using batteries.
A59: =IF('Read Me'!$C$3="Nederlands",B59, IF('Read Me'!$C$3="English",C59,C59)) -> Vanwege de mogelijke netverzwaring kan een stationaire batterij voor u interessant zijn. | B59: Vanwege de mogelijke netverzwaring kan een stationaire batterij voor u interessant zijn. | C59: Because of the potentially needed upgrade of your mains a stationairy battery might be beneficial.
A60: =IF('Read Me'!$C$3="Nederlands",B60, IF('Read Me'!$C$3="English",C60,C60)) -> Afschrijftermijn [jaar] | B60: Afschrijftermijn [jaar] | C60: Depreciation [years]
A61: =IF('Read Me'!$C$3="Nederlands",B61, IF('Read Me'!$C$3="English",C61,C61)) -> Prijs per kWh | B61: Prijs per kWh | C61: Price per kWh
A62: =IF('Read Me'!$C$3="Nederlands",B62, IF('Read Me'!$C$3="English",C62,C62)) -> Capaciteit batterij (kWh) | B62: Capaciteit batterij (kWh) | C62: Battery capacity (kWh)
A63: =IF('Read Me'!$C$3="Nederlands",B63, IF('Read Me'!$C$3="English",C63,C63)) -> Max. ontlading batterij | B63: Max. ontlading batterij | C63: Max. discharge battery
A64: =IF('Read Me'!$C$3="Nederlands",B64, IF('Read Me'!$C$3="English",C64,C64)) -> Sessies per week | B64: Sessies per week | C64: Sessions per week
A65: =IF('Read Me'!$C$3="Nederlands",B65, IF('Read Me'!$C$3="English",C65,C65)) -> Eigen opwek | B65: Eigen opwek | C65: Own generation
A66: =IF('Read Me'!$C$3="Nederlands",B66, IF('Read Me'!$C$3="English",C66,C66)) -> Fractie eigen opwek | B66: Fractie eigen opwek | C66: Fraction own generation
A67: =IF('Read Me'!$C$3="Nederlands",B67, IF('Read Me'!$C$3="English",C67,C67)) -> Afleveringsskosten | B67: Afleveringsskosten | C67: Delivery costs
A68: =IF('Read Me'!$C$3="Nederlands",B68, IF('Read Me'!$C$3="English",C68,C68)) -> Plaatsingskosten | B68: Plaatsingskosten | C68: Installation
A69: =IF('Read Me'!$C$3="Nederlands",B69, IF('Read Me'!$C$3="English",C69,C69)) -> Extra opties | B69: Extra opties | C69: Misc.
A70: =IF('Read Me'!$C$3="Nederlands",B70, IF('Read Me'!$C$3="English",C70,C70)) -> Onderhoudscontract | B70: Onderhoudscontract | C70: Maintenance
A71: =IF('Read Me'!$C$3="Nederlands",B71, IF('Read Me'!$C$3="English",C71,C71)) -> Energiemanagement software | B71: Energiemanagement software | C71: Energy management software
A72: =IF('Read Me'!$C$3="Nederlands",B72, IF('Read Me'!$C$3="English",C72,C72)) -> Monitoring | B72: Monitoring | C72: Monitoring
